Workbook

Sheet TELA INICIAL
L3: JUNIOR
C4: APP | D4: DINHEIRO | E4: CREDITO A VISTA | F4: CREDITO PARCELADO | I4: CARTÃO
C5: RECARGAPAY | D5: 0 | E5: 0.0299 | F5: 0 | I5: MELIUZ | L5: CARD
C6: PICPAY | D6: 0 | E6: 0.0309 | F6: 0 | I6: PAN | L6: MELIUZ_JUNIOR
C7: PAGSEGURO | D7: 0 | E7: 0.0289 | F7: 0 | I7: C6 | L7: PAN_JUNIOR
C8: CONTA | D8: 0 | E8: 0 | F8: 0 | I8: BMG | L8: C6_JUNIOR
C9: GERAL | D9: 0 | E9: 0 | F9: 0 | I9: FREE | L9: BMG_JUNIOR
I10: NUBANK | L10: FREE_JUNIOR
I11: PAG | L11: NUBANK_JUNIOR
I12: AZUL | L12: PAG_JUNIOR
I13: GOLD | L13: AZUL_JUNIOR
I14: LATAM | L14: GOLD_JUNIOR
I15: ZERO | L15: LATAM_JUNIOR
I16: CLICK | L16: ZERO_JUNIOR
I17: INTER | L17: CLICK_JUNIOR
I18: NCARD | L18: INTER_JUNIOR
I19: CONTA | L19: NCARD_JUNIOR

Sheet BASE DE DADOS
A1: ID | B1: TIPO | C1: PARCELA | D1: DESCRIÇÃO | E1: REFERENTE | F1: APP | G1: CARTÃO | H1: FORMA | I1: TAXA | J1: DATA DA VENDA | K1: DATA | L1: VALOR PAGO | M1: TOTAL BRUTO | N1: JUROS
A2: 1 | B2: PGTO | C2: 1 de 1 | D2: INTER | E2: AGOSTO | F2: RECARGAPAY | G2: INTER | H2: Crédito à Vista | I2: 0.0299 | J2: 44423 | K2: 44454 | L2: 903.87 | M2: 930.9 | N2: =tbldados[[#This Row],[TOTAL BRUTO]]-tbldados[[#This Row],[VALOR PAGO]] -> 27.03
A3: 2 | B3: PGTO | C3: 1 de 1 | D3: INTER | E3: AGOSTO | F3: RECARGAPAY | G3: NUBANK | H3: Crédito à Vista | I3: 0.0299 | J3: 44420 | K3: 44452 | L3: 2051.24 | M3: 2112.57 | N3: =tbldados[[#This Row],[TOTAL BRUTO]]-tbldados[[#This Row],[VALOR PAGO]] -> 61.33
A4: 3 | B4: PGTO | C4: 1 de 1 | D4: CLICK | E4: AGOSTO | F4: RECARGAPAY | G4: INTER | H4: Crédito à Vista | I4: 0.0299 | J4: 44424 | K4: 44454 | L4: 1562.7 | M4: 1609.42 | N4: =tbldados[[#This Row],[TOTAL BRUTO]]-tbldados[[#This Row],[VALOR PAGO]] -> 46.72
A5: 4 | B5: PGTO | C5: 1 de 1 | D5: CLICK | E5: AGOSTO | F5: RECARGAPAY | G5: CLICK | H5: Crédito à Vista | I5: 0.0299 | J5: 44424 | K5: 44456 | L5: 469.1 | M5: 483.13 | N5: =tbldados[[#This Row],[TOTAL BRUTO]]-tbldados[[#This Row],[VALOR PAGO]] -> 14.03
A6: 5 | B6: PGTO | C6: 1 de 1 | D6: PAG | E6: AGOSTO | F6: RECARGAPAY | G6: CLICK | H6: Crédito à Vista | I6: 0.0299 | J6: 44425 | K6: 44456 | L6: 1503.75 | M6: 1548.71 | N6: =tbldados[[#This Row],[TOTAL BRUTO]]-tbldados[[#This Row],[VALOR PAGO]] -> 44.96
A7: 6 | B7: PGTO | C7: 1 de 1 | D7: PAG | E7: AGOSTO | F7: RECARGAPAY | G7: PAG | H7: Crédito à Vista | I7: 0.0299 | J7: 44425 | K7: 44459 | L7: 556.1 | M7: 572.73 | N7: =tbldados[[#This Row],[TOTAL BRUTO]]-tbldados[[#This Row],[VALOR PAGO]] -> 16.63
A8: 7 | B8: PGTO | C8: 1 de 1 | D8: LATAM | E8: AGOSTO | F8: CONTA | G8: CONTA | H8: DINHEIRO | I8: 0 | J8: 44425 | K8: 44425 | L8: 129.98 | M8: 129.98 | N8: =tbldados[[#This Row],[TOTAL BRUTO]]-tbldados[[#This Row],[VALOR PAGO]] -> 0
A9: 8 | B9: PGTO | C9: 1 de 1 | D9: PAG | E9: AGOSTO | F9: CONTA | G9: CONTA | H9: DINHEIRO | I9: 0 | J9: 44426 | K9: 44426 | L9: 42.94 | M9: 42.94 | N9: =tbldados[[#This Row],[TOTAL BRUTO]]-tbldados[[#This Row],[VALOR PAGO]] -> 0
A10: 9 | B10: PGTO | C10: 1 de 1 | D10: GOLD | E10: AGOSTO | F10: RECARGAPAY | G10: GOLD | H10: Crédito à Vista | I10: 0.0299 | J10: 44426 | K10: 44462 | L10: 1355 | M10: 1395.51 | N10: =tbldados[[#This Row],[TOTAL BRUTO]]-tbldados[[#This Row],[VALOR PAGO]] -> 40.51
A11: 10 | B11: PGTO | C11: 1 de 1 | D11: GOLD | E11: AGOSTO | F11: RECARGAPAY | G11: GOLD | H11: Crédito à Vista | I11: 0.0299 | J11: 44427 | K11: 44462 | L11: 1144.61 | M11: 1178.83 | N11: =tbldados[[#This Row],[TOTAL BRUTO]]-tbldados[[#This Row],[VALOR PAGO]] -> 34.22
A12: 11 | B12: PGTO | C12: 1 de 1 | D12: LATAM | E12: AGOSTO | F12: RECARGAPAY | G12: GOLD | H12: Crédito à Vista | I12: 0.0299 | J12: 44428 | K12: 44462 | L12: 1282.75 | M12: 1321.1 | N12: =tbldados[[#This Row],[TOTAL BRUTO]]-tbldados[[#This Row],[VALOR PAGO]] -> 38.35
A13: 12 | B13: PGTO | C13: 1 de 1 | D13: LATAM | E13: AGOSTO | F13: RECARGAPAY | G13: LATAM | H13: Crédito à Vista | I13: 0.0299 | J13: 44431 | K13: 44464 | L13: 1772 | M13: 1824.98 | N13: =tbldados[[#This Row],[TOTAL BRUTO]]-tbldados[[#This Row],[VALOR PAGO]] -> 52.98
A14: 13 | B14: PGTO | C14: 1 de 1 | D14: LATAM | E14: AGOSTO | F14: CONTA | G14: CONTA | H14: DINHEIRO | I14: 0 | J14: 44428 | K14: 44431 | L14: 18.8 | M14: 18.8 | N14: =tbldados[[#This Row],[TOTAL BRUTO]]-tbldados[[#This Row],[VALOR PAGO]] -> 0
A15: 14 | B15: PGTO | C15: 1 de 1 | D15: ZERO | E15: AGOSTO | F15: RECARGAPAY | G15: LATAM | H15: Crédito à Vista | I15: 0.0299 | J15: 44431 | K15: 44464 | L15: 1300 | M15: 1338.87 | N15: =tbldados[[#This Row],[TOTAL BRUTO]]-tbldados[[#This Row],[VALOR PAGO]] -> 38.87
A16: 15 | B16: PGTO | C16: 1 de 1 | D16: ZERO | E16: AGOSTO | F16: RECARGAPAY | G16: ZERO | H16: Crédito à Vista | I16: 0.0299 | J16: 44433 | K16: 44465 | L16: 329.03 | M16: 338.87 | N16: =tbldados[[#This Row],[TOTAL BRUTO]]-tbldados[[#This Row],[VALOR PAGO]] -> 9.84
A17: 16 | B17: GASTOS | C17: 01 DE 12 | D17: PAGAMANTO-MEUPAG | E17: JUNIOR | F17: GERAL | G17: NUBANK | H17: CRÉDITO PARCELADO | I17: 0 | J17: 44153 | K17: 44178 | L17: 101.98 | M17: 101.98 | N17: =tbldados[[#This Row],[TOTAL BRUTO]]-tbldados[[#This Row],[VALOR PAGO]] -> 0
A18: 17 | B18: GASTOS | C18: 02 DE 12 | D18: PAGAMANTO-MEUPAG | E18: JUNIOR | F18: GERAL | G18: NUBANK | H18: CRÉDITO PARCELADO | I18: 0 | J18: 44153 | K18: 44209 | L18: 101.98 | M18: 101.98 | N18: =tbldados[[#This Row],[TOTAL BRUTO]]-tbldados[[#This Row],[VALOR PAGO]] -> 0
A19: 18 | B19: GASTOS | C19: 03 DE 12 | D19: PAGAMANTO-MEUPAG | E19: JUNIOR | F19: GERAL | G19: NUBANK | H19: CRÉDITO PARCELADO | I19: 0 | J19: 44153 | K19: 44240 | L19: 101.98 | M19: 101.98 | N19: =tbldados[[#This Row],[TOTAL BRUTO]]-tbldados[[#This Row],[VALOR PAGO]] -> 0
A20: 19 | B20: GASTOS | C20: 04 DE 12 | D20: PAGAMANTO-MEUPAG | E20: JUNIOR | F20: GERAL | G20: NUBANK | H20: CRÉDITO PARCELADO | I20: 0 | J20: 44153 | K20: 44268 | L20: 101.98 | M20: 101.98 | N20: =tbldados[[#This Row],[TOTAL BRUTO]]-tbldados[[#This Row],[VALOR PAGO]] -> 0
A21: 20 | B21: GASTOS | C21: 05 DE 12 | D21: PAGAMANTO-MEUPAG | E21: JUNIOR | F21: GERAL | G21: NUBANK | H21: CRÉDITO PARCELADO | I21: 0 | J21: 44153 | K21: 44299 | L21: 101.98 | M21: 101.98 | N21: =tbldados[[#This Row],[TOTAL BRUTO]]-tbldados[[#This Row],[VALOR PAGO]] -> 0
A22: 21 | B22: GASTOS | C22: 06 DE 12 | D22: PAGAMANTO-MEUPAG | E22: JUNIOR | F22: GERAL | G22: NUBANK | H22: CRÉDITO PARCELADO | I22: 0 | J22: 44153 | K22: 44329 | L22: 101.98 | M22: 101.98 | N22: =tbldados[[#This Row],[TOTAL BRUTO]]-tbldados[[#This Row],[VALOR PAGO]] -> 0
A23: 22 | B23: GASTOS | C23: 07 DE 12 | D23: PAGAMANTO-MEUPAG | E23: JUNIOR | F23: GERAL | G23: NUBANK | H23: CRÉDITO PARCELADO | I23: 0 | J23: 44153 | K23: 44360 | L23: 101.98 | M23: 101.98 | N23: =tbldados[[#This Row],[TOTAL BRUTO]]-tbldados[[#This Row],[VALOR PAGO]] -> 0
A24: 23 | B24: GASTOS | C24: 08 DE 12 | D24: PAGAMANTO-MEUPAG | E24: JUNIOR | F24: GERAL | G24: NUBANK | H24: CRÉDITO PARCELADO | I24: 0 | J24: 44153 | K24: 44390 | L24: 101.98 | M24: 101.98 | N24: =tbldados[[#This Row],[TOTAL BRUTO]]-tbldados[[#This Row],[VALOR PAGO]] -> 0
A25: 24 | B25: GASTOS | C25: 09 DE 12 | D25: PAGAMANTO-MEUPAG | E25: JUNIOR | F25: GERAL | G25: NUBANK | H25: CRÉDITO PARCELADO | I25: 0 | J25: 44153 | K25: 44421 | L25: 101.98 | M25: 101.98 | N25: =tbldados[[#This Row],[TOTAL BRUTO]]-tbldados[[#This Row],[VALOR PAGO]] -> 0
A26: 25 | B26: GASTOS | C26: 10 DE 12 | D26: PAGAMANTO-MEUPAG | E26: JUNIOR | F26: GERAL | G26: NUBANK | H26: CRÉDITO PARCELADO | I26: 0 | J26: 44153 | K26: 44452 | L26: 101.98 | M26: 101.98 | N26: =tbldados[[#This Row],[TOTAL BRUTO]]-tbldados[[#This Row],[VALOR PAGO]] -> 0
A27: 26 | B27: GASTOS | C27: 11 DE 12 | D27: PAGAMANTO-MEUPAG | E27: JUNIOR | F27: GERAL | G27: NUBANK | H27: CRÉDITO PARCELADO | I27: 0 | J27: 44153 | K27: 44482 | L27: 101.98 | M27: 101.98 | N27: =tbldados[[#This Row],[TOTAL BRUTO]]-tbldados[[#This Row],[VALOR PAGO]] -> 0
A28: 27 | B28: GASTOS | C28: 12 DE 12 | D28: PAGAMANTO-MEUPAG | E28: JUNIOR | F28: GERAL | G28: NUBANK | H28: CRÉDITO PARCELADO | I28: 0 | J28: 44153 | K28: 44513 | L28: 101.98 | M28: 101.98 | N28: =tbldados[[#This Row],[TOTAL BRUTO]]-tbldados[[#This Row],[VALOR PAGO]] -> 0
A29: 28 | B29: GASTOS | C29: 01 DE 12 | D29: ANUIDADE | E29: JUNIOR | F29: GERAL | G29: NCARD | H29: CRÉDITO PARCELADO | I29: 0 | J29: 44197 | K29: 44236 | L29: 15.49 | M29: 15.49 | N29: =tbldados[[#This Row],[TOTAL BRUTO]]-tbldados[[#This Row],[VALOR PAGO]] -> 0
A30: 29 | B30: GASTOS | C30: 02 DE 12 | D30: ANUIDADE | E30: JUNIOR | F30: GERAL | G30: NCARD | H30: CRÉDITO PARCELADO | I30: 0 | J30: 44197 | K30: 44264 | L30: 15.49 | M30: 15.49 | N30: =tbldados[[#This Row],[TOTAL BRUTO]]-tbldados[[#This Row],[VALOR PAGO]] -> 0
A31: 30 | B31: GASTOS | C31: 03 DE 12 | D31: ANUIDADE | E31: JUNIOR | F31: GERAL | G31: NCARD | H31: CRÉDITO PARCELADO | I31: 0 | J31: 44197 | K31: 44295 | L31: 15.49 | M31: 15.49 | N31: =tbldados[[#This Row],[TOTAL BRUTO]]-tbldados[[#This Row],[VALOR PAGO]] -> 0
A32: 31 | B32: GASTOS | C32: 04 DE 12 | D32: ANUIDADE | E32: JUNIOR | F32: GERAL | G32: NCARD | H32: CRÉDITO PARCELADO | I32: 0 | J32: 44197 | K32: 44325 | L32: 15.49 | M32: 15.49 | N32: =tbldados[[#This Row],[TOTAL BRUTO]]-tbldados[[#This Row],[VALOR PAGO]] -> 0
A33: 32 | B33: GASTOS | C33: 05 DE 12 | D33: ANUIDADE | E33: JUNIOR | F33: GERAL | G33: NCARD | H33: CRÉDITO PARCELADO | I33: 0 | J33: 44197 | K33: 44356 | L33: 15.49 | M33: 15.49 | N33: =tbldados[[#This Row],[TOTAL BRUTO]]-tbldados[[#This Row],[VALOR PAGO]] -> 0
A34: 33 | B34: GASTOS | C34: 06 DE 12 | D34: ANUIDADE | E34: JUNIOR | F34: GERAL | G34: NCARD | H34: CRÉDITO PARCELADO | I34: 0 | J34: 44197 | K34: 44386 | L34: 15.49 | M34: 15.49 | N34: =tbldados[[#This Row],[TOTAL BRUTO]]-tbldados[[#This Row],[VALOR PAGO]] -> 0
A35: 34 | B35: GASTOS | C35: 07 DE 12 | D35: ANUIDADE | E35: JUNIOR | F35: GERAL | G35: NCARD | H35: CRÉDITO PARCELADO | I35: 0 | J35: 44197 | K35: 44417 | L35: 15.49 | M35: 15.49 | N35: =tbldados[[#This Row],[TOTAL BRUTO]]-tbldados[[#This Row],[VALOR PAGO]] -> 0
A36: 35 | B36: GASTOS | C36: 08 DE 12 | D36: ANUIDADE | E36: JUNIOR | F36: GERAL | G36: NCARD | H36: CRÉDITO PARCELADO | I36: 0 | J36: 44197 | K36: 44448 | L36: 15.49 | M36: 15.49 | N36: =tbldados[[#This Row],[TOTAL BRUTO]]-tbldados[[#This Row],[VALOR PAGO]] -> 0
A37: 36 | B37: GASTOS | C37: 09 DE 12 | D37: ANUIDADE | E37: JUNIOR | F37: GERAL | G37: NCARD | H37: CRÉDITO PARCELADO | I37: 0 | J37: 44197 | K37: 44478 | L37: 15.49 | M37: 15.49 | N37: =tbldados[[#This Row],[TOTAL BRUTO]]-tbldados[[#This Row],[VALOR PAGO]] -> 0
A38: 37 | B38: GASTOS | C38: 10 DE 12 | D38: ANUIDADE | E38: JUNIOR | F38: GERAL | G38: NCARD | H38: CRÉDITO PARCELADO | I38: 0 | J38: 44197 | K38: 44509 | L38: 15.49 | M38: 15.49 | N38: =tbldados[[#This Row],[TOTAL BRUTO]]-tbldados[[#This Row],[VALOR PAGO]] -> 0
A39: 38 | B39: GASTOS | C39: 11 DE 12 | D39: ANUIDADE | E39: JUNIOR | F39: GERAL | G39: NCARD | H39: CRÉDITO PARCELADO | I39: 0 | J39: 44197 | K39: 44539 | L39: 15.49 | M39: 15.49 | N39: =tbldados[[#This Row],[TOTAL BRUTO]]-tbldados[[#This Row],[VALOR PAGO]] -> 0
A40: 39 | B40: GASTOS | C40: 12 DE 12 | D40: ANUIDADE | E40: JUNIOR | F40: GERAL | G40: NCARD | H40: CRÉDITO PARCELADO | I40: 0 | J40: 44197 | K40: 44570 | L40: 15.49 | M40: 15.49 | N40: =tbldados[[#This Row],[TOTAL BRUTO]]-tbldados[[#This Row],[VALOR PAGO]] -> 0
A41: 40 | B41: GASTOS | C41: 01 DE 12 | D41: AMAZON | E41: JUNIOR | F41: GERAL | G41: INTER | H41: CRÉDITO PARCELADO | I41: 0 | J41: 44197 | K41: 44211 | L41: 9.9 | M41: 9.9 | N41: =tbldados[[#This Row],[TOTAL BRUTO]]-tbldados[[#This Row],[VALOR PAGO]] -> 0
A42: 41 | B42: GASTOS | C42: 02 DE 12 | D42: AMAZON | E42: JUNIOR | F42: GERAL | G42: INTER | H42: CRÉDITO PARCELADO | I42: 0 | J42: 44197 | K42: 44242 | L42: 9.9 | M42: 9.9 | N42: =tbldados[[#This Row],[TOTAL BRUTO]]-tbldados[[#This Row],[VALOR PAGO]] -> 0
A43: 42 | B43: GASTOS | C43: 03 DE 12 | D43: AMAZON | E43: JUNIOR | F43: GERAL | G43: INTER | H43: CRÉDITO PARCELADO | I43: 0 | J43: 44197 | K43: 44270 | L43: 9.9 | M43: 9.9 | N43: =tbldados[[#This Row],[TOTAL BRUTO]]-tbldados[[#This Row],[VALOR PAGO]] -> 0
A44: 43 | B44: GASTOS | C44: 04 DE 12 | D44: AMAZON | E44: JUNIOR | F44: GERAL | G44: INTER | H44: CRÉDITO PARCELADO | I44: 0 | J44: 44197 | K44: 44301 | L44: 9.9 | M44: 9.9 | N44: =tbldados[[#This Row],[TOTAL BRUTO]]-tbldados[[#This Row],[VALOR PAGO]] -> 0
A45: 44 | B45: GASTOS | C45: 05 DE 12 | D45: AMAZON | E45: JUNIOR | F45: GERAL | G45: INTER | H45: CRÉDITO PARCELADO | I45: 0 | J45: 44197 | K45: 44331 | L45: 9.9 | M45: 9.9 | N45: =tbldados[[#This Row],[TOTAL BRUTO]]-tbldados[[#This Row],[VALOR PAGO]] -> 0
A46: 45 | B46: GASTOS | C46: 06 DE 12 | D46: AMAZON | E46: JUNIOR | F46: GERAL | G46: INTER | H46: CRÉDITO PARCELADO | I46: 0 | J46: 44197 | K46: 44362 | L46: 9.9 | M46: 9.9 | N46: =tbldados[[#This Row],[TOTAL BRUTO]]-tbldados[[#This Row],[VALOR PAGO]] -> 0
A47: 46 | B47: GASTOS | C47: 07 DE 12 | D47: AMAZON | E47: JUNIOR | F47: GERAL | G47: INTER | H47: CRÉDITO PARCELADO | I47: 0 | J47: 44197 | K47: 44392 | L47: 9.9 | M47: 9.9 | N47: =tbldados[[#This Row],[TOTAL BRUTO]]-tbldados[[#This Row],[VALOR PAGO]] -> 0
A48: 47 | B48: GASTOS | C48: 08 DE 12 | D48: AMAZON | E48: JUNIOR | F48: GERAL | G48: INTER | H48: CRÉDITO PARCELADO | I48: 0 | J48: 44197 | K48: 44423 | L48: 9.9 | M48: 9.9 | N48: =tbldados[[#This Row],[TOTAL BRUTO]]-tbldados[[#This Row],[VALOR PAGO]] -> 0
A49: 48 | B49: GASTOS | C49: 09 DE 12 | D49: AMAZON | E49: JUNIOR | F49: GERAL | G49: INTER | H49: CRÉDITO PARCELADO | I49: 0 | J49: 44197 | K49: 44454 | L49: 9.9 | M49: 9.9 | N49: =tbldados[[#This Row],[TOTAL BRUTO]]-tbldados[[#This Row],[VALOR PAGO]] -> 0
A50: 49 | B50: GASTOS | C50: 10 DE 12 | D50: AMAZON | E50: JUNIOR | F50: GERAL | G50: INTER | H50: CRÉDITO PARCELADO | I50: 0 | J50: 44197 | K50: 44484 | L50: 9.9 | M50: 9.9 | N50: =tbldados[[#This Row],[TOTAL BRUTO]]-tbldados[[#This Row],[VALOR PAGO]] -> 0
A51: 50 | B51: GASTOS | C51: 11 DE 12 | D51: AMAZON | E51: JUNIOR | F51: GERAL | G51: INTER | H51: CRÉDITO PARCELADO | I51: 0 | J51: 44197 | K51: 44515 | L51: 9.9 | M51: 9.9 | N51: =tbldados[[#This Row],[TOTAL BRUTO]]-tbldados[[#This Row],[VALOR PAGO]] -> 0
A52: 51 | B52: GASTOS | C52: 12 DE 12 | D52: AMAZON | E52: JUNIOR | F52: GERAL | G52: INTER | H52: CRÉDITO PARCELADO | I52: 0 | J52: 44197 | K52: 44545 | L52: 9.9 | M52: 9.9 | N52: =tbldados[[#This Row],[TOTAL BRUTO]]-tbldados[[#This Row],[VALOR PAGO]] -> 0
A53: 52 | B53: GASTOS | C53: 01 DE 10 | D53: FOGÃO | E53: JUNIOR | F53: GERAL | G53: CLICK | H53: CRÉDITO PARCELADO | I53: 0 | J53: 44204 | K53: 44244 | L53: 77 | M53: 77 | N53: =tbldados[[#This Row],[TOTAL BRUTO]]-tbldados[[#This Row],[VALOR PAGO]] -> 0
A54: 53 | B54: GASTOS | C54: 02 DE 10 | D54: FOGÃO | E54: JUNIOR | F54: GERAL | G54: CLICK | H54: CRÉDITO PARCELADO | I54: 0 | J54: 44204 | K54: 44272 | L54: 77 | M54: 77 | N54: =tbldados[[#This Row],[TOTAL BRUTO]]-tbldados[[#This Row],[VALOR PAGO]] -> 0
A55: 54 | B55: GASTOS | C55: 03 DE 10 | D55: FOGÃO | E55: JUNIOR | F55: GERAL | G55: CLICK | H55: CRÉDITO PARCELADO | I55: 0 | J55: 44204 | K55: 44303 | L55: 77 | M55: 77 | N55: =tbldados[[#This Row],[TOTAL BRUTO]]-tbldados[[#This Row],[VALOR PAGO]] -> 0
A56: 55 | B56: GASTOS | C56: 04 DE 10 | D56: FOGÃO | E56: JUNIOR | F56: GERAL | G56: CLICK | H56: CRÉDITO PARCELADO | I56: 0 | J56: 44204 | K56: 44333 | L56: 77 | M56: 77 | N56: =tbldados[[#This Row],[TOTAL BRUTO]]-tbldados[[#This Row],[VALOR PAGO]] -> 0
A57: 56 | B57: GASTOS | C57: 05 DE 10 | D57: FOGÃO | E57: JUNIOR | F57: GERAL | G57: CLICK | H57: CRÉDITO PARCELADO | I57: 0 | J57: 44204 | K57: 44364 | L57: 77 | M57: 77 | N57: =tbldados[[#This Row],[TOTAL BRUTO]]-tbldados[[#This Row],[VALOR PAGO]] -> 0
A58: 57 | B58: GASTOS | C58: 06 DE 10 | D58: FOGÃO | E58: JUNIOR | F58: GERAL | G58: CLICK | H58: CRÉDITO PARCELADO | I58: 0 | J58: 44204 | K58: 44394 | L58: 77 | M58: 77 | N58: =tbldados[[#This Row],[TOTAL BRUTO]]-tbldados[[#This Row],[VALOR PAGO]] -> 0
A59: 58 | B59: GASTOS | C59: 07 DE 10 | D59: FOGÃO | E59: JUNIOR | F59: GERAL | G59: CLICK | H59: CRÉDITO PARCELADO | I59: 0 | J59: 44204 | K59: 44425 | L59: 77 | M59: 77 | N59: =tbldados[[#This Row],[TOTAL BRUTO]]-tbldados[[#This Row],[VALOR PAGO]] -> 0
A60: 59 | B60: GASTOS | C60: 08 DE 10 | D60: FOGÃO | E60: JUNIOR | F60: GERAL | G60: CLICK | H60: CRÉDITO PARCELADO | I60: 0 | J60: 44204 | K60: 44456 | L60: 77 | M60: 77 | N60: =tbldados[[#This Row],[TOTAL BRUTO]]-tbldados[[#This Row],[VALOR PAGO]] -> 0
A61: 60 | B61: GASTOS | C61: 09 DE 10 | D61: FOGÃO | E61: JUNIOR | F61: GERAL | G61: CLICK | H61: CRÉDITO PARCELADO | I61: 0 | J61: 44204 | K61: 44486 | L61: 77 | M61: 77 | N61: =tbldados[[#This Row],[TOTAL BRUTO]]-tbldados[[#This Row],[VALOR PAGO]] -> 0
A62: 61 | B62: GASTOS | C62: 10 DE 10 | D62: FOGÃO | E62: JUNIOR | F62: GERAL | G62: CLICK | H62: CRÉDITO PARCELADO | I62: 0 | J62: 44204 | K62: 44517 | L62: 77 | M62: 77 | N62: =tbldados[[#This Row],[TOTAL BRUTO]]-tbldados[[#This Row],[VALOR PAGO]] -> 0
A63: 62 | B63: GASTOS | C63: 01 DE 10 | D63: TINTA | E63: JUNIOR | F63: GERAL | G63: CLICK | H63: CRÉDITO À VISTA | I63: 0 | J63: 44205 | K63: 44244 | L63: 12.39 | M63: 12.39 | N63: =tbldados[[#This Row],[TOTAL BRUTO]]-tbldados[[#This Row],[VALOR PAGO]] -> 0
A64: 63 | B64: GASTOS | C64: 02 DE 10 | D64: TINTA | E64: JUNIOR | F64: GERAL | G64: CLICK | H64: CRÉDITO À VISTA | I64: 0 | J64: 44205 | K64: 44272 | L64: 12.39 | M64: 12.39 | N64: =tbldados[[#This Row],[TOTAL BRUTO]]-tbldados[[#This Row],[VALOR PAGO]] -> 0
A65: 64 | B65: GASTOS | C65: 03 DE 10 | D65: TINTA | E65: JUNIOR | F65: GERAL | G65: CLICK | H65: CRÉDITO À VISTA | I65: 0 | J65: 44205 | K65: 44303 | L65: 12.39 | M65: 12.39 | N65: =tbldados[[#This Row],[TOTAL BRUTO]]-tbldados[[#This Row],[VALOR PAGO]] -> 0
A66: 65 | B66: GASTOS | C66: 04 DE 10 | D66: TINTA | E66: JUNIOR | F66: GERAL | G66: CLICK | H66: CRÉDITO À VISTA | I66: 0 | J66: 44205 | K66: 44333 | L66: 12.39 | M66: 12.39 | N66: =tbldados[[#This Row],[TOTAL BRUTO]]-tbldados[[#This Row],[VALOR PAGO]] -> 0
A67: 66 | B67: GASTOS | C67: 05 DE 10 | D67: TINTA | E67: JUNIOR | F67: GERAL | G67: CLICK | H67: CRÉDITO À VISTA | I67: 0 | J67: 44205 | K67: 44364 | L67: 12.39 | M67: 12.39 | N67: =tbldados[[#This Row],[TOTAL BRUTO]]-tbldados[[#This Row],[VALOR PAGO]] -> 0
A68: 67 | B68: GASTOS | C68: 06 DE 10 | D68: TINTA | E68: JUNIOR | F68: GERAL | G68: CLICK | H68: CRÉDITO À VISTA | I68: 0 | J68: 44205 | K68: 44394 | L68: 12.39 | M68: 12.39 | N68: =tbldados[[#This Row],[TOTAL BRUTO]]-tbldados[[#This Row],[VALOR PAGO]] -> 0
A69: 68 | B69: GASTOS | C69: 07 DE 10 | D69: TINTA | E69: JUNIOR | F69: GERAL | G69: CLICK | H69: CRÉDITO À VISTA | I69: 0 | J69: 44205 | K69: 44425 | L69: 12.39 | M69: 12.39 | N69: =tbldados[[#This Row],[TOTAL BRUTO]]-tbldados[[#This Row],[VALOR PAGO]] -> 0
A70: 69 | B70: GASTOS | C70: 08 DE 10 | D70: TINTA | E70: JUNIOR | F70: GERAL | G70: CLICK | H70: CRÉDITO À VISTA | I70: 0 | J70: 44205 | K70: 44456 | L70: 12.39 | M70: 12.39 | N70: =tbldados[[#This Row],[TOTAL BRUTO]]-tbldados[[#This Row],[VALOR PAGO]] -> 0
A71: 70 | B71: GASTOS | C71: 09 DE 10 | D71: TINTA | E71: JUNIOR | F71: GERAL | G71: CLICK | H71: CRÉDITO À VISTA | I71: 0 | J71: 44205 | K71: 44486 | L71: 12.39 | M71: 12.39 | N71: =tbldados[[#This Row],[TOTAL BRUTO]]-tbldados[[#This Row],[VALOR PAGO]] -> 0
A72: 71 | B72: GASTOS | C72: 10 DE 10 | D72: TINTA | E72: JUNIOR | F72: GERAL | G72: CLICK | H72: CRÉDITO À VISTA | I72: 0 | J72: 44205 | K72: 44517 | L72: 12.39 | M72: 12.39 | N72: =tbldados[[#This Row],[TOTAL BRUTO]]-tbldados[[#This Row],[VALOR PAGO]] -> 0
A73: 72 | B73: GASTOS | C73: 01 DE 10 | D73: FONE DE OUVIDO | E73: JUNIOR | F73: GERAL | G73: MELIUZ | H73: CRÉDITO PARCELADO | I73: 0 | J73: 44213 | K73: 44228 | L73: 25.09 | M73: 25.09 | N73: =tbldados[[#This Row],[TOTAL BRUTO]]-tbldados[[#This Row],[VALOR PAGO]] -> 0
A74: 73 | B74: GASTOS | C74: 02 DE 10 | D74: FONE DE OUVIDO | E74: JUNIOR | F74: GERAL | G74: MELIUZ | H74: CRÉDITO PARCELADO | I74: 0 | J74: 44213 | K74: 44256 | L74: 25.09 | M74: 25.09 | N74: =tbldados[[#This Row],[TOTAL BRUTO]]-tbldados[[#This Row],[VALOR PAGO]] -> 0
A75: 74 | B75: GASTOS | C75: 03 DE 10 | D75: FONE DE OUVIDO | E75: JUNIOR | F75: GERAL | G75: MELIUZ | H75: CRÉDITO PARCELADO | I75: 0 | J75: 44213 | K75: 44287 | L75: 25.09 | M75: 25.09 | N75: =tbldados[[#This Row],[TOTAL BRUTO]]-tbldados[[#This Row],[VALOR PAGO]] -> 0
A76: 75 | B76: GASTOS | C76: 04 DE 10 | D76: FONE DE OUVIDO | E76: JUNIOR | F76: GERAL | G76: MELIUZ | H76: CRÉDITO PARCELADO | I76: 0 | J76: 44213 | K76: 44317 | L76: 25.09 | M76: 25.09 | N76: =tbldados[[#This Row],[TOTAL BRUTO]]-tbldados[[#This Row],[VALOR PAGO]] -> 0
A77: 76 | B77: GASTOS | C77: 05 DE 10 | D77: FONE DE OUVIDO | E77: JUNIOR | F77: GERAL | G77: MELIUZ | H77: CRÉDITO PARCELADO | I77: 0 | J77: 44213 | K77: 44348 | L77: 25.09 | M77: 25.09 | N77: =tbldados[[#This Row],[TOTAL BRUTO]]-tbldados[[#This Row],[VALOR PAGO]] -> 0
A78: 77 | B78: GASTOS | C78: 06 DE 10 | D78: FONE DE OUVIDO | E78: JUNIOR | F78: GERAL | G78: MELIUZ | H78: CRÉDITO PARCELADO | I78: 0 | J78: 44213 | K78: 44378 | L78: 25.09 | M78: 25.09 | N78: =tbldados[[#This Row],[TOTAL BRUTO]]-tbldados[[#This Row],[VALOR PAGO]] -> 0
A79: 78 | B79: GASTOS | C79: 07 DE 10 | D79: FONE DE OUVIDO | E79: JUNIOR | F79: GERAL | G79: MELIUZ | H79: CRÉDITO PARCELADO | I79: 0 | J79: 44213 | K79: 44409 | L79: 25.09 | M79: 25.09 | N79: =tbldados[[#This Row],[TOTAL BRUTO]]-tbldados[[#This Row],[VALOR PAGO]] -> 0
A80: 79 | B80: GASTOS | C80: 08 DE 10 | D80: FONE DE OUVIDO | E80: JUNIOR | F80: GERAL | G80: MELIUZ | H80: CRÉDITO PARCELADO | I80: 0 | J80: 44213 | K80: 44440 | L80: 25.09 | M80: 25.09 | N80: =tbldados[[#This Row],[TOTAL BRUTO]]-tbldados[[#This Row],[VALOR PAGO]] -> 0
A81: 80 | B81: GASTOS | C81: 09 DE 10 | D81: FONE DE OUVIDO | E81: JUNIOR | F81: GERAL | G81: MELIUZ | H81: CRÉDITO PARCELADO | I81: 0 | J81: 44213 | K81: 44470 | L81: 25.09 | M81: 25.09 | N81: =tbldados[[#This Row],[TOTAL BRUTO]]-tbldados[[#This Row],[VALOR PAGO]] -> 0
A82: 81 | B82: GASTOS | C82: 10 DE 10 | D82: FONE DE OUVIDO | E82: JUNIOR | F82: GERAL | G82: MELIUZ | H82: CRÉDITO PARCELADO | I82: 0 | J82: 44213 | K82: 44501 | L82: 25.09 | M82: 25.09 | N82: =tbldados[[#This Row],[TOTAL BRUTO]]-tbldados[[#This Row],[VALOR PAGO]] -> 0
A83: 82 | B83: GASTOS | C83: 01 DE 07 | D83: CELULAR | E83: JUNIOR | F83: GERAL | G83: LATAM | H83: CRÉDITO PARCELADO | I83: 0 | J83: 44250 | K83: 44280 | L83: 105.44 | M83: 105.44 | N83: =tbldados[[#This Row],[TOTAL BRUTO]]-tbldados[[#This Row],[VALOR PAGO]] -> 0
A84: 83 | B84: GASTOS | C84: 02 DE 07 | D84: CELULAR | E84: JUNIOR | F84: GERAL | G84: LATAM | H84: CRÉDITO PARCELADO | I84: 0 | J84: 44250 | K84: 44311 | L84: 105.44 | M84: 105.44 | N84: =tbldados[[#This Row],[TOTAL BRUTO]]-tbldados[[#This Row],[VALOR PAGO]] -> 0
A85: 84 | B85: GASTOS | C85: 03 DE 07 | D85: CELULAR | E85: JUNIOR | F85: GERAL | G85: LATAM | H85: CRÉDITO PARCELADO | I85: 0 | J85: 44250 | K85: 44341 | L85: 105.44 | M85: 105.44 | N85: =tbldados[[#This Row],[TOTAL BRUTO]]-tbldados[[#This Row],[VALOR PAGO]] -> 0
A86: 85 | B86: GASTOS | C86: 04 DE 07 | D86: CELULAR | E86: JUNIOR | F86: GERAL | G86: LATAM | H86: CRÉDITO PARCELADO | I86: 0 | J86: 44250 | K86: 44372 | L86: 105.44 | M86: 105.44 | N86: =tbldados[[#This Row],[TOTAL BRUTO]]-tbldados[[#This Row],[VALOR PAGO]] -> 0
A87: 86 | B87: GASTOS | C87: 05 DE 07 | D87: CELULAR | E87: JUNIOR | F87: GERAL | G87: LATAM | H87: CRÉDITO PARCELADO | I87: 0 | J87: 44250 | K87: 44402 | L87: 105.44 | M87: 105.44 | N87: =tbldados[[#This Row],[TOTAL BRUTO]]-tbldados[[#This Row],[VALOR PAGO]] -> 0
A88: 87 | B88: GASTOS | C88: 06 DE 07 | D88: CELULAR | E88: JUNIOR | F88: GERAL | G88: LATAM | H88: CRÉDITO PARCELADO | I88: 0 | J88: 44250 | K88: 44433 | L88: 105.44 | M88: 105.44 | N88: =tbldados[[#This Row],[TOTAL BRUTO]]-tbldados[[#This Row],[VALOR PAGO]] -> 0
A89: 88 | B89: GASTOS | C89: 07 DE 07 | D89: CELULAR | E89: JUNIOR | F89: GERAL | G89: LATAM | H89: CRÉDITO PARCELADO | I89: 0 | J89: 44250 | K89: 44464 | L89: 105.44 | M89: 105.44 | N89: =tbldados[[#This Row],[TOTAL BRUTO]]-tbldados[[#This Row],[VALOR PAGO]] -> 0
A90: 89 | B90: GASTOS | C90: 01 DE 03 | D90: ROUPAS | E90: JUNIOR | F90: GERAL | G90: CLICK | H90: CRÉDITO PARCELADO | I90: 0 | J90: 44301 | K90: 44333 | L90: 111.66 | M90: 111.66 | N90: =tbldados[[#This Row],[TOTAL BRUTO]]-tbldados[[#This Row],[VALOR PAGO]] -> 0
A91: 90 | B91: GASTOS | C91: 02 DE 03 | D91: ROUPAS | E91: JUNIOR | F91: GERAL | G91: CLICK | H91: CRÉDITO PARCELADO | I91: 0 | J91: 44301 | K91: 44364 | L91: 111.66 | M91: 111.66 | N91: =tbldados[[#This Row],[TOTAL BRUTO]]-tbldados[[#This Row],[VALOR PAGO]] -> 0
A92: 91 | B92: GASTOS | C92: 03 DE 03 | D92: ROUPAS | E92: JUNIOR | F92: GERAL | G92: CLICK | H92: CRÉDITO PARCELADO | I92: 0 | J92: 44301 | K92: 44394 | L92: 111.66 | M92: 111.66 | N92: =tbldados[[#This Row],[TOTAL BRUTO]]-tbldados[[#This Row],[VALOR PAGO]] -> 0
A93: 92 | B93: GASTOS | C93: 01 DE 06 | D93: GARRAFAS | E93: JUNIOR | F93: GERAL | G93: INTER | H93: CRÉDITO PARCELADO | I93: 0 | J93: 44328 | K93: 44331 | L93: 36.45 | M93: 36.45 | N93: =tbldados[[#This Row],[TOTAL BRUTO]]-tbldados[[#This Row],[VALOR PAGO]] -> 0
A94: 93 | B94: GASTOS | C94: 02 DE 06 | D94: GARRAFAS | E94: JUNIOR | F94: GERAL | G94: INTER | H94: CRÉDITO PARCELADO | I94: 0 | J94: 44328 | K94: 44362 | L94: 36.45 | M94: 36.45 | N94: =tbldados[[#This Row],[TOTAL BRUTO]]-tbldados[[#This Row],[VALOR PAGO]] -> 0
A95: 94 | B95: GASTOS | C95: 03 DE 06 | D95: GARRAFAS | E95: JUNIOR | F95: GERAL | G95: INTER | H95: CRÉDITO PARCELADO | I95: 0 | J95: 44328 | K95: 44392 | L95: 36.45 | M95: 36.45 | N95: =tbldados[[#This Row],[TOTAL BRUTO]]-tbldados[[#This Row],[VALOR PAGO]] -> 0
A96: 95 | B96: GASTOS | C96: 04 DE 06 | D96: GARRAFAS | E96: JUNIOR | F96: GERAL | G96: INTER | H96: CRÉDITO PARCELADO | I96: 0 | J96: 44328 | K96: 44423 | L96: 36.44 | M96: 36.44 | N96: =tbldados[[#This Row],[TOTAL BRUTO]]-tbldados[[#This Row],[VALOR PAGO]] -> 0
A97: 96 | B97: GASTOS | C97: 05 DE 06 | D97: GARRAFAS | E97: JUNIOR | F97: GERAL | G97: INTER | H97: CRÉDITO PARCELADO | I97: 0 | J97: 44328 | K97: 44454 | L97: 36.44 | M97: 36.44 | N97: =tbldados[[#This Row],[TOTAL BRUTO]]-tbldados[[#This Row],[VALOR PAGO]] -> 0
A98: 97 | B98: GASTOS | C98: 06 DE 06 | D98: GARRAFAS | E98: JUNIOR | F98: GERAL | G98: INTER | H98: CRÉDITO PARCELADO | I98: 0 | J98: 44328 | K98: 44484 | L98: 36.45 | M98: 36.45 | N98: =tbldados[[#This Row],[TOTAL BRUTO]]-tbldados[[#This Row],[VALOR PAGO]] -> 0
A99: 98 | B99: GASTOS | C99: 01 DE 10 | D99: NOTEBOOK | E99: JUNIOR | F99: GERAL | G99: INTER | H99: CRÉDITO PARCELADO | I99: 0 | J99: 44330 | K99: 44362 | L99: 349.9 | M99: 349.9 | N99: =tbldados[[#This Row],[TOTAL BRUTO]]-tbldados[[#This Row],[VALOR PAGO]] -> 0
A100: 99 | B100: GASTOS | C100: 02 DE 10 | D100: NOTEBOOK | E100: JUNIOR | F100: GERAL | G100: INTER | H100: CRÉDITO PARCELADO | I100: 0 | J100: 44330 | K100: 44392 | L100: 349.9 | M100: 349.9 | N100: =tbldados[[#This Row],[TOTAL BRUTO]]-tbldados[[#This Row],[VALOR PAGO]] -> 0
A101: 100 | B101: GASTOS | C101: 03 DE 10 | D101: NOTEBOOK | E101: JUNIOR | F101: GERAL | G101: INTER | H101: CRÉDITO PARCELADO | I101: 0 | J101: 44330 | K101: 44423 | L101: 349.9 | M101: 349.9 | N101: =tbldados[[#This Row],[TOTAL BRUTO]]-tbldados[[#This Row],[VALOR PAGO]] -> 0
A102: 101 | B102: GASTOS | C102: 04 DE 10 | D102: NOTEBOOK | E102: JUNIOR | F102: GERAL | G102: INTER | H102: CRÉDITO PARCELADO | I102: 0 | J102: 44330 | K102: 44454 | L102: 349.9 | M102: 349.9 | N102: =tbldados[[#This Row],[TOTAL BRUTO]]-tbldados[[#This Row],[VALOR PAGO]] -> 0
A103: 102 | B103: GASTOS | C103: 05 DE 10 | D103: NOTEBOOK | E103: JUNIOR | F103: GERAL | G103: INTER | H103: CRÉDITO PARCELADO | I103: 0 | J103: 44330 | K103: 44484 | L103: 349.9 | M103: 349.9 | N103: =tbldados[[#This Row],[TOTAL BRUTO]]-tbldados[[#This Row],[VALOR PAGO]] -> 0
A104: 103 | B104: GASTOS | C104: 06 DE 10 | D104: NOTEBOOK | E104: JUNIOR | F104: GERAL | G104: INTER | H104: CRÉDITO PARCELADO | I104: 0 | J104: 44330 | K104: 44515 | L104: 349.9 | M104: 349.9 | N104: =tbldados[[#This Row],[TOTAL BRUTO]]-tbldados[[#This Row],[VALOR PAGO]] -> 0
A105: 104 | B105: GASTOS | C105: 07 DE 10 | D105: NOTEBOOK | E105: JUNIOR | F105: GERAL | G105: INTER | H105: CRÉDITO PARCELADO | I105: 0 | J105: 44330 | K105: 44545 | L105: 349.9 | M105: 349.9 | N105: =tbldados[[#This Row],[TOTAL BRUTO]]-tbldados[[#This Row],[VALOR PAGO]] -> 0
A106: 105 | B106: GASTOS | C106: 08 DE 10 | D106: NOTEBOOK | E106: JUNIOR | F106: GERAL | G106: INTER | H106: CRÉDITO PARCELADO | I106: 0 | J106: 44330 | K106: 44576 | L106: 349.9 | M106: 349.9 | N106: =tbldados[[#This Row],[TOTAL BRUTO]]-tbldados[[#This Row],[VALOR PAGO]] -> 0
A107: 106 | B107: GASTOS | C107: 09 DE 10 | D107: NOTEBOOK | E107: JUNIOR | F107: GERAL | G107: INTER | H107: CRÉDITO PARCELADO | I107: 0 | J107: 44330 | K107: 44607 | L107: 349.9 | M107: 349.9 | N107: =tbldados[[#This Row],[TOTAL BRUTO]]-tbldados[[#This Row],[VALOR PAGO]] -> 0
A108: 107 | B108: GASTOS | C108: 10 DE 10 | D108: NOTEBOOK | E108: JUNIOR | F108: GERAL | G108: INTER | H108: CRÉDITO PARCELADO | I108: 0 | J108: 44330 | K108: 44635 | L108: 349.9 | M108: 349.9 | N108: =tbldados[[#This Row],[TOTAL BRUTO]]-tbldados[[#This Row],[VALOR PAGO]] -> 0
A109: 108 | B109: GASTOS | C109: 01 DE 02 | D109: FARMACIA | E109: JUNIOR | F109: GERAL | G109: INTER | H109: CRÉDITO PARCELADO | I109: 0 | J109: 44341 | K109: 44362 | L109: 47.48 | M109: 47.48 | N109: =tbldados[[#This Row],[TOTAL BRUTO]]-tbldados[[#This Row],[VALOR PAGO]] -> 0
A110: 109 | B110: GASTOS | C110: 02 DE 02 | D110: FARMACIA | E110: JUNIOR | F110: GERAL | G110: INTER | H110: CRÉDITO PARCELADO | I110: 0 | J110: 44341 | K110: 44392 | L110: 47.48 | M110: 47.48 | N110: =tbldados[[#This Row],[TOTAL BRUTO]]-tbldados[[#This Row],[VALOR PAGO]] -> 0
A111: 110 | B111: GASTOS | C111: 01 DE 03 | D111: SUPERMERCADO | E111: JUNIOR | F111: GERAL | G111: INTER | H111: CRÉDITO À VISTA | I111: 0 | J111: 44343 | K111: 44362 | L111: 64.8 | M111: 64.8 | N111: =tbldados[[#This Row],[TOTAL BRUTO]]-tbldados[[#This Row],[VALOR PAGO]] -> 0
A112: 111 | B112: GASTOS | C112: 02 DE 03 | D112: SUPERMERCADO | E112: JUNIOR | F112: GERAL | G112: INTER | H112: CRÉDITO À VISTA | I112: 0 | J112: 44343 | K112: 44392 | L112: 64.8 | M112: 64.8 | N112: =tbldados[[#This Row],[TOTAL BRUTO]]-tbldados[[#This Row],[VALOR PAGO]] -> 0
A113: 112 | B113: GASTOS | C113: 03 DE 03 | D113: SUPERMERCADO | E113: JUNIOR | F113: GERAL | G113: INTER | H113: CRÉDITO À VISTA | I113: 0 | J113: 44343 | K113: 44423 | L113: 64.8 | M113: 64.8 | N113: =tbldados[[#This Row],[TOTAL BRUTO]]-tbldados[[#This Row],[VALOR PAGO]] -> 0
A114: 113 | B114: GASTOS | C114: 01 DE 02 | D114: FARMACIA | E114: JUNIOR | F114: GERAL | G114: NUBANK | H114: CRÉDITO PARCELADO | I114: 0 | J114: 44345 | K114: 44360 | L114: 35.96 | M114: 35.96 | N114: =tbldados[[#This Row],[TOTAL BRUTO]]-tbldados[[#This Row],[VALOR PAGO]] -> 0
A115: 114 | B115: GASTOS | C115: 02 DE 02 | D115: FARMACIA | E115: JUNIOR | F115: GERAL | G115: NUBANK | H115: CRÉDITO PARCELADO | I115: 0 | J115: 44345 | K115: 44390 | L115: 35.96 | M115: 35.96 | N115: =tbldados[[#This Row],[TOTAL BRUTO]]-tbldados[[#This Row],[VALOR PAGO]] -> 0
A116: 115 | B116: GASTOS | C116: 01 DE 01 | D116: PAGAMENTO-INTER | E116: JUNIOR | F116: GERAL | G116: MELIUZ | H116: CRÉDITO À VISTA | I116: 0 | J116: 44347 | K116: 44378 | L116: 264.8 | M116: 264.8 | N116: =tbldados[[#This Row],[TOTAL BRUTO]]-tbldados[[#This Row],[VALOR PAGO]] -> 0
A117: 116 | B117: GASTOS | C117: 01 DE 01 | D117: PAGAMENTO-INTER | E117: JUNIOR | F117: GERAL | G117: AZUL | H117: CRÉDITO À VISTA | I117: 0 | J117: 44351 | K117: 44383 | L117: 648 | M117: 648 | N117: =tbldados[[#This Row],[TOTAL BRUTO]]-tbldados[[#This Row],[VALOR PAGO]] -> 0
A118: 117 | B118: GASTOS | C118: 01 DE 01 | D118: VOKERE | E118: JUNIOR | F118: GERAL | G118: INTER | H118: CRÉDITO À VISTA | I118: 0 | J118: 44352 | K118: 44362 | L118: 32 | M118: 32 | N118: =tbldados[[#This Row],[TOTAL BRUTO]]-tbldados[[#This Row],[VALOR PAGO]] -> 0
A119: 118 | B119: GASTOS | C119: 01 DE 01 | D119: PAGAMENTO-PAGMAE | E119: JUNIOR | F119: GERAL | G119: INTER | H119: CRÉDITO À VISTA | I119: 0 | J119: 44354 | K119: 44362 | L119: 2664.88 | M119: 2664.88 | N119: =tbldados[[#This Row],[TOTAL BRUTO]]-tbldados[[#This Row],[VALOR PAGO]] -> 0
A120: 119 | B120: GASTOS | C120: 01 DE 01 | D120: COMBUSTIVEL | E120: JUNIOR | F120: GERAL | G120: NUBANK | H120: CRÉDITO À VISTA | I120: 0 | J120: 44355 | K120: 44390 | L120: 20.65 | M120: 20.65 | N120: =tbldados[[#This Row],[TOTAL BRUTO]]-tbldados[[#This Row],[VALOR PAGO]] -> 0
A121: 120 | B121: GASTOS | C121: 01 DE 01 | D121: PAGAMENTO-NCARD | E121: JUNIOR | F121: GERAL | G121: AZUL | H121: CRÉDITO À VISTA | I121: 0 | J121: 44356 | K121: 44383 | L121: 835 | M121: 835 | N121: =tbldados[[#This Row],[TOTAL BRUTO]]-tbldados[[#This Row],[VALOR PAGO]] -> 0
A122: 121 | B122: GASTOS | C122: 01 DE 01 | D122: CERVEJA | E122: JUNIOR | F122: GERAL | G122: MELIUZ | H122: CRÉDITO À VISTA | I122: 0 | J122: 44357 | K122: 44378 | L122: 8 | M122: 8 | N122: =tbldados[[#This Row],[TOTAL BRUTO]]-tbldados[[#This Row],[VALOR PAGO]] -> 0
A123: 122 | B123: GASTOS | C123: 01 DE 01 | D123: PAGAMENTO-NCARD | E123: JUNIOR | F123: GERAL | G123: AZUL | H123: CRÉDITO À VISTA | I123: 0 | J123: 44357 | K123: 44383 | L123: 664.5 | M123: 664.5 | N123: =tbldados[[#This Row],[TOTAL BRUTO]]-tbldados[[#This Row],[VALOR PAGO]] -> 0
A124: 123 | B124: GASTOS | C124: 01 DE 01 | D124: MATERIAIS P/ CASA | E124: JUNIOR | F124: GERAL | G124: MELIUZ | H124: CRÉDITO À VISTA | I124: 0 | J124: 44358 | K124: 44378 | L124: 86 | M124: 86 | N124: =tbldados[[#This Row],[TOTAL BRUTO]]-tbldados[[#This Row],[VALOR PAGO]] -> 0
A125: 124 | B125: GASTOS | C125: 01 DE 03 | D125: SUPERMERCADO-CERVEJA | E125: JUNIOR | F125: GERAL | G125: MELIUZ | H125: CRÉDITO PARCELADO | I125: 0 | J125: 44358 | K125: 44378 | L125: 35.13 | M125: 35.13 | N125: =tbldados[[#This Row],[TOTAL BRUTO]]-tbldados[[#This Row],[VALOR PAGO]] -> 0
A126: 125 | B126: GASTOS | C126: 02 DE 03 | D126: SUPERMERCADO-CERVEJA | E126: JUNIOR | F126: GERAL | G126: MELIUZ | H126: CRÉDITO PARCELADO | I126: 0 | J126: 44358 | K126: 44409 | L126: 35.13 | M126: 35.13 | N126: =tbldados[[#This Row],[TOTAL BRUTO]]-tbldados[[#This Row],[VALOR PAGO]] -> 0
A127: 126 | B127: GASTOS | C127: 03 DE 03 | D127: SUPERMERCADO-CERVEJA | E127: JUNIOR | F127: GERAL | G127: MELIUZ | H127: CRÉDITO PARCELADO | I127: 0 | J127: 44358 | K127: 44440 | L127: 35.13 | M127: 35.13 | N127: =tbldados[[#This Row],[TOTAL BRUTO]]-tbldados[[#This Row],[VALOR PAGO]] -> 0
A128: 127 | B128: GASTOS | C128: 01 DE 01 | D128: PAGAMENTO-LUCAS | E128: JUNIOR | F128: GERAL | G128: NCARD | H128: CRÉDITO À VISTA | I128: 0 | J128: 44358 | K128: 44386 | L128: 774.53 | M128: 774.53 | N128: =tbldados[[#This Row],[TOTAL BRUTO]]-tbldados[[#This Row],[VALOR PAGO]] -> 0
A129: 128 | B129: GASTOS | C129: 01 DE 01 | D129: SUPERMERCADO | E129: JUNIOR | F129: GERAL | G129: MELIUZ | H129: CRÉDITO À VISTA | I129: 0 | J129: 44359 | K129: 44378 | L129: 31.93 | M129: 31.93 | N129: =tbldados[[#This Row],[TOTAL BRUTO]]-tbldados[[#This Row],[VALOR PAGO]] -> 0
A130: 129 | B130: GASTOS | C130: 01 DE 01 | D130: LANCHE-PIZZA | E130: JUNIOR | F130: GERAL | G130: MELIUZ | H130: CRÉDITO À VISTA | I130: 0 | J130: 44359 | K130: 44378 | L130: 20 | M130: 20 | N130: =tbldados[[#This Row],[TOTAL BRUTO]]-tbldados[[#This Row],[VALOR PAGO]] -> 0
A131: 130 | B131: GASTOS | C131: 01 DE 01 | D131: PIZZA | E131: JUNIOR | F131: GERAL | G131: NUBANK | H131: CRÉDITO À VISTA | I131: 0 | J131: 44359 | K131: 44390 | L131: 39 | M131: 39 | N131: =tbldados[[#This Row],[TOTAL BRUTO]]-tbldados[[#This Row],[VALOR PAGO]] -> 0
A132: 131 | B132: GASTOS | C132: 01 DE 01 | D132: PAGAMENTO-CLICK | E132: JUNIOR | F132: GERAL | G132: NUBANK | H132: CRÉDITO À VISTA | I132: 0 | J132: 44364 | K132: 44390 | L132: 1713.15 | M132: 1713.15 | N132: =tbldados[[#This Row],[TOTAL BRUTO]]-tbldados[[#This Row],[VALOR PAGO]] -> 0
A133: 132 | B133: GASTOS | C133: 01 DE 01 | D133: PAGAMENTO-PAGJR | E133: JUNIOR | F133: GERAL | G133: CLICK | H133: CRÉDITO À VISTA | I133: 0 | J133: 44364 | K133: 44394 | L133: 1740.53 | M133: 1740.53 | N133: =tbldados[[#This Row],[TOTAL BRUTO]]-tbldados[[#This Row],[VALOR PAGO]] -> 0
A134: 133 | B134: GASTOS | C134: 01 DE 01 | D134: PAGAMENTOPAGJR2 | E134: JUNIOR | F134: GERAL | G134: PAG | H134: CRÉDITO À VISTA | I134: 0 | J134: 44365 | K134: 44397 | L134: 509.29 | M134: 509.29 | N134: =tbldados[[#This Row],[TOTAL BRUTO]]-tbldados[[#This Row],[VALOR PAGO]] -> 0
A135: 134 | B135: GASTOS | C135: 01 DE 01 | D135: PAGAMENTO-GOLDPARTE1 | E135: JUNIOR | F135: GERAL | G135: PAG | H135: CRÉDITO À VISTA | I135: 0 | J135: 44368 | K135: 44397 | L135: 1545.9 | M135: 1545.9 | N135: =tbldados[[#This Row],[TOTAL BRUTO]]-tbldados[[#This Row],[VALOR PAGO]] -> 0
A136: 135 | B136: GASTOS | C136: 01 DE 01 | D136: TELEFONE-FATURA | E136: JUNIOR | F136: GERAL | G136: PAG | H136: CRÉDITO À VISTA | I136: 0 | J136: 44369 | K136: 44397 | L136: 43 | M136: 43 | N136: =tbldados[[#This Row],[TOTAL BRUTO]]-tbldados[[#This Row],[VALOR PAGO]] -> 0
A137: 136 | B137: GASTOS | C137: 01 DE 01 | D137: PAGAMANTO-GOLDPART2 | E137: JUNIOR | F137: GERAL | G137: GOLD | H137: CRÉDITO À VISTA | I137: 0 | J137: 44370 | K137: 44400 | L137: 1029.9 | M137: 1029.9 | N137: =tbldados[[#This Row],[TOTAL BRUTO]]-tbldados[[#This Row],[VALOR PAGO]] -> 0
A138: 137 | B138: GASTOS | C138: 01 DE 01 | D138: PAGAMENTO-PASS | E138: JUNIOR | F138: GERAL | G138: LATAM | H138: CRÉDITO À VISTA | I138: 0 | J138: 44372 | K138: 44402 | L138: 1355.35 | M138: 1355.35 | N138: =tbldados[[#This Row],[TOTAL BRUTO]]-tbldados[[#This Row],[VALOR PAGO]] -> 0
A139: 138 | B139: GASTOS | C139: 01 DE 01 | D139: PAGAMENTO-INTER-ZERO | E139: JUNIOR | F139: GERAL | G139: NCARD | H139: CRÉDITO À VISTA | I139: 0 | J139: 44375 | K139: 44386 | L139: 786.17 | M139: 786.17 | N139: =tbldados[[#This Row],[TOTAL BRUTO]]-tbldados[[#This Row],[VALOR PAGO]] -> 0
A140: 139 | B140: GASTOS | C140: 01 DE 01 | D140: PAGAMENTO-INTER-ZERO2 | E140: JUNIOR | F140: GERAL | G140: NUBANK | H140: CRÉDITO À VISTA | I140: 0 | J140: 44375 | K140: 44390 | L140: 786.17 | M140: 786.17 | N140: =tbldados[[#This Row],[TOTAL BRUTO]]-tbldados[[#This Row],[VALOR PAGO]] -> 0
A141: 140 | B141: GASTOS | C141: 01 DE 06 | D141: COPO STANLEY | E141: JUNIOR | F141: GERAL | G141: NUBANK | H141: CRÉDITO PARCELADO | I141: 0 | J141: 44376 | K141: 44390 | L141: 46.67 | M141: 46.67 | N141: =tbldados[[#This Row],[TOTAL BRUTO]]-tbldados[[#This Row],[VALOR PAGO]] -> 0
A142: 141 | B142: GASTOS | C142: 02 DE 06 | D142: COPO STANLEY | E142: JUNIOR | F142: GERAL | G142: NUBANK | H142: CRÉDITO PARCELADO | I142: 0 | J142: 44376 | K142: 44421 | L142: 46.67 | M142: 46.67 | N142: =tbldados[[#This Row],[TOTAL BRUTO]]-tbldados[[#This Row],[VALOR PAGO]] -> 0
A143: 142 | B143: GASTOS | C143: 03 DE 06 | D143: COPO STANLEY | E143: JUNIOR | F143: GERAL | G143: NUBANK | H143: CRÉDITO PARCELADO | I143: 0 | J143: 44376 | K143: 44452 | L143: 46.67 | M143: 46.67 | N143: =tbldados[[#This Row],[TOTAL BRUTO]]-tbldados[[#This Row],[VALOR PAGO]] -> 0
A144: 143 | B144: GASTOS | C144: 04 DE 06 | D144: COPO STANLEY | E144: JUNIOR | F144: GERAL | G144: NUBANK | H144: CRÉDITO PARCELADO | I144: 0 | J144: 44376 | K144: 44482 | L144: 46.67 | M144: 46.67 | N144: =tbldados[[#This Row],[TOTAL BRUTO]]-tbldados[[#This Row],[VALOR PAGO]] -> 0
A145: 144 | B145: GASTOS | C145: 05 DE 06 | D145: COPO STANLEY | E145: JUNIOR | F145: GERAL | G145: NUBANK | H145: CRÉDITO PARCELADO | I145: 0 | J145: 44376 | K145: 44513 | L145: 46.67 | M145: 46.67 | N145: =tbldados[[#This Row],[TOTAL BRUTO]]-tbldados[[#This Row],[VALOR PAGO]] -> 0
A146: 145 | B146: GASTOS | C146: 06 DE 06 | D146: COPO STANLEY | E146: JUNIOR | F146: GERAL | G146: NUBANK | H146: CRÉDITO PARCELADO | I146: 0 | J146: 44376 | K146: 44543 | L146: 46.67 | M146: 46.67 | N146: =tbldados[[#This Row],[TOTAL BRUTO]]-tbldados[[#This Row],[VALOR PAGO]] -> 0
A147: 146 | B147: GASTOS | C147: 01 DE 03 | D147: SUPERMERCADO | E147: JUNIOR | F147: GERAL | G147: NUBANK | H147: CRÉDITO PARCELADO | I147: 0 | J147: 44376 | K147: 44390 | L147: 75 | M147: 75 | N147: =tbldados[[#This Row],[TOTAL BRUTO]]-tbldados[[#This Row],[VALOR PAGO]] -> 0
A148: 147 | B148: GASTOS | C148: 02 DE 03 | D148: SUPERMERCADO | E148: JUNIOR | F148: GERAL | G148: NUBANK | H148: CRÉDITO PARCELADO | I148: 0 | J148: 44376 | K148: 44421 | L148: 75 | M148: 75 | N148: =tbldados[[#This Row],[TOTAL BRUTO]]-tbldados[[#This Row],[VALOR PAGO]] -> 0
A149: 148 | B149: GASTOS | C149: 03 DE 03 | D149: SUPERMERCADO | E149: JUNIOR | F149: GERAL | G149: NUBANK | H149: CRÉDITO PARCELADO | I149: 0 | J149: 44376 | K149: 44452 | L149: 75 | M149: 75 | N149: =tbldados[[#This Row],[TOTAL BRUTO]]-tbldados[[#This Row],[VALOR PAGO]] -> 0
A150: 149 | B150: GASTOS | C150: 01 DE 01 | D150: CERVEJA | E150: JUNIOR | F150: GERAL | G150: INTER | H150: CRÉDITO À VISTA | I150: 0 | J150: 44376 | K150: 44392 | L150: 31.08 | M150: 31.08 | N150: =tbldados[[#This Row],[TOTAL BRUTO]]-tbldados[[#This Row],[VALOR PAGO]] -> 0
A151: 150 | B151: GASTOS | C151: 01 DE 01 | D151: PAGAMENTOPICPAY-SANTANDER | E151: JUNIOR | F151: GERAL | G151: ZERO | H151: CRÉDITO À VISTA | I151: 0 | J151: 44378 | K151: 44403 | L151: 1535.22 | M151: 1535.22 | N151: =tbldados[[#This Row],[TOTAL BRUTO]]-tbldados[[#This Row],[VALOR PAGO]] -> 0
A152: 151 | B152: GASTOS | C152: 01 DE 01 | D152: LANCHE | E152: JUNIOR | F152: GERAL | G152: PAG | H152: CRÉDITO À VISTA | I152: 0 | J152: 44379 | K152: 44397 | L152: 58 | M152: 58 | N152: =tbldados[[#This Row],[TOTAL BRUTO]]-tbldados[[#This Row],[VALOR PAGO]] -> 0
A153: 152 | B153: GASTOS | C153: 01 DE 01 | D153: PAGAMENTO-RPAY-AZUL8403 | E153: JUNIOR | F153: GERAL | G153: LATAM | H153: CRÉDITO À VISTA | I153: 0 | J153: 44381 | K153: 44402 | L153: 711.66 | M153: 711.66 | N153: =tbldados[[#This Row],[TOTAL BRUTO]]-tbldados[[#This Row],[VALOR PAGO]] -> 0
A154: 153 | B154: GASTOS | C154: 01 DE 01 | D154: PAGAMENTOPAGMAE-RPAY | E154: JUNIOR | F154: GERAL | G154: AZUL | H154: CRÉDITO À VISTA | I154: 0 | J154: 44382 | K154: 44414 | L154: 695.66 | M154: 695.66 | N154: =tbldados[[#This Row],[TOTAL BRUTO]]-tbldados[[#This Row],[VALOR PAGO]] -> 0
A155: 154 | B155: GASTOS | C155: 01 DE 01 | D155: PAGAMENTOS-PAGMAE2 | E155: JUNIOR | F155: GERAL | G155: AZUL | H155: CRÉDITO À VISTA | I155: 0 | J155: 44384 | K155: 44414 | L155: 1440 | M155: 1440 | N155: =tbldados[[#This Row],[TOTAL BRUTO]]-tbldados[[#This Row],[VALOR PAGO]] -> 0
A156: 155 | B156: GASTOS | C156: 01 DE 01 | D156: PAGAMENTO-NUJRPARTE1 | E156: JUNIOR | F156: GERAL | G156: NCARD | H156: CRÉDITO À VISTA | I156: 0 | J156: 44389 | K156: 44417 | L156: 1580.9 | M156: 1580.9 | N156: =tbldados[[#This Row],[TOTAL BRUTO]]-tbldados[[#This Row],[VALOR PAGO]] -> 0
A157: 156 | B157: GASTOS | C157: 01 DE 01 | D157: PAGAMENTO-NUJRPARTE2 | E157: JUNIOR | F157: GERAL | G157: LATAM | H157: CRÉDITO À VISTA | I157: 0 | J157: 44389 | K157: 44402 | L157: 1207.04 | M157: 1207.04 | N157: =tbldados[[#This Row],[TOTAL BRUTO]]-tbldados[[#This Row],[VALOR PAGO]] -> 0
A158: 157 | B158: GASTOS | C158: 01 DE 01 | D158: PAGAMENTO-INTERPARTE1 | E158: JUNIOR | F158: GERAL | G158: NUBANK | H158: CRÉDITO À VISTA | I158: 0 | J158: 44389 | K158: 44421 | L158: 2159.63 | M158: 2159.63 | N158: =tbldados[[#This Row],[TOTAL BRUTO]]-tbldados[[#This Row],[VALOR PAGO]] -> 0
A159: 158 | B159: GASTOS | C159: 01 DE 01 | D159: PAGAMENTO-INTER | E159: JUNIOR | F159: GERAL | G159: INTER | H159: CRÉDITO À VISTA | I159: 0 | J159: 44392 | K159: 44423 | L159: 205.98 | M159: 205.98 | N159: =tbldados[[#This Row],[TOTAL BRUTO]]-tbldados[[#This Row],[VALOR PAGO]] -> 0
A160: 159 | B160: GASTOS | C160: 01 DE 01 | D160: PAGAMENTO-INTER | E160: JUNIOR | F160: GERAL | G160: MELIUZ | H160: CRÉDITO À VISTA | I160: 0 | J160: 44392 | K160: 44409 | L160: 321.33 | M160: 321.33 | N160: =tbldados[[#This Row],[TOTAL BRUTO]]-tbldados[[#This Row],[VALOR PAGO]] -> 0
A161: 160 | B161: GASTOS | C161: 01 DE 01 | D161: PAGAMENTO-CLICK | E161: JUNIOR | F161: GERAL | G161: INTER | H161: CRÉDITO À VISTA | I161: 0 | J161: 44392 | K161: 44423 | L161: 1999.65 | M161: 1999.65 | N161: =tbldados[[#This Row],[TOTAL BRUTO]]-tbldados[[#This Row],[VALOR PAGO]] -> 0
A162: 161 | B162: GASTOS | C162: 01 DE 01 | D162: PAGAMENTO-PAGPART1 | E162: JUNIOR | F162: GERAL | G162: CLICK | H162: CRÉDITO À VISTA | I162: 0 | J162: 44393 | K162: 44425 | L162: 1942.39 | M162: 1942.39 | N162: =tbldados[[#This Row],[TOTAL BRUTO]]-tbldados[[#This Row],[VALOR PAGO]] -> 0
A163: 162 | B163: GASTOS | C163: 01 DE 01 | D163: PAGAMENTO-PAGPART2 | E163: JUNIOR | F163: GERAL | G163: INTER | H163: CRÉDITO À VISTA | I163: 0 | J163: 44393 | K163: 44423 | L163: 139.45 | M163: 139.45 | N163: =tbldados[[#This Row],[TOTAL BRUTO]]-tbldados[[#This Row],[VALOR PAGO]] -> 0
A164: 163 | B164: GASTOS | C164: 01 DE 01 | D164: PAGAMENTO-PAGPART3 | E164: JUNIOR | F164: GERAL | G164: NUBANK | H164: CRÉDITO À VISTA | I164: 0 | J164: 44393 | K164: 44421 | L164: 139.45 | M164: 139.45 | N164: =tbldados[[#This Row],[TOTAL BRUTO]]-tbldados[[#This Row],[VALOR PAGO]] -> 0
A165: 164 | B165: GASTOS | C165: 01 DE 01 | D165: PAGAMENTOGOLG-PAG | E165: JUNIOR | F165: GERAL | G165: PAG | H165: CRÉDITO À VISTA | I165: 0 | J165: 44396 | K165: 44428 | L165: 2059.8 | M165: 2059.8 | N165: =tbldados[[#This Row],[TOTAL BRUTO]]-tbldados[[#This Row],[VALOR PAGO]] -> 0
A166: 165 | B166: GASTOS | C166: 01 DE 01 | D166: PAGAMENTOGOLG-GOLD | E166: JUNIOR | F166: GERAL | G166: GOLD | H166: CRÉDITO À VISTA | I166: 0 | J166: 44397 | K166: 44431 | L166: 489.25 | M166: 489.25 | N166: =tbldados[[#This Row],[TOTAL BRUTO]]-tbldados[[#This Row],[VALOR PAGO]] -> 0
A167: 166 | B167: GASTOS | C167: 01 DE 01 | D167: PAGAMENTOITAU-LATAM | E167: JUNIOR | F167: GERAL | G167: LATAM | H167: CRÉDITO À VISTA | I167: 0 | J167: 44399 | K167: 44433 | L167: 1643.82 | M167: 1643.82 | N167: =tbldados[[#This Row],[TOTAL BRUTO]]-tbldados[[#This Row],[VALOR PAGO]] -> 0
A168: 167 | B168: GASTOS | C168: 01 DE 01 | D168: PAGAMENTOITAU-LATAM | E168: JUNIOR | F168: GERAL | G168: GOLD | H168: CRÉDITO À VISTA | I168: 0 | J168: 44398 | K168: 44431 | L168: 2010.36 | M168: 2010.36 | N168: =tbldados[[#This Row],[TOTAL BRUTO]]-tbldados[[#This Row],[VALOR PAGO]] -> 0
A169: 168 | B169: GASTOS | C169: 01 DE 01 | D169: PGTOZERO-LATAM | E169: JUNIOR | F169: GERAL | G169: LATAM | H169: CRÉDITO À VISTA | I169: 0 | J169: 44402 | K169: 44433 | L169: 1374.81 | M169: 1374.81 | N169: =tbldados[[#This Row],[TOTAL BRUTO]]-tbldados[[#This Row],[VALOR PAGO]] -> 0
A170: 169 | B170: GASTOS | C170: 01 DE 02 | D170: SUPERMERCADO | E170: JUNIOR | F170: GERAL | G170: LATAM | H170: CRÉDITO PARCELADO | I170: 0 | J170: 44402 | K170: 44433 | L170: 46 | M170: 46 | N170: =tbldados[[#This Row],[TOTAL BRUTO]]-tbldados[[#This Row],[VALOR PAGO]] -> 0
A171: 170 | B171: GASTOS | C171: 02 DE 02 | D171: SUPERMERCADO | E171: JUNIOR | F171: GERAL | G171: LATAM | H171: CRÉDITO PARCELADO | I171: 0 | J171: 44402 | K171: 44464 | L171: 46 | M171: 46 | N171: =tbldados[[#This Row],[TOTAL BRUTO]]-tbldados[[#This Row],[VALOR PAGO]] -> 0
A172: 171 | B172: GASTOS | C172: 01 DE 01 | D172: JUNIOR | E172: PGTO | F172: GERAL | G172: ZERO | H172: CRÉDITO À VISTA | I172: 0 | J172: 44404 | K172: 44434 | L172: 1544.85 | M172: 1544.85 | N172: =tbldados[[#This Row],[TOTAL BRUTO]]-tbldados[[#This Row],[VALOR PAGO]] -> 0
A173: 172 | B173: GASTOS | C173: 01 DE 01 | D173: NETFLIX | E173: JUNIOR | F173: GERAL | G173: ZERO | H173: CRÉDITO À VISTA | I173: 0 | J173: 44402 | K173: 44434 | L173: 45.9 | M173: 45.9 | N173: =tbldados[[#This Row],[TOTAL BRUTO]]-tbldados[[#This Row],[VALOR PAGO]] -> 0
A174: 173 | B174: GASTOS | C174: 01 DE 01 | D174: JUROS | E174: JUNIOR | F174: GERAL | G174: ZERO | H174: CRÉDITO À VISTA | I174: 0 | J174: 44409 | K174: 44434 | L174: 0.1 | M174: 0.1 | N174: =tbldados[[#This Row],[TOTAL BRUTO]]-tbldados[[#This Row],[VALOR PAGO]] -> 0
A175: 174 | B175: GASTOS | C175: 01 DE 12 | D175: PGTOPAGMAE | E175: JUNIOR | F175: GERAL | G175: NUBANK | H175: CRÉDITO PARCELADO | I175: 0 | J175: 44184 | K175: 44209 | L175: 114.96 | M175: 114.96 | N175: =tbldados[[#This Row],[TOTAL BRUTO]]-tbldados[[#This Row],[VALOR PAGO]] -> 0
A176: 175 | B176: GASTOS | C176: 02 DE 12 | D176: PGTOPAGMAE | E176: JUNIOR | F176: GERAL | G176: NUBANK | H176: CRÉDITO PARCELADO | I176: 0 | J176: 44184 | K176: 44240 | L176: 114.96 | M176: 114.96 | N176: =tbldados[[#This Row],[TOTAL BRUTO]]-tbldados[[#This Row],[VALOR PAGO]] -> 0
A177: 176 | B177: GASTOS | C177: 03 DE 12 | D177: PGTOPAGMAE | E177: JUNIOR | F177: GERAL | G177: NUBANK | H177: CRÉDITO PARCELADO | I177: 0 | J177: 44184 | K177: 44268 | L177: 114.96 | M177: 114.96 | N177: =tbldados[[#This Row],[TOTAL BRUTO]]-tbldados[[#This Row],[VALOR PAGO]] -> 0
A178: 177 | B178: GASTOS | C178: 04 DE 12 | D178: PGTOPAGMAE | E178: JUNIOR | F178: GERAL | G178: NUBANK | H178: CRÉDITO PARCELADO | I178: 0 | J178: 44184 | K178: 44299 | L178: 114.96 | M178: 114.96 | N178: =tbldados[[#This Row],[TOTAL BRUTO]]-tbldados[[#This Row],[VALOR PAGO]] -> 0
A179: 178 | B179: GASTOS | C179: 05 DE 12 | D179: PGTOPAGMAE | E179: JUNIOR | F179: GERAL | G179: NUBANK | H179: CRÉDITO PARCELADO | I179: 0 | J179: 44184 | K179: 44329 | L179: 114.96 | M179: 114.96 | N179: =tbldados[[#This Row],[TOTAL BRUTO]]-tbldados[[#This Row],[VALOR PAGO]] -> 0
A180: 179 | B180: GASTOS | C180: 06 DE 12 | D180: PGTOPAGMAE | E180: JUNIOR | F180: GERAL | G180: NUBANK | H180: CRÉDITO PARCELADO | I180: 0 | J180: 44184 | K180: 44360 | L180: 114.96 | M180: 114.96 | N180: =tbldados[[#This Row],[TOTAL BRUTO]]-tbldados[[#This Row],[VALOR PAGO]] -> 0
A181: 180 | B181: GASTOS | C181: 07 DE 12 | D181: PGTOPAGMAE | E181: JUNIOR | F181: GERAL | G181: NUBANK | H181: CRÉDITO PARCELADO | I181: 0 | J181: 44184 | K181: 44390 | L181: 114.96 | M181: 114.96 | N181: =tbldados[[#This Row],[TOTAL BRUTO]]-tbldados[[#This Row],[VALOR PAGO]] -> 0
A182: 181 | B182: GASTOS | C182: 08 DE 12 | D182: PGTOPAGMAE | E182: JUNIOR | F182: GERAL | G182: NUBANK | H182: CRÉDITO PARCELADO | I182: 0 | J182: 44184 | K182: 44421 | L182: 114.96 | M182: 114.96 | N182: =tbldados[[#This Row],[TOTAL BRUTO]]-tbldados[[#This Row],[VALOR PAGO]] -> 0
A183: 182 | B183: GASTOS | C183: 09 DE 12 | D183: PGTOPAGMAE | E183: JUNIOR | F183: GERAL | G183: NUBANK | H183: CRÉDITO PARCELADO | I183: 0 | J183: 44184 | K183: 44452 | L183: 114.96 | M183: 114.96 | N183: =tbldados[[#This Row],[TOTAL BRUTO]]-tbldados[[#This Row],[VALOR PAGO]] -> 0
A184: 183 | B184: GASTOS | C184: 10 DE 12 | D184: PGTOPAGMAE | E184: JUNIOR | F184: GERAL | G184: NUBANK | H184: CRÉDITO PARCELADO | I184: 0 | J184: 44184 | K184: 44482 | L184: 114.96 | M184: 114.96 | N184: =tbldados[[#This Row],[TOTAL BRUTO]]-tbldados[[#This Row],[VALOR PAGO]] -> 0
A185: 184 | B185: GASTOS | C185: 11 DE 12 | D185: PGTOPAGMAE | E185: JUNIOR | F185: GERAL | G185: NUBANK | H185: CRÉDITO PARCELADO | I185: 0 | J185: 44184 | K185: 44513 | L185: 114.96 | M185: 114.96 | N185: =tbldados[[#This Row],[TOTAL BRUTO]]-tbldados[[#This Row],[VALOR PAGO]] -> 0
A186: 185 | B186: GASTOS | C186: 12 DE 12 | D186: PGTOPAGMAE | E186: JUNIOR | F186: GERAL | G186: NUBANK | H186: CRÉDITO PARCELADO | I186: 0 | J186: 44184 | K186: 44543 | L186: 114.96 | M186: 114.96 | N186: =tbldados[[#This Row],[TOTAL BRUTO]]-tbldados[[#This Row],[VALOR PAGO]] -> 0
A187: 186 | B187: GASTOS | C187: 01 DE 01 | D187: RECARGA | E187: JUNIOR | F187: GERAL | G187: NUBANK | H187: CRÉDITO À VISTA | I187: 0 | J187: 44389 | K187: 44421 | L187: 30 | M187: 30 | N187: =tbldados[[#This Row],[TOTAL BRUTO]]-tbldados[[#This Row],[VALOR PAGO]] -> 0
A188: 187 | B188: GASTOS | C188: 01 DE 01 | D188: CERVEJA | E188: JUNIOR | F188: GERAL | G188: INTER | H188: CRÉDITO À VISTA | I188: 0 | J188: 44408 | K188: 44423 | L188: 35 | M188: 35 | N188: =tbldados[[#This Row],[TOTAL BRUTO]]-tbldados[[#This Row],[VALOR PAGO]] -> 0
A189: 188 | B189: GASTOS | C189: 01 DE 02 | D189: MOTO | E189: JUNIOR | F189: GERAL | G189: INTER | H189: CRÉDITO PARCELADO | I189: 0 | J189: 44377 | K189: 44392 | L189: 94 | M189: 94 | N189: =tbldados[[#This Row],[TOTAL BRUTO]]-tbldados[[#This Row],[VALOR PAGO]] -> 0
A190: 189 | B190: GASTOS | C190: 02 DE 02 | D190: MOTO | E190: JUNIOR | F190: GERAL | G190: INTER | H190: CRÉDITO PARCELADO | I190: 0 | J190: 44377 | K190: 44423 | L190: 94 | M190: 94 | N190: =tbldados[[#This Row],[TOTAL BRUTO]]-tbldados[[#This Row],[VALOR PAGO]] -> 0
A191: 190 | B191: GASTOS | C191: 01 DE 02 | D191: MOUSE | E191: JUNIOR | F191: GERAL | G191: MELIUZ | H191: CRÉDITO PARCELADO | I191: 0 | J191: 44405 | K191: 44440 | L191: 30.16 | M191: 30.16 | N191: =tbldados[[#This Row],[TOTAL BRUTO]]-tbldados[[#This Row],[VALOR PAGO]] -> 0
A192: 191 | B192: GASTOS | C192: 02 DE 02 | D192: MOUSE | E192: JUNIOR | F192: GERAL | G192: MELIUZ | H192: CRÉDITO PARCELADO | I192: 0 | J192: 44405 | K192: 44470 | L192: 30.16 | M192: 30.16 | N192: =tbldados[[#This Row],[TOTAL BRUTO]]-tbldados[[#This Row],[VALOR PAGO]] -> 0
A193: 192 | B193: GASTOS | C193: 01 DE 01 | D193: JANTA | E193: JUNIOR | F193: GERAL | G193: MELIUZ | H193: CRÉDITO À VISTA | I193: 0 | J193: 44398 | K193: 44440 | L193: 37 | M193: 37 | N193: =tbldados[[#This Row],[TOTAL BRUTO]]-tbldados[[#This Row],[VALOR PAGO]] -> 0
A194: 193 | B194: GASTOS | C194: 01 DE 01 | D194: JANTA | E194: JUNIOR | F194: GERAL | G194: MELIUZ | H194: CRÉDITO À VISTA | I194: 0 | J194: 44396 | K194: 44409 | L194: 32 | M194: 32 | N194: =tbldados[[#This Row],[TOTAL BRUTO]]-tbldados[[#This Row],[VALOR PAGO]] -> 0
A195: 194 | B195: GASTOS | C195: 01 DE 01 | D195: PLANO PRIME JUROS | E195: JUNIOR | F195: GERAL | G195: INTER | H195: CRÉDITO À VISTA | I195: 0 | J195: 44412 | K195: 44423 | L195: 19.9 | M195: 19.9 | N195: =tbldados[[#This Row],[TOTAL BRUTO]]-tbldados[[#This Row],[VALOR PAGO]] -> 0
A196: 195 | B196: GASTOS | C196: 01 DE 01 | D196: PGTO-AZULCARD | E196: JUNIOR | F196: GERAL | G196: FREE | H196: CRÉDITO À VISTA | I196: 0 | J196: 44412 | K196: 44438 | L196: 1490 | M196: 1490 | N196: =tbldados[[#This Row],[TOTAL BRUTO]]-tbldados[[#This Row],[VALOR PAGO]] -> 0
A197: 196 | B197: GASTOS | C197: 01 DE 01 | D197: PGTO-NCARD-PARTE1 | E197: JUNIOR | F197: GERAL | G197: AZUL | H197: CRÉDITO À VISTA | I197: 0 | J197: 44413 | K197: 44445 | L197: 659.34 | M197: 659.34 | N197: =tbldados[[#This Row],[TOTAL BRUTO]]-tbldados[[#This Row],[VALOR PAGO]] -> 0
A198: 197 | B198: GASTOS | C198: 01 DE 01 | D198: PGTO-NCARDPARTE2 | E198: JUNIOR | F198: GERAL | G198: AZUL | H198: CRÉDITO À VISTA | I198: 0 | J198: 44415 | K198: 44445 | L198: 972.48 | M198: 972.48 | N198: =tbldados[[#This Row],[TOTAL BRUTO]]-tbldados[[#This Row],[VALOR PAGO]] -> 0
A199: 198 | B199: GASTOS | C199: 01 DE 01 | D199: PGTO-PAGMAE | E199: JUNIOR | F199: GERAL | G199: AZUL | H199: CRÉDITO À VISTA | I199: 0 | J199: 44415 | K199: 44445 | L199: 517.73 | M199: 517.73 | N199: =tbldados[[#This Row],[TOTAL BRUTO]]-tbldados[[#This Row],[VALOR PAGO]] -> 0
A200: 199 | B200: GASTOS | C200: 01 DE 01 | D200: PGTO-PAGMAE | E200: JUNIOR | F200: GERAL | G200: NUBANK | H200: CRÉDITO À VISTA | I200: 0 | J200: 44417 | K200: 44452 | L200: 1562.77 | M200: 1562.77 | N200: =tbldados[[#This Row],[TOTAL BRUTO]]-tbldados[[#This Row],[VALOR PAGO]] -> 0
... 28 more rows

Sheet DADOS
A1: ID | B1: TIPO | C1: Nº DE PARCELAS | D1: DESCRIÇÃO | E1: REFERENTE | F1: APP | G1: CARTÃO | H1: FORMA | I1: TAXA | J1: DATA DA COMPRA | K1: VENCIMENTO | L1: VALOR PAGO | M1: VALOR
A2: 16 | B2: GASTOS | C2: 01 DE 12 | D2: PAGAMANTO-MEUPAG | E2: JUNIOR | F2: GERAL | G2: NUBANK_JUNIOR | H2: CRÉDITO PARCELADO | I2: 0 | J2: 44153 | K2: 44178 | M2: 101.98
A3: 17 | B3: GASTOS | C3: 02 DE 12 | D3: PAGAMANTO-MEUPAG | E3: JUNIOR | F3: GERAL | G3: NUBANK_JUNIOR | H3: CRÉDITO PARCELADO | I3: 0 | J3: 44153 | K3: 44209 | M3: 101.98
A4: 18 | B4: GASTOS | C4: 03 DE 12 | D4: PAGAMANTO-MEUPAG | E4: JUNIOR | F4: GERAL | G4: NUBANK_JUNIOR | H4: CRÉDITO PARCELADO | I4: 0 | J4: 44153 | K4: 44240 | M4: 101.98
A5: 19 | B5: GASTOS | C5: 04 DE 12 | D5: PAGAMANTO-MEUPAG | E5: JUNIOR | F5: GERAL | G5: NUBANK_JUNIOR | H5: CRÉDITO PARCELADO | I5: 0 | J5: 44153 | K5: 44268 | M5: 101.98
A6: 20 | B6: GASTOS | C6: 05 DE 12 | D6: PAGAMANTO-MEUPAG | E6: JUNIOR | F6: GERAL | G6: NUBANK_JUNIOR | H6: CRÉDITO PARCELADO | I6: 0 | J6: 44153 | K6: 44299 | M6: 101.98
A7: 21 | B7: GASTOS | C7: 06 DE 12 | D7: PAGAMANTO-MEUPAG | E7: JUNIOR | F7: GERAL | G7: NUBANK_JUNIOR | H7: CRÉDITO PARCELADO | I7: 0 | J7: 44153 | K7: 44329 | M7: 101.98
A8: 22 | B8: GASTOS | C8: 07 DE 12 | D8: PAGAMANTO-MEUPAG | E8: JUNIOR | F8: GERAL | G8: NUBANK_JUNIOR | H8: CRÉDITO PARCELADO | I8: 0 | J8: 44153 | K8: 44360 | M8: 101.98
A9: 23 | B9: GASTOS | C9: 08 DE 12 | D9: PAGAMANTO-MEUPAG | E9: JUNIOR | F9: GERAL | G9: NUBANK_JUNIOR | H9: CRÉDITO PARCELADO | I9: 0 | J9: 44153 | K9: 44390 | M9: 101.98
A10: 24 | B10: GASTOS | C10: 09 DE 12 | D10: PAGAMANTO-MEUPAG | E10: JUNIOR | F10: GERAL | G10: NUBANK_JUNIOR | H10: CRÉDITO PARCELADO | I10: 0 | J10: 44153 | K10: 44421 | M10: 101.98
A11: 25 | B11: GASTOS | C11: 10 DE 12 | D11: PAGAMANTO-MEUPAG | E11: JUNIOR | F11: GERAL | G11: NUBANK_JUNIOR | H11: CRÉDITO PARCELADO | I11: 0 | J11: 44153 | K11: 44452 | M11: 101.98
A12: 26 | B12: GASTOS | C12: 11 DE 12 | D12: PAGAMANTO-MEUPAG | E12: JUNIOR | F12: GERAL | G12: NUBANK_JUNIOR | H12: CRÉDITO PARCELADO | I12: 0 | J12: 44153 | K12: 44482 | M12: 101.98
A13: 27 | B13: GASTOS | C13: 12 DE 12 | D13: PAGAMANTO-MEUPAG | E13: JUNIOR | F13: GERAL | G13: NUBANK_JUNIOR | H13: CRÉDITO PARCELADO | I13: 0 | J13: 44153 | K13: 44513 | M13: 101.98
A14: 28 | B14: GASTOS | C14: 01 DE 12 | D14: ANUIDADE | E14: JUNIOR | F14: GERAL | G14: NCARD_JUNIOR | H14: CRÉDITO PARCELADO | I14: 0 | J14: 44197 | K14: 44236 | M14: 15.49
A15: 29 | B15: GASTOS | C15: 02 DE 12 | D15: ANUIDADE | E15: JUNIOR | F15: GERAL | G15: NCARD_JUNIOR | H15: CRÉDITO PARCELADO | I15: 0 | J15: 44197 | K15: 44264 | M15: 15.49
A16: 30 | B16: GASTOS | C16: 03 DE 12 | D16: ANUIDADE | E16: JUNIOR | F16: GERAL | G16: NCARD_JUNIOR | H16: CRÉDITO PARCELADO | I16: 0 | J16: 44197 | K16: 44295 | M16: 15.49
A17: 31 | B17: GASTOS | C17: 04 DE 12 | D17: ANUIDADE | E17: JUNIOR | F17: GERAL | G17: NCARD_JUNIOR | H17: CRÉDITO PARCELADO | I17: 0 | J17: 44197 | K17: 44325 | M17: 15.49
A18: 32 | B18: GASTOS | C18: 05 DE 12 | D18: ANUIDADE | E18: JUNIOR | F18: GERAL | G18: NCARD_JUNIOR | H18: CRÉDITO PARCELADO | I18: 0 | J18: 44197 | K18: 44356 | M18: 15.49
A19: 33 | B19: GASTOS | C19: 06 DE 12 | D19: ANUIDADE | E19: JUNIOR | F19: GERAL | G19: NCARD_JUNIOR | H19: CRÉDITO PARCELADO | I19: 0 | J19: 44197 | K19: 44386 | M19: 15.49
A20: 34 | B20: GASTOS | C20: 07 DE 12 | D20: ANUIDADE | E20: JUNIOR | F20: GERAL | G20: NCARD_JUNIOR | H20: CRÉDITO PARCELADO | I20: 0 | J20: 44197 | K20: 44417 | M20: 15.49
A21: 35 | B21: GASTOS | C21: 08 DE 12 | D21: ANUIDADE | E21: JUNIOR | F21: GERAL | G21: NCARD_JUNIOR | H21: CRÉDITO PARCELADO | I21: 0 | J21: 44197 | K21: 44448 | M21: 15.49
A22: 36 | B22: GASTOS | C22: 09 DE 12 | D22: ANUIDADE | E22: JUNIOR | F22: GERAL | G22: NCARD_JUNIOR | H22: CRÉDITO PARCELADO | I22: 0 | J22: 44197 | K22: 44478 | M22: 15.49
A23: 37 | B23: GASTOS | C23: 10 DE 12 | D23: ANUIDADE | E23: JUNIOR | F23: GERAL | G23: NCARD_JUNIOR | H23: CRÉDITO PARCELADO | I23: 0 | J23: 44197 | K23: 44509 | M23: 15.49
A24: 38 | B24: GASTOS | C24: 11 DE 12 | D24: ANUIDADE | E24: JUNIOR | F24: GERAL | G24: NCARD_JUNIOR | H24: CRÉDITO PARCELADO | I24: 0 | J24: 44197 | K24: 44539 | M24: 15.49
A25: 39 | B25: GASTOS | C25: 12 DE 12 | D25: ANUIDADE | E25: JUNIOR | F25: GERAL | G25: NCARD_JUNIOR | H25: CRÉDITO PARCELADO | I25: 0 | J25: 44197 | K25: 44570 | M25: 15.49
A26: 40 | B26: GASTOS | C26: 01 DE 12 | D26: AMAZON | E26: JUNIOR | F26: GERAL | G26: INTER_JUNIOR | H26: CRÉDITO PARCELADO | I26: 0 | J26: 44197 | K26: 44211 | M26: 9.9
A27: 41 | B27: GASTOS | C27: 02 DE 12 | D27: AMAZON | E27: JUNIOR | F27: GERAL | G27: INTER_JUNIOR | H27: CRÉDITO PARCELADO | I27: 0 | J27: 44197 | K27: 44242 | M27: 9.9
A28: 42 | B28: GASTOS | C28: 03 DE 12 | D28: AMAZON | E28: JUNIOR | F28: GERAL | G28: INTER_JUNIOR | H28: CRÉDITO PARCELADO | I28: 0 | J28: 44197 | K28: 44270 | M28: 9.9
A29: 43 | B29: GASTOS | C29: 04 DE 12 | D29: AMAZON | E29: JUNIOR | F29: GERAL | G29: INTER_JUNIOR | H29: CRÉDITO PARCELADO | I29: 0 | J29: 44197 | K29: 44301 | M29: 9.9
A30: 44 | B30: GASTOS | C30: 05 DE 12 | D30: AMAZON | E30: JUNIOR | F30: GERAL | G30: INTER_JUNIOR | H30: CRÉDITO PARCELADO | I30: 0 | J30: 44197 | K30: 44331 | M30: 9.9
A31: 45 | B31: GASTOS | C31: 06 DE 12 | D31: AMAZON | E31: JUNIOR | F31: GERAL | G31: INTER_JUNIOR | H31: CRÉDITO PARCELADO | I31: 0 | J31: 44197 | K31: 44362 | M31: 9.9
A32: 46 | B32: GASTOS | C32: 07 DE 12 | D32: AMAZON | E32: JUNIOR | F32: GERAL | G32: INTER_JUNIOR | H32: CRÉDITO PARCELADO | I32: 0 | J32: 44197 | K32: 44392 | M32: 9.9
A33: 47 | B33: GASTOS | C33: 08 DE 12 | D33: AMAZON | E33: JUNIOR | F33: GERAL | G33: INTER_JUNIOR | H33: CRÉDITO PARCELADO | I33: 0 | J33: 44197 | K33: 44423 | M33: 9.9
A34: 48 | B34: GASTOS | C34: 09 DE 12 | D34: AMAZON | E34: JUNIOR | F34: GERAL | G34: INTER_JUNIOR | H34: CRÉDITO PARCELADO | I34: 0 | J34: 44197 | K34: 44454 | M34: 9.9
A35: 49 | B35: GASTOS | C35: 10 DE 12 | D35: AMAZON | E35: JUNIOR | F35: GERAL | G35: INTER_JUNIOR | H35: CRÉDITO PARCELADO | I35: 0 | J35: 44197 | K35: 44484 | M35: 9.9
A36: 50 | B36: GASTOS | C36: 11 DE 12 | D36: AMAZON | E36: JUNIOR | F36: GERAL | G36: INTER_JUNIOR | H36: CRÉDITO PARCELADO | I36: 0 | J36: 44197 | K36: 44515 | M36: 9.9
A37: 51 | B37: GASTOS | C37: 12 DE 12 | D37: AMAZON | E37: JUNIOR | F37: GERAL | G37: INTER_JUNIOR | H37: CRÉDITO PARCELADO | I37: 0 | J37: 44197 | K37: 44545 | M37: 9.9
A38: 52 | B38: GASTOS | C38: 01 DE 10 | D38: FOGÃO | E38: JUNIOR | F38: GERAL | G38: CLICK_JUNIOR | H38: CRÉDITO PARCELADO | I38: 0 | J38: 44204 | K38: 44244 | M38: 77
A39: 53 | B39: GASTOS | C39: 02 DE 10 | D39: FOGÃO | E39: JUNIOR | F39: GERAL | G39: CLICK_JUNIOR | H39: CRÉDITO PARCELADO | I39: 0 | J39: 44204 | K39: 44272 | M39: 77
A40: 54 | B40: GASTOS | C40: 03 DE 10 | D40: FOGÃO | E40: JUNIOR | F40: GERAL | G40: CLICK_JUNIOR | H40: CRÉDITO PARCELADO | I40: 0 | J40: 44204 | K40: 44303 | M40: 77
A41: 55 | B41: GASTOS | C41: 04 DE 10 | D41: FOGÃO | E41: JUNIOR | F41: GERAL | G41: CLICK_JUNIOR | H41: CRÉDITO PARCELADO | I41: 0 | J41: 44204 | K41: 44333 | M41: 77
A42: 56 | B42: GASTOS | C42: 05 DE 10 | D42: FOGÃO | E42: JUNIOR | F42: GERAL | G42: CLICK_JUNIOR | H42: CRÉDITO PARCELADO | I42: 0 | J42: 44204 | K42: 44364 | M42: 77
A43: 57 | B43: GASTOS | C43: 06 DE 10 | D43: FOGÃO | E43: JUNIOR | F43: GERAL | G43: CLICK_JUNIOR | H43: CRÉDITO PARCELADO | I43: 0 | J43: 44204 | K43: 44394 | M43: 77
A44: 58 | B44: GASTOS | C44: 07 DE 10 | D44: FOGÃO | E44: JUNIOR | F44: GERAL | G44: CLICK_JUNIOR | H44: CRÉDITO PARCELADO | I44: 0 | J44: 44204 | K44: 44425 | M44: 77
A45: 59 | B45: GASTOS | C45: 08 DE 10 | D45: FOGÃO | E45: JUNIOR | F45: GERAL | G45: CLICK_JUNIOR | H45: CRÉDITO PARCELADO | I45: 0 | J45: 44204 | K45: 44456 | M45: 77
A46: 60 | B46: GASTOS | C46: 09 DE 10 | D46: FOGÃO | E46: JUNIOR | F46: GERAL | G46: CLICK_JUNIOR | H46: CRÉDITO PARCELADO | I46: 0 | J46: 44204 | K46: 44486 | M46: 77
A47: 61 | B47: GASTOS | C47: 10 DE 10 | D47: FOGÃO | E47: JUNIOR | F47: GERAL | G47: CLICK_JUNIOR | H47: CRÉDITO PARCELADO | I47: 0 | J47: 44204 | K47: 44517 | M47: 77
A48: 62 | B48: GASTOS | C48: 01 DE 10 | D48: TINTA | E48: JUNIOR | F48: GERAL | G48: CLICK_JUNIOR | H48: CRÉDITO À VISTA | I48: 0 | J48: 44205 | K48: 44244 | M48: 12.39
A49: 63 | B49: GASTOS | C49: 02 DE 10 | D49: TINTA | E49: JUNIOR | F49: GERAL | G49: CLICK_JUNIOR | H49: CRÉDITO À VISTA | I49: 0 | J49: 44205 | K49: 44272 | M49: 12.39
A50: 64 | B50: GASTOS | C50: 03 DE 10 | D50: TINTA | E50: JUNIOR | F50: GERAL | G50: CLICK_JUNIOR | H50: CRÉDITO À VISTA | I50: 0 | J50: 44205 | K50: 44303 | M50: 12.39
A51: 65 | B51: GASTOS | C51: 04 DE 10 | D51: TINTA | E51: JUNIOR | F51: GERAL | G51: CLICK_JUNIOR | H51: CRÉDITO À VISTA | I51: 0 | J51: 44205 | K51: 44333 | M51: 12.39
A52: 66 | B52: GASTOS | C52: 05 DE 10 | D52: TINTA | E52: JUNIOR | F52: GERAL | G52: CLICK_JUNIOR | H52: CRÉDITO À VISTA | I52: 0 | J52: 44205 | K52: 44364 | M52: 12.39
A53: 67 | B53: GASTOS | C53: 06 DE 10 | D53: TINTA | E53: JUNIOR | F53: GERAL | G53: CLICK_JUNIOR | H53: CRÉDITO À VISTA | I53: 0 | J53: 44205 | K53: 44394 | M53: 12.39
A54: 68 | B54: GASTOS | C54: 07 DE 10 | D54: TINTA | E54: JUNIOR | F54: GERAL | G54: CLICK_JUNIOR | H54: CRÉDITO À VISTA | I54: 0 | J54: 44205 | K54: 44425 | M54: 12.39
A55: 69 | B55: GASTOS | C55: 08 DE 10 | D55: TINTA | E55: JUNIOR | F55: GERAL | G55: CLICK_JUNIOR | H55: CRÉDITO À VISTA | I55: 0 | J55: 44205 | K55: 44456 | M55: 12.39
A56: 70 | B56: GASTOS | C56: 09 DE 10 | D56: TINTA | E56: JUNIOR | F56: GERAL | G56: CLICK_JUNIOR | H56: CRÉDITO À VISTA | I56: 0 | J56: 44205 | K56: 44486 | M56: 12.39
A57: 71 | B57: GASTOS | C57: 10 DE 10 | D57: TINTA | E57: JUNIOR | F57: GERAL | G57: CLICK_JUNIOR | H57: CRÉDITO À VISTA | I57: 0 | J57: 44205 | K57: 44517 | M57: 12.39
A58: 72 | B58: GASTOS | C58: 01 DE 10 | D58: FONE DE OUVIDO | E58: JUNIOR | F58: GERAL | G58: MELIUZ_JUNIOR | H58: CRÉDITO PARCELADO | I58: 0 | J58: 44213 | K58: 44228 | M58: 25.09
A59: 73 | B59: GASTOS | C59: 02 DE 10 | D59: FONE DE OUVIDO | E59: JUNIOR | F59: GERAL | G59: MELIUZ_JUNIOR | H59: CRÉDITO PARCELADO | I59: 0 | J59: 44213 | K59: 44256 | M59: 25.09
A60: 74 | B60: GASTOS | C60: 03 DE 10 | D60: FONE DE OUVIDO | E60: JUNIOR | F60: GERAL | G60: MELIUZ_JUNIOR | H60: CRÉDITO PARCELADO | I60: 0 | J60: 44213 | K60: 44287 | M60: 25.09
A61: 75 | B61: GASTOS | C61: 04 DE 10 | D61: FONE DE OUVIDO | E61: JUNIOR | F61: GERAL | G61: MELIUZ_JUNIOR | H61: CRÉDITO PARCELADO | I61: 0 | J61: 44213 | K61: 44317 | M61: 25.09
A62: 76 | B62: GASTOS | C62: 05 DE 10 | D62: FONE DE OUVIDO | E62: JUNIOR | F62: GERAL | G62: MELIUZ_JUNIOR | H62: CRÉDITO PARCELADO | I62: 0 | J62: 44213 | K62: 44348 | M62: 25.09
A63: 77 | B63: GASTOS | C63: 06 DE 10 | D63: FONE DE OUVIDO | E63: JUNIOR | F63: GERAL | G63: MELIUZ_JUNIOR | H63: CRÉDITO PARCELADO | I63: 0 | J63: 44213 | K63: 44378 | M63: 25.09
A64: 78 | B64: GASTOS | C64: 07 DE 10 | D64: FONE DE OUVIDO | E64: JUNIOR | F64: GERAL | G64: MELIUZ_JUNIOR | H64: CRÉDITO PARCELADO | I64: 0 | J64: 44213 | K64: 44409 | M64: 25.09
A65: 79 | B65: GASTOS | C65: 08 DE 10 | D65: FONE DE OUVIDO | E65: JUNIOR | F65: GERAL | G65: MELIUZ_JUNIOR | H65: CRÉDITO PARCELADO | I65: 0 | J65: 44213 | K65: 44440 | M65: 25.09
A66: 80 | B66: GASTOS | C66: 09 DE 10 | D66: FONE DE OUVIDO | E66: JUNIOR | F66: GERAL | G66: MELIUZ_JUNIOR | H66: CRÉDITO PARCELADO | I66: 0 | J66: 44213 | K66: 44470 | M66: 25.09
A67: 81 | B67: GASTOS | C67: 10 DE 10 | D67: FONE DE OUVIDO | E67: JUNIOR | F67: GERAL | G67: MELIUZ_JUNIOR | H67: CRÉDITO PARCELADO | I67: 0 | J67: 44213 | K67: 44501 | M67: 25.09
A68: 82 | B68: GASTOS | C68: 01 DE 07 | D68: CELULAR | E68: JUNIOR | F68: GERAL | G68: LATAM_JUNIOR | H68: CRÉDITO PARCELADO | I68: 0 | J68: 44250 | K68: 44280 | M68: 105.44
A69: 83 | B69: GASTOS | C69: 02 DE 07 | D69: CELULAR | E69: JUNIOR | F69: GERAL | G69: LATAM_JUNIOR | H69: CRÉDITO PARCELADO | I69: 0 | J69: 44250 | K69: 44311 | M69: 105.44
A70: 84 | B70: GASTOS | C70: 03 DE 07 | D70: CELULAR | E70: JUNIOR | F70: GERAL | G70: LATAM_JUNIOR | H70: CRÉDITO PARCELADO | I70: 0 | J70: 44250 | K70: 44341 | M70: 105.44
A71: 85 | B71: GASTOS | C71: 04 DE 07 | D71: CELULAR | E71: JUNIOR | F71: GERAL | G71: LATAM_JUNIOR | H71: CRÉDITO PARCELADO | I71: 0 | J71: 44250 | K71: 44372 | M71: 105.44
A72: 86 | B72: GASTOS | C72: 05 DE 07 | D72: CELULAR | E72: JUNIOR | F72: GERAL | G72: LATAM_JUNIOR | H72: CRÉDITO PARCELADO | I72: 0 | J72: 44250 | K72: 44402 | M72: 105.44
A73: 87 | B73: GASTOS | C73: 06 DE 07 | D73: CELULAR | E73: JUNIOR | F73: GERAL | G73: LATAM_JUNIOR | H73: CRÉDITO PARCELADO | I73: 0 | J73: 44250 | K73: 44433 | M73: 105.44
A74: 88 | B74: GASTOS | C74: 07 DE 07 | D74: CELULAR | E74: JUNIOR | F74: GERAL | G74: LATAM_JUNIOR | H74: CRÉDITO PARCELADO | I74: 0 | J74: 44250 | K74: 44464 | M74: 105.44
A75: 89 | B75: GASTOS | C75: 01 DE 03 | D75: ROUPAS | E75: JUNIOR | F75: GERAL | G75: CLICK_JUNIOR | H75: CRÉDITO PARCELADO | I75: 0 | J75: 44301 | K75: 44333 | M75: 111.66
A76: 90 | B76: GASTOS | C76: 02 DE 03 | D76: ROUPAS | E76: JUNIOR | F76: GERAL | G76: CLICK_JUNIOR | H76: CRÉDITO PARCELADO | I76: 0 | J76: 44301 | K76: 44364 | M76: 111.66
A77: 91 | B77: GASTOS | C77: 03 DE 03 | D77: ROUPAS | E77: JUNIOR | F77: GERAL | G77: CLICK_JUNIOR | H77: CRÉDITO PARCELADO | I77: 0 | J77: 44301 | K77: 44394 | M77: 111.66
A78: 92 | B78: GASTOS | C78: 01 DE 06 | D78: GARRAFAS | E78: JUNIOR | F78: GERAL | G78: INTER_JUNIOR | H78: CRÉDITO PARCELADO | I78: 0 | J78: 44328 | K78: 44331 | M78: 36.45
A79: 93 | B79: GASTOS | C79: 02 DE 06 | D79: GARRAFAS | E79: JUNIOR | F79: GERAL | G79: INTER_JUNIOR | H79: CRÉDITO PARCELADO | I79: 0 | J79: 44328 | K79: 44362 | M79: 36.45
A80: 94 | B80: GASTOS | C80: 03 DE 06 | D80: GARRAFAS | E80: JUNIOR | F80: GERAL | G80: INTER_JUNIOR | H80: CRÉDITO PARCELADO | I80: 0 | J80: 44328 | K80: 44392 | M80: 36.45
A81: 95 | B81: GASTOS | C81: 04 DE 06 | D81: GARRAFAS | E81: JUNIOR | F81: GERAL | G81: INTER_JUNIOR | H81: CRÉDITO PARCELADO | I81: 0 | J81: 44328 | K81: 44423 | M81: 36.44
A82: 96 | B82: GASTOS | C82: 05 DE 06 | D82: GARRAFAS | E82: JUNIOR | F82: GERAL | G82: INTER_JUNIOR | H82: CRÉDITO PARCELADO | I82: 0 | J82: 44328 | K82: 44454 | M82: 36.44
A83: 97 | B83: GASTOS | C83: 06 DE 06 | D83: GARRAFAS | E83: JUNIOR | F83: GERAL | G83: INTER_JUNIOR | H83: CRÉDITO PARCELADO | I83: 0 | J83: 44328 | K83: 44484 | M83: 36.45
A84: 98 | B84: GASTOS | C84: 01 DE 10 | D84: NOTEBOOK | E84: JUNIOR | F84: GERAL | G84: INTER_JUNIOR | H84: CRÉDITO PARCELADO | I84: 0 | J84: 44330 | K84: 44362 | M84: 349.9
A85: 99 | B85: GASTOS | C85: 02 DE 10 | D85: NOTEBOOK | E85: JUNIOR | F85: GERAL | G85: INTER_JUNIOR | H85: CRÉDITO PARCELADO | I85: 0 | J85: 44330 | K85: 44392 | M85: 349.9
A86: 100 | B86: GASTOS | C86: 03 DE 10 | D86: NOTEBOOK | E86: JUNIOR | F86: GERAL | G86: INTER_JUNIOR | H86: CRÉDITO PARCELADO | I86: 0 | J86: 44330 | K86: 44423 | M86: 349.9
A87: 101 | B87: GASTOS | C87: 04 DE 10 | D87: NOTEBOOK | E87: JUNIOR | F87: GERAL | G87: INTER_JUNIOR | H87: CRÉDITO PARCELADO | I87: 0 | J87: 44330 | K87: 44454 | M87: 349.9
A88: 102 | B88: GASTOS | C88: 05 DE 10 | D88: NOTEBOOK | E88: JUNIOR | F88: GERAL | G88: INTER_JUNIOR | H88: CRÉDITO PARCELADO | I88: 0 | J88: 44330 | K88: 44484 | M88: 349.9
A89: 103 | B89: GASTOS | C89: 06 DE 10 | D89: NOTEBOOK | E89: JUNIOR | F89: GERAL | G89: INTER_JUNIOR | H89: CRÉDITO PARCELADO | I89: 0 | J89: 44330 | K89: 44515 | M89: 349.9
A90: 104 | B90: GASTOS | C90: 07 DE 10 | D90: NOTEBOOK | E90: JUNIOR | F90: GERAL | G90: INTER_JUNIOR | H90: CRÉDITO PARCELADO | I90: 0 | J90: 44330 | K90: 44545 | M90: 349.9
A91: 105 | B91: GASTOS | C91: 08 DE 10 | D91: NOTEBOOK | E91: JUNIOR | F91: GERAL | G91: INTER_JUNIOR | H91: CRÉDITO PARCELADO | I91: 0 | J91: 44330 | K91: 44576 | M91: 349.9
A92: 106 | B92: GASTOS | C92: 09 DE 10 | D92: NOTEBOOK | E92: JUNIOR | F92: GERAL | G92: INTER_JUNIOR | H92: CRÉDITO PARCELADO | I92: 0 | J92: 44330 | K92: 44607 | M92: 349.9
A93: 107 | B93: GASTOS | C93: 10 DE 10 | D93: NOTEBOOK | E93: JUNIOR | F93: GERAL | G93: INTER_JUNIOR | H93: CRÉDITO PARCELADO | I93: 0 | J93: 44330 | K93: 44635 | M93: 349.9
A94: 108 | B94: GASTOS | C94: 01 DE 02 | D94: FARMACIA | E94: JUNIOR | F94: GERAL | G94: INTER_JUNIOR | H94: CRÉDITO PARCELADO | I94: 0 | J94: 44341 | K94: 44362 | M94: 47.48
A95: 109 | B95: GASTOS | C95: 02 DE 02 | D95: FARMACIA | E95: JUNIOR | F95: GERAL | G95: INTER_JUNIOR | H95: CRÉDITO PARCELADO | I95: 0 | J95: 44341 | K95: 44392 | M95: 47.48
A96: 110 | B96: GASTOS | C96: 01 DE 03 | D96: SUPERMERCADO | E96: JUNIOR | F96: GERAL | G96: INTER_JUNIOR | H96: CRÉDITO À VISTA | I96: 0 | J96: 44343 | K96: 44362 | M96: 64.8
A97: 111 | B97: GASTOS | C97: 02 DE 03 | D97: SUPERMERCADO | E97: JUNIOR | F97: GERAL | G97: INTER_JUNIOR | H97: CRÉDITO À VISTA | I97: 0 | J97: 44343 | K97: 44392 | M97: 64.8
A98: 112 | B98: GASTOS | C98: 03 DE 03 | D98: SUPERMERCADO | E98: JUNIOR | F98: GERAL | G98: INTER_JUNIOR | H98: CRÉDITO À VISTA | I98: 0 | J98: 44343 | K98: 44423 | M98: 64.8
A99: 113 | B99: GASTOS | C99: 01 DE 02 | D99: FARMACIA | E99: JUNIOR | F99: GERAL | G99: NUBANK_JUNIOR | H99: CRÉDITO PARCELADO | I99: 0 | J99: 44345 | K99: 44360 | M99: 35.96
A100: 114 | B100: GASTOS | C100: 02 DE 02 | D100: FARMACIA | E100: JUNIOR | F100: GERAL | G100: NUBANK_JUNIOR | H100: CRÉDITO PARCELADO | I100: 0 | J100: 44345 | K100: 44390 | M100: 35.96
A101: 115 | B101: GASTOS | C101: 01 DE 01 | D101: PAGAMENTO-INTER | E101: JUNIOR | F101: GERAL | G101: MELIUZ_JUNIOR | H101: CRÉDITO À VISTA | I101: 0 | J101: 44347 | K101: 44378 | M101: 264.8
A102: 116 | B102: GASTOS | C102: 01 DE 01 | D102: PAGAMENTO-INTER | E102: JUNIOR | F102: GERAL | G102: AZUL_JUNIOR | H102: CRÉDITO À VISTA | I102: 0 | J102: 44351 | K102: 44383 | M102: 648
A103: 117 | B103: GASTOS | C103: 01 DE 01 | D103: VOKERE | E103: JUNIOR | F103: GERAL | G103: INTER_JUNIOR | H103: CRÉDITO À VISTA | I103: 0 | J103: 44352 | K103: 44362 | M103: 32
A104: 118 | B104: GASTOS | C104: 01 DE 01 | D104: PAGAMENTO-PAGMAE | E104: JUNIOR | F104: GERAL | G104: INTER_JUNIOR | H104: CRÉDITO À VISTA | I104: 0 | J104: 44354 | K104: 44362 | M104: 2664.88
A105: 119 | B105: GASTOS | C105: 01 DE 01 | D105: COMBUSTIVEL | E105: JUNIOR | F105: GERAL | G105: NUBANK_JUNIOR | H105: CRÉDITO À VISTA | I105: 0 | J105: 44355 | K105: 44390 | M105: 20.65
A106: 120 | B106: GASTOS | C106: 01 DE 01 | D106: PAGAMENTO-NCARD | E106: JUNIOR | F106: GERAL | G106: AZUL_JUNIOR | H106: CRÉDITO À VISTA | I106: 0 | J106: 44356 | K106: 44383 | M106: 835
A107: 121 | B107: GASTOS | C107: 01 DE 01 | D107: CERVEJA | E107: JUNIOR | F107: GERAL | G107: MELIUZ_JUNIOR | H107: CRÉDITO À VISTA | I107: 0 | J107: 44357 | K107: 44378 | M107: 8
A108: 122 | B108: GASTOS | C108: 01 DE 01 | D108: PAGAMENTO-NCARD | E108: JUNIOR | F108: GERAL | G108: AZUL_JUNIOR | H108: CRÉDITO À VISTA | I108: 0 | J108: 44357 | K108: 44383 | M108: 664.5
A109: 123 | B109: GASTOS | C109: 01 DE 01 | D109: MATERIAIS P/ CASA | E109: JUNIOR | F109: GERAL | G109: MELIUZ_JUNIOR | H109: CRÉDITO À VISTA | I109: 0 | J109: 44358 | K109: 44378 | M109: 86
A110: 124 | B110: GASTOS | C110: 01 DE 03 | D110: SUPERMERCADO-CERVEJA | E110: JUNIOR | F110: GERAL | G110: MELIUZ_JUNIOR | H110: CRÉDITO PARCELADO | I110: 0 | J110: 44358 | K110: 44378 | M110: 35.13
A111: 125 | B111: GASTOS | C111: 02 DE 03 | D111: SUPERMERCADO-CERVEJA | E111: JUNIOR | F111: GERAL | G111: MELIUZ_JUNIOR | H111: CRÉDITO PARCELADO | I111: 0 | J111: 44358 | K111: 44409 | M111: 35.13
A112: 126 | B112: GASTOS | C112: 03 DE 03 | D112: SUPERMERCADO-CERVEJA | E112: JUNIOR | F112: GERAL | G112: MELIUZ_JUNIOR | H112: CRÉDITO PARCELADO | I112: 0 | J112: 44358 | K112: 44440 | M112: 35.13
A113: 127 | B113: GASTOS | C113: 01 DE 01 | D113: PAGAMENTO-LUCAS | E113: JUNIOR | F113: GERAL | G113: NCARD_JUNIOR | H113: CRÉDITO À VISTA | I113: 0 | J113: 44358 | K113: 44386 | M113: 774.53
A114: 128 | B114: GASTOS | C114: 01 DE 01 | D114: SUPERMERCADO | E114: JUNIOR | F114: GERAL | G114: MELIUZ_JUNIOR | H114: CRÉDITO À VISTA | I114: 0 | J114: 44359 | K114: 44378 | M114: 31.93
A115: 129 | B115: GASTOS | C115: 01 DE 01 | D115: LANCHE-PIZZA | E115: JUNIOR | F115: GERAL | G115: MELIUZ_JUNIOR | H115: CRÉDITO À VISTA | I115: 0 | J115: 44359 | K115: 44378 | M115: 20
A116: 130 | B116: GASTOS | C116: 01 DE 01 | D116: PIZZA | E116: JUNIOR | F116: GERAL | G116: NUBANK_JUNIOR | H116: CRÉDITO À VISTA | I116: 0 | J116: 44359 | K116: 44390 | M116: 39
A117: 131 | B117: GASTOS | C117: 01 DE 01 | D117: PAGAMENTO-CLICK | E117: JUNIOR | F117: GERAL | G117: NUBANK_JUNIOR | H117: CRÉDITO À VISTA | I117: 0 | J117: 44364 | K117: 44390 | M117: 1713.15
A118: 132 | B118: GASTOS | C118: 01 DE 01 | D118: PAGAMENTO-PAGJR | E118: JUNIOR | F118: GERAL | G118: CLICK_JUNIOR | H118: CRÉDITO À VISTA | I118: 0 | J118: 44364 | K118: 44394 | M118: 1740.53
A119: 133 | B119: GASTOS | C119: 01 DE 01 | D119: PAGAMENTOPAGJR2 | E119: JUNIOR | F119: GERAL | G119: PAG_JUNIOR | H119: CRÉDITO À VISTA | I119: 0 | J119: 44365 | K119: 44397 | M119: 509.29
A120: 134 | B120: GASTOS | C120: 01 DE 01 | D120: PAGAMENTO-GOLDPARTE1 | E120: JUNIOR | F120: GERAL | G120: PAG_JUNIOR | H120: CRÉDITO À VISTA | I120: 0 | J120: 44368 | K120: 44397 | M120: 1545.9
A121: 135 | B121: GASTOS | C121: 01 DE 01 | D121: TELEFONE-FATURA | E121: JUNIOR | F121: GERAL | G121: PAG_JUNIOR | H121: CRÉDITO À VISTA | I121: 0 | J121: 44369 | K121: 44397 | M121: 43
A122: 136 | B122: GASTOS | C122: 01 DE 01 | D122: PAGAMANTO-GOLDPART2 | E122: JUNIOR | F122: GERAL | G122: GOLD_JUNIOR | H122: CRÉDITO À VISTA | I122: 0 | J122: 44370 | K122: 44400 | M122: 1029.9
A123: 137 | B123: GASTOS | C123: 01 DE 01 | D123: PAGAMENTO-PASS | E123: JUNIOR | F123: GERAL | G123: LATAM_JUNIOR | H123: CRÉDITO À VISTA | I123: 0 | J123: 44372 | K123: 44402 | M123: 1355.35
A124: 138 | B124: GASTOS | C124: 01 DE 01 | D124: PAGAMENTO-INTER-ZERO | E124: JUNIOR | F124: GERAL | G124: NCARD_JUNIOR | H124: CRÉDITO À VISTA | I124: 0 | J124: 44375 | K124: 44386 | M124: 786.17
A125: 139 | B125: GASTOS | C125: 01 DE 01 | D125: PAGAMENTO-INTER-ZERO2 | E125: JUNIOR | F125: GERAL | G125: NUBANK_JUNIOR | H125: CRÉDITO À VISTA | I125: 0 | J125: 44375 | K125: 44390 | M125: 786.17
A126: 140 | B126: GASTOS | C126: 01 DE 06 | D126: COPO STANLEY | E126: JUNIOR | F126: GERAL | G126: NUBANK_JUNIOR | H126: CRÉDITO PARCELADO | I126: 0 | J126: 44376 | K126: 44390 | M126: 46.67
A127: 141 | B127: GASTOS | C127: 02 DE 06 | D127: COPO STANLEY | E127: JUNIOR | F127: GERAL | G127: NUBANK_JUNIOR | H127: CRÉDITO PARCELADO | I127: 0 | J127: 44376 | K127: 44421 | M127: 46.67
A128: 142 | B128: GASTOS | C128: 03 DE 06 | D128: COPO STANLEY | E128: JUNIOR | F128: GERAL | G128: NUBANK_JUNIOR | H128: CRÉDITO PARCELADO | I128: 0 | J128: 44376 | K128: 44452 | M128: 46.67
A129: 143 | B129: GASTOS | C129: 04 DE 06 | D129: COPO STANLEY | E129: JUNIOR | F129: GERAL | G129: NUBANK_JUNIOR | H129: CRÉDITO PARCELADO | I129: 0 | J129: 44376 | K129: 44482 | M129: 46.67
A130: 144 | B130: GASTOS | C130: 05 DE 06 | D130: COPO STANLEY | E130: JUNIOR | F130: GERAL | G130: NUBANK_JUNIOR | H130: CRÉDITO PARCELADO | I130: 0 | J130: 44376 | K130: 44513 | M130: 46.67
A131: 145 | B131: GASTOS | C131: 06 DE 06 | D131: COPO STANLEY | E131: JUNIOR | F131: GERAL | G131: NUBANK_JUNIOR | H131: CRÉDITO PARCELADO | I131: 0 | J131: 44376 | K131: 44543 | M131: 46.67
A132: 146 | B132: GASTOS | C132: 01 DE 03 | D132: SUPERMERCADO | E132: JUNIOR | F132: GERAL | G132: NUBANK_JUNIOR | H132: CRÉDITO PARCELADO | I132: 0 | J132: 44376 | K132: 44390 | M132: 75
A133: 147 | B133: GASTOS | C133: 02 DE 03 | D133: SUPERMERCADO | E133: JUNIOR | F133: GERAL | G133: NUBANK_JUNIOR | H133: CRÉDITO PARCELADO | I133: 0 | J133: 44376 | K133: 44421 | M133: 75
A134: 148 | B134: GASTOS | C134: 03 DE 03 | D134: SUPERMERCADO | E134: JUNIOR | F134: GERAL | G134: NUBANK_JUNIOR | H134: CRÉDITO PARCELADO | I134: 0 | J134: 44376 | K134: 44452 | M134: 75
A135: 149 | B135: GASTOS | C135: 01 DE 01 | D135: CERVEJA | E135: JUNIOR | F135: GERAL | G135: INTER_JUNIOR | H135: CRÉDITO À VISTA | I135: 0 | J135: 44376 | K135: 44392 | M135: 31.08
A136: 150 | B136: GASTOS | C136: 01 DE 01 | D136: PAGAMENTOPICPAY-SANTANDER | E136: JUNIOR | F136: GERAL | G136: ZERO_JUNIOR | H136: CRÉDITO À VISTA | I136: 0 | J136: 44378 | K136: 44403 | M136: 1535.22
A137: 151 | B137: GASTOS | C137: 01 DE 01 | D137: LANCHE | E137: JUNIOR | F137: GERAL | G137: PAG_JUNIOR | H137: CRÉDITO À VISTA | I137: 0 | J137: 44379 | K137: 44397 | M137: 58
A138: 152 | B138: GASTOS | C138: 01 DE 01 | D138: PAGAMENTO-RPAY-AZUL8403 | E138: JUNIOR | F138: GERAL | G138: LATAM_JUNIOR | H138: CRÉDITO À VISTA | I138: 0 | J138: 44381 | K138: 44402 | M138: 711.66
A139: 153 | B139: GASTOS | C139: 01 DE 01 | D139: PAGAMENTOPAGMAE-RPAY | E139: JUNIOR | F139: GERAL | G139: AZUL_JUNIOR | H139: CRÉDITO À VISTA | I139: 0 | J139: 44382 | K139: 44414 | M139: 695.66
A140: 154 | B140: GASTOS | C140: 01 DE 01 | D140: PAGAMENTOS-PAGMAE2 | E140: JUNIOR | F140: GERAL | G140: AZUL_JUNIOR | H140: CRÉDITO À VISTA | I140: 0 | J140: 44384 | K140: 44414 | M140: 1440
A141: 155 | B141: GASTOS | C141: 01 DE 01 | D141: PAGAMENTO-NUJRPARTE1 | E141: JUNIOR | F141: GERAL | G141: NCARD_JUNIOR | H141: CRÉDITO À VISTA | I141: 0 | J141: 44389 | K141: 44417 | M141: 1580.9
A142: 156 | B142: GASTOS | C142: 01 DE 01 | D142: PAGAMENTO-NUJRPARTE2 | E142: JUNIOR | F142: GERAL | G142: LATAM_JUNIOR | H142: CRÉDITO À VISTA | I142: 0 | J142: 44389 | K142: 44402 | M142: 1207.04
A143: 157 | B143: GASTOS | C143: 01 DE 01 | D143: PAGAMENTO-INTERPARTE1 | E143: JUNIOR | F143: GERAL | G143: NUBANK_JUNIOR | H143: CRÉDITO À VISTA | I143: 0 | J143: 44389 | K143: 44421 | M143: 2159.63
A144: 158 | B144: GASTOS | C144: 01 DE 01 | D144: PAGAMENTO-INTER | E144: JUNIOR | F144: GERAL | G144: INTER_JUNIOR | H144: CRÉDITO À VISTA | I144: 0 | J144: 44392 | K144: 44423 | M144: 205.98
A145: 159 | B145: GASTOS | C145: 01 DE 01 | D145: PAGAMENTO-INTER | E145: JUNIOR | F145: GERAL | G145: MELIUZ_JUNIOR | H145: CRÉDITO À VISTA | I145: 0 | J145: 44392 | K145: 44409 | M145: 321.33
A146: 160 | B146: GASTOS | C146: 01 DE 01 | D146: PAGAMENTO-CLICK | E146: JUNIOR | F146: GERAL | G146: INTER_JUNIOR | H146: CRÉDITO À VISTA | I146: 0 | J146: 44392 | K146: 44423 | M146: 1999.65
A147: 161 | B147: GASTOS | C147: 01 DE 01 | D147: PAGAMENTO-PAGPART1 | E147: JUNIOR | F147: GERAL | G147: CLICK_JUNIOR | H147: CRÉDITO À VISTA | I147: 0 | J147: 44393 | K147: 44425 | M147: 1942.39
A148: 162 | B148: GASTOS | C148: 01 DE 01 | D148: PAGAMENTO-PAGPART2 | E148: JUNIOR | F148: GERAL | G148: INTER_JUNIOR | H148: CRÉDITO À VISTA | I148: 0 | J148: 44393 | K148: 44423 | M148: 139.45
A149: 163 | B149: GASTOS | C149: 01 DE 01 | D149: PAGAMENTO-PAGPART3 | E149: JUNIOR | F149: GERAL | G149: NUBANK_JUNIOR | H149: CRÉDITO À VISTA | I149: 0 | J149: 44393 | K149: 44421 | M149: 139.45
A150: 164 | B150: GASTOS | C150: 01 DE 01 | D150: PAGAMENTOGOLG-PAG | E150: JUNIOR | F150: GERAL | G150: PAG_JUNIOR | H150: CRÉDITO À VISTA | I150: 0 | J150: 44396 | K150: 44428 | M150: 2059.8
A151: 165 | B151: GASTOS | C151: 01 DE 01 | D151: PAGAMENTOGOLG-GOLD | E151: JUNIOR | F151: GERAL | G151: GOLD_JUNIOR | H151: CRÉDITO À VISTA | I151: 0 | J151: 44397 | K151: 44431 | M151: 489.25
A152: 166 | B152: GASTOS | C152: 01 DE 01 | D152: PAGAMENTOITAU-LATAM | E152: JUNIOR | F152: GERAL | G152: LATAM_JUNIOR | H152: CRÉDITO À VISTA | I152: 0 | J152: 44399 | K152: 44433 | M152: 1643.82
A153: 167 | B153: GASTOS | C153: 01 DE 01 | D153: PAGAMENTOITAU-LATAM | E153: JUNIOR | F153: GERAL | G153: GOLD_JUNIOR | H153: CRÉDITO À VISTA | I153: 0 | J153: 44398 | K153: 44431 | M153: 2010.36
A154: 168 | B154: GASTOS | C154: 01 DE 01 | D154: PGTOZERO-LATAM | E154: JUNIOR | F154: GERAL | G154: LATAM_JUNIOR | H154: CRÉDITO À VISTA | I154: 0 | J154: 44402 | K154: 44433 | M154: 1374.81
A155: 169 | B155: GASTOS | C155: 01 DE 02 | D155: SUPERMERCADO | E155: JUNIOR | F155: GERAL | G155: LATAM_JUNIOR | H155: CRÉDITO PARCELADO | I155: 0 | J155: 44402 | K155: 44433 | M155: 46
A156: 170 | B156: GASTOS | C156: 02 DE 02 | D156: SUPERMERCADO | E156: JUNIOR | F156: GERAL | G156: LATAM_JUNIOR | H156: CRÉDITO PARCELADO | I156: 0 | J156: 44402 | K156: 44464 | M156: 46
A157: 171 | B157: GASTOS | C157: 01 DE 01 | D157: JUNIOR | E157: PGTO | F157: GERAL | G157: ZERO_JUNIOR | H157: CRÉDITO À VISTA | I157: 0 | J157: 44404 | K157: 44434 | M157: 1544.85
A158: 172 | B158: GASTOS | C158: 01 DE 01 | D158: NETFLIX | E158: JUNIOR | F158: GERAL | G158: ZERO_JUNIOR | H158: CRÉDITO À VISTA | I158: 0 | J158: 44402 | K158: 44434 | M158: 45.9
A159: 173 | B159: GASTOS | C159: 01 DE 01 | D159: JUROS | E159: JUNIOR | F159: GERAL | G159: ZERO_JUNIOR | H159: CRÉDITO À VISTA | I159: 0 | J159: 44409 | K159: 44434 | M159: 0.1
A160: 174 | B160: GASTOS | C160: 01 DE 12 | D160: PGTOPAGMAE | E160: JUNIOR | F160: GERAL | G160: NUBANK_JUNIOR | H160: CRÉDITO PARCELADO | I160: 0 | J160: 44184 | K160: 44209 | M160: 114.96
A161: 175 | B161: GASTOS | C161: 02 DE 12 | D161: PGTOPAGMAE | E161: JUNIOR | F161: GERAL | G161: NUBANK_JUNIOR | H161: CRÉDITO PARCELADO | I161: 0 | J161: 44184 | K161: 44240 | M161: 114.96
A162: 176 | B162: GASTOS | C162: 03 DE 12 | D162: PGTOPAGMAE | E162: JUNIOR | F162: GERAL | G162: NUBANK_JUNIOR | H162: CRÉDITO PARCELADO | I162: 0 | J162: 44184 | K162: 44268 | M162: 114.96
A163: 177 | B163: GASTOS | C163: 04 DE 12 | D163: PGTOPAGMAE | E163: JUNIOR | F163: GERAL | G163: NUBANK_JUNIOR | H163: CRÉDITO PARCELADO | I163: 0 | J163: 44184 | K163: 44299 | M163: 114.96
A164: 178 | B164: GASTOS | C164: 05 DE 12 | D164: PGTOPAGMAE | E164: JUNIOR | F164: GERAL | G164: NUBANK_JUNIOR | H164: CRÉDITO PARCELADO | I164: 0 | J164: 44184 | K164: 44329 | M164: 114.96
A165: 179 | B165: GASTOS | C165: 06 DE 12 | D165: PGTOPAGMAE | E165: JUNIOR | F165: GERAL | G165: NUBANK_JUNIOR | H165: CRÉDITO PARCELADO | I165: 0 | J165: 44184 | K165: 44360 | M165: 114.96
A166: 180 | B166: GASTOS | C166: 07 DE 12 | D166: PGTOPAGMAE | E166: JUNIOR | F166: GERAL | G166: NUBANK_JUNIOR | H166: CRÉDITO PARCELADO | I166: 0 | J166: 44184 | K166: 44390 | M166: 114.96
A167: 181 | B167: GASTOS | C167: 08 DE 12 | D167: PGTOPAGMAE | E167: JUNIOR | F167: GERAL | G167: NUBANK_JUNIOR | H167: CRÉDITO PARCELADO | I167: 0 | J167: 44184 | K167: 44421 | M167: 114.96
A168: 182 | B168: GASTOS | C168: 09 DE 12 | D168: PGTOPAGMAE | E168: JUNIOR | F168: GERAL | G168: NUBANK_JUNIOR | H168: CRÉDITO PARCELADO | I168: 0 | J168: 44184 | K168: 44452 | M168: 114.96
A169: 183 | B169: GASTOS | C169: 10 DE 12 | D169: PGTOPAGMAE | E169: JUNIOR | F169: GERAL | G169: NUBANK_JUNIOR | H169: CRÉDITO PARCELADO | I169: 0 | J169: 44184 | K169: 44482 | M169: 114.96
A170: 184 | B170: GASTOS | C170: 11 DE 12 | D170: PGTOPAGMAE | E170: JUNIOR | F170: GERAL | G170: NUBANK_JUNIOR | H170: CRÉDITO PARCELADO | I170: 0 | J170: 44184 | K170: 44513 | M170: 114.96
A171: 185 | B171: GASTOS | C171: 12 DE 12 | D171: PGTOPAGMAE | E171: JUNIOR | F171: GERAL | G171: NUBANK_JUNIOR | H171: CRÉDITO PARCELADO | I171: 0 | J171: 44184 | K171: 44543 | M171: 114.96
A172: 186 | B172: GASTOS | C172: 01 DE 01 | D172: RECARGA | E172: JUNIOR | F172: GERAL | G172: NUBANK_JUNIOR | H172: CRÉDITO À VISTA | I172: 0 | J172: 44389 | K172: 44421 | M172: 30
A173: 187 | B173: GASTOS | C173: 01 DE 01 | D173: CERVEJA | E173: JUNIOR | F173: GERAL | G173: INTER_JUNIOR | H173: CRÉDITO À VISTA | I173: 0 | J173: 44408 | K173: 44423 | M173: 35
A174: 188 | B174: GASTOS | C174: 01 DE 02 | D174: MOTO | E174: JUNIOR | F174: GERAL | G174: INTER_JUNIOR | H174: CRÉDITO PARCELADO | I174: 0 | J174: 44377 | K174: 44392 | M174: 94
A175: 189 | B175: GASTOS | C175: 02 DE 02 | D175: MOTO | E175: JUNIOR | F175: GERAL | G175: INTER_JUNIOR | H175: CRÉDITO PARCELADO | I175: 0 | J175: 44377 | K175: 44423 | M175: 94
A176: 190 | B176: GASTOS | C176: 01 DE 02 | D176: MOUSE | E176: JUNIOR | F176: GERAL | G176: MELIUZ_JUNIOR | H176: CRÉDITO PARCELADO | I176: 0 | J176: 44405 | K176: 44440 | M176: 30.16
A177: 191 | B177: GASTOS | C177: 02 DE 02 | D177: MOUSE | E177: JUNIOR | F177: GERAL | G177: MELIUZ_JUNIOR | H177: CRÉDITO PARCELADO | I177: 0 | J177: 44405 | K177: 44470 | M177: 30.16
A178: 192 | B178: GASTOS | C178: 01 DE 01 | D178: JANTA | E178: JUNIOR | F178: GERAL | G178: MELIUZ_JUNIOR | H178: CRÉDITO À VISTA | I178: 0 | J178: 44398 | K178: 44440 | M178: 37
A179: 193 | B179: GASTOS | C179: 01 DE 01 | D179: JANTA | E179: JUNIOR | F179: GERAL | G179: MELIUZ_JUNIOR | H179: CRÉDITO À VISTA | I179: 0 | J179: 44396 | K179: 44409 | M179: 32
A180: 194 | B180: GASTOS | C180: 01 DE 01 | D180: PLANO PRIME JUROS | E180: JUNIOR | F180: GERAL | G180: INTER_JUNIOR | H180: CRÉDITO À VISTA | I180: 0 | J180: 44412 | K180: 44423 | M180: 19.9
A181: 195 | B181: GASTOS | C181: 01 DE 01 | D181: PGTO-AZULCARD | E181: JUNIOR | F181: GERAL | G181: FREE_JUNIOR | H181: CRÉDITO À VISTA | I181: 0 | J181: 44412 | K181: 44438 | M181: 1490
A182: 196 | B182: GASTOS | C182: 01 DE 01 | D182: PGTO-NCARD-PARTE1 | E182: JUNIOR | F182: GERAL | G182: AZUL_JUNIOR | H182: CRÉDITO À VISTA | I182: 0 | J182: 44413 | K182: 44445 | M182: 659.34
A183: 197 | B183: GASTOS | C183: 01 DE 01 | D183: PGTO-NCARDPARTE2 | E183: JUNIOR | F183: GERAL | G183: AZUL_JUNIOR | H183: CRÉDITO À VISTA | I183: 0 | J183: 44415 | K183: 44445 | M183: 972.48
A184: 198 | B184: GASTOS | C184: 01 DE 01 | D184: PGTO-PAGMAE | E184: JUNIOR | F184: GERAL | G184: AZUL_JUNIOR | H184: CRÉDITO À VISTA | I184: 0 | J184: 44415 | K184: 44445 | M184: 517.73
A185: 199 | B185: GASTOS | C185: 01 DE 01 | D185: PGTO-PAGMAE | E185: JUNIOR | F185: GERAL | G185: NUBANK_JUNIOR | H185: CRÉDITO À VISTA | I185: 0 | J185: 44417 | K185: 44452 | M185: 1562.77
A186: 200 | B186: GASTOS | C186: 01 DE 01 | D186: JANTA | E186: JUNIOR | F186: GERAL | G186: INTER_JUNIOR | H186: CRÉDITO À VISTA | I186: 0 | J186: 44418 | K186: 44454 | M186: 32
A187: 201 | B187: GASTOS | C187: 01 DE 01 | D187: CERVEJA | E187: JUNIOR | F187: GERAL | G187: INTER_JUNIOR | H187: CRÉDITO À VISTA | I187: 0 | J187: 44421 | K187: 44454 | M187: 30
A188: 202 | B188: GASTOS | C188: 01 DE 01 | D188: PGTO-INTER | E188: JUNIOR | F188: GERAL | G188: INTER_JUNIOR | H188: CRÉDITO À VISTA | I188: 0 | J188: 44423 | K188: 44454 | M188: 930.9
A189: 203 | B189: GASTOS | C189: 01 DE 01 | D189: PGTO-CLICKPARTE1 | E189: JUNIOR | F189: GERAL | G189: INTER_JUNIOR | H189: CRÉDITO À VISTA | I189: 0 | J189: 44424 | K189: 44454 | M189: 1609.42
A190: 204 | B190: GASTOS | C190: 01 DE 01 | D190: PGTO-CLICKPARTE2 | E190: JUNIOR | F190: GERAL | G190: CLICK_JUNIOR | H190: CRÉDITO À VISTA | I190: 0 | J190: 44424 | K190: 44456 | M190: 483.13
A191: 205 | B191: GASTOS | C191: 01 DE 01 | D191: PGTO-PAGPARTE1 | E191: JUNIOR | F191: GERAL | G191: CLICK_JUNIOR | H191: CRÉDITO À VISTA | I191: 0 | J191: 44425 | K191: 44456 | M191: 1548.17
A192: 206 | B192: GASTOS | C192: 01 DE 01 | D192: PGTO-PAGPARTE2 | E192: JUNIOR | F192: GERAL | G192: PAG_JUNIOR | H192: CRÉDITO À VISTA | I192: 0 | J192: 44425 | K192: 44459 | M192: 572.73
A193: 207 | B193: GASTOS | C193: 01 DE 03 | D193: FONE DE OUVIDO | E193: JUNIOR | F193: GERAL | G193: LATAM_JUNIOR | H193: CRÉDITO PARCELADO | I193: 0 | J193: 44378 | K193: 44402 | M193: 33.46
A194: 208 | B194: GASTOS | C194: 02 DE 03 | D194: FONE DE OUVIDO | E194: JUNIOR | F194: GERAL | G194: LATAM_JUNIOR | H194: CRÉDITO PARCELADO | I194: 0 | J194: 44378 | K194: 44433 | M194: 33.46
A195: 209 | B195: GASTOS | C195: 03 DE 03 | D195: FONE DE OUVIDO | E195: JUNIOR | F195: GERAL | G195: LATAM_JUNIOR | H195: CRÉDITO PARCELADO | I195: 0 | J195: 44378 | K195: 44464 | M195: 33.46
A196: 210 | B196: GASTOS | C196: 01 DE 01 | D196: CLARO | E196: JUNIOR | F196: GERAL | G196: PAG_JUNIOR | H196: CRÉDITO À VISTA | I196: 0 | J196: 44399 | K196: 44428 | M196: 42.99
A197: 211 | B197: GASTOS | C197: 01 DE 01 | D197: PGTO-GOLDPARTE1 | E197: JUNIOR | F197: GERAL | G197: PAG_JUNIOR | H197: CRÉDITO À VISTA | I197: 0 | J197: 44426 | K197: 44459 | M197: 1395.51
A198: 212 | B198: GASTOS | C198: 01 DE 01 | D198: PGTO-GOLDPARTE2 | E198: JUNIOR | F198: GERAL | G198: GOLD_JUNIOR | H198: CRÉDITO À VISTA | I198: 0 | J198: 44427 | K198: 44462 | M198: 1178.83
A199: 213 | B199: GASTOS | C199: 01 DE 01 | D199: PGTO-LATAMPARTE2 | E199: JUNIOR | F199: GERAL | G199: GOLD_JUNIOR | H199: CRÉDITO À VISTA | I199: 0 | J199: 44428 | K199: 44462 | M199: 1321.1
A200: 214 | B200: GASTOS | C200: 01 DE 01 | D200: PGTO-LATAM-PARTE2 | E200: JUNIOR | F200: GERAL | G200: LATAM_JUNIOR | H200: CRÉDITO À VISTA | I200: 0 | J200: 44431 | K200: 44464 | M200: 1824.98
... 7 more rows

Sheet AUXILIAR
B3: CARTÕES | C3: VENCIMENTO | D3: LIMITE | E3: GASTOS
B4: AZUL | C4: 6 | D4: 2150 | E4: 2150
B5: BMG | C5: 25 | D5: 280 | E5: NÃO USAR
B6: CLICK | C6: 17 | D6: 2300 | E6: 2300
B7: C6 | C7: 1 | D7: 130 | E7: NÃO USAR
B8: FREE | C8: 30 | D8: 1490 | E8: 1490
B9: GOLD | C9: 23 | D9: 2500 | E9: 2500
B10: INTER | C10: 15 | D10: 6500 | E10: 3000 | J10: PGTO
B11: MELIUZ | C11: 1 | D11: 950 | E11: NÃO USAR | J11: GASTOS
B12: NCARD | C12: 9 | D12: 1600 | E12: 1600
B13: NUBANK | C13: 13 | D13: 4350 | E13: 2500
B14: LATAM | C14: 25 | D14: 3800 | E14: 3800
B15: PAG | C15: 20 | D15: 2000 | E15: 2000
B16: PAN | C16: 13 | D16: 560 | E16: NÃO USAR
B17: ZERO | C17: 26 | D17: 1600 | E17: 1600
C20: TOTAL | D20: =SUM(D4:D17) -> 30210

Sheet relatório
A1: RELATÓRIO DE RECEBIMENTOS
I2: RELATÓRIO EMETIDO EM:
I3: HORA:
B4: PARÂMETROS DO RELATÓRIO:
B5: BANDEIRAS: | E5: Todas | I5: TOTAL BRUTO:
B6: FORMAS DE PAGEMENTOS: | E6: Todas | I6: TAXAS:
B7: PERÍODO DO RELATÓRIO: | I7: TOTAL LÍQUIDO:
B9: PARCELA | C9: CARTÃO | D9: FORMA | E9: DESCRIÇÃO | F9: JUROS | G9: DATA DE VENDA | H9: VALOR PAGO | I9: TOTAL BRUTO

Sheet ANALISE
B2: ANALISE DE PAGAMENTO MENSAL - | E2: =INDEX({"JANEIRO";"FEVEREIRO";"MARÇO";"ABRIL";"MAIO";"JUNHO";"JULHO";"AGOSTO";"SETEMBRO";"OUTUBRO";"NOVEMBRO";"DEZEMBRO"},D5) -> AGOSTO | K2: HAVER | L2: =SUM(E11:E20)-C6 -> -282.2
J3: SIMULADOR
B4: CARTÃO | C4: FREE | D4: TIPO | E4: PGTO | F4: JUNIOR | J4: LIMTE | K4: =VLOOKUP(C4,TBLVENLIM[],4,0) -> 1490 | L4: TAXA | M4: 0.0299 | O4: VALOR | P4: 1207.8 | U4: SIMULADOR
B5: VENCIMENTO | C5: =DATE(YEAR(TODAY()),D5,VLOOKUP(C4,TBLVENLIM[],2,0)) -> 44438 | D5: 8 | J5: DISPONIVEL | K5: =K4-C6 -> 0 | L5: JUROS | M5: =SUMIFS(tbldados[JUROS],tbldados[DESCRIÇÃO],ANALISE!C4,tbldados[REFERENTE],ANALISE!E2) -> 36.11 | O5: TAXA | P5: =P4*M4 -> 36.11322 | U5: VALOR
B6: VALOR | C6: =SUM(ANALISE!$L$11:$L$20) -> 1490 | J6: UTILIZAR | K6: =K5-(K5*M4) -> 0 | O6: FINAL | P6: =P4+(P4*M4) -> 1243.91322 | U6: TAXA
B7: RESTANTE | C7: =C6-SUM(E11:E53) -> 282.2 | O7: ANTERIOR | P7: =SUM(ANALISE!$L$11:$L$20) -> 1490 | U7: TOTAL | V7: =V5*V6 -> 0
B8: DINHEIRO | C8: =SUMIF(B11:B121,"DINHEIRO",E11:E121) -> 0 | J8: TIPO | K8: GASTOS | L8: JUNIOR | M8: =C4 -> FREE | O8: TOTAL | P8: =SUM(P6:P7) -> 2733.91322
B9: JUROS | C9: =SUMIF('BASE DE DADOS'!D:D,$C$4,'BASE DE DADOS'!N:N) -> 36.11
A10: ID | B10: TIPO | C10: FORMA | D10: DESCRIÇÃO | E10: VALOR PAGO | F10: TOTAL BRUTO | G10: CARTÃO | I10: ID | J10: DATA DA VENDA | K10: DESCRIÇÃO | L10: VALOR PAGO | M10: PARCELA | P10: 0.029
A11: =IFERROR(INDEX(tbldados[ID],SMALL(IF(FREQUENCY(IF((tbldados[REFERENTE]=$E$2)*(tbldados[DESCRIÇÃO]=$C$4)*(tbldados[TIPO]=$E$4),MATCH(tbldados[ID],tbldados[ID],0)),ROW(tbldados[ID])-ROW('BASE DE DADOS'!$J$2)+1),ROW(tbldados[])-ROW('BASE DE DADOS'!$J$2)+1),ROWS($1:1))),"") -> 226 | B11: =IFERROR(INDEX(tbldados[],MATCH(ANALISE!$A11,tbldados[[ID]:[ID]],0),MATCH(ANALISE!B$10,'BASE DE DADOS'!$A$1:$N$1,0)),"") -> PGTO | C11: =IFERROR(INDEX(tbldados[],MATCH(ANALISE!$A11,tbldados[[ID]:[ID]],0),MATCH(ANALISE!C$10,'BASE DE DADOS'!$A$1:$N$1,0)),"") -> Crédito à Vista | D11: =IFERROR(INDEX(tbldados[],MATCH(ANALISE!$A11,tbldados[[ID]:[ID]],0),MATCH(ANALISE!D$10,'BASE DE DADOS'!$A$1:$N$1,0)),"") -> FREE | E11: =IFERROR(INDEX(tbldados[],MATCH(ANALISE!$A11,tbldados[[ID]:[ID]],0),MATCH(ANALISE!E$10,'BASE DE DADOS'!$A$1:$N$1,0)),"") -> 1207.8 | F11: =IFERROR(INDEX(tbldados[],MATCH(ANALISE!$A11,tbldados[[ID]:[ID]],0),MATCH(ANALISE!F$10,'BASE DE DADOS'!$A$1:$N$1,0)),"") -> 1243.91 | G11: =IFERROR(INDEX(tbldados[],MATCH(ANALISE!$A11,tbldados[[ID]:[ID]],0),MATCH(ANALISE!G$10,'BASE DE DADOS'!$A$1:$N$1,0)),"") -> ZERO | I11: =IFERROR(INDEX(tbldados[ID],SMALL(IF(FREQUENCY(IF((tbldados[REFERENTE]=$L$8)*(tbldados[DATA]=$C$5)*(tbldados[TIPO]=$K$8)*(tbldados[CARTÃO]=$M$8),MATCH(tbldados[ID],tbldados[ID],0)),ROW(tbldados[ID])-ROW('BASE DE DADOS'!$J$2)+1),ROW(tbldados[])-ROW('BASE DE DADOS'!$J$2)+1),ROWS($1:1))),"") -> 195 | J11: =IFERROR(INDEX(tbldados[],MATCH(ANALISE!$I11,tbldados[[ID]:[ID]],0),MATCH(ANALISE!J$10,'BASE DE DADOS'!$A$1:$N$1,0)),"") -> 44412 | K11: =IFERROR(INDEX(tbldados[],MATCH(ANALISE!$I11,tbldados[[ID]:[ID]],0),MATCH(ANALISE!K$10,'BASE DE DADOS'!$A$1:$N$1,0)),"") -> PGTO-AZULCARD | L11: =IFERROR(INDEX(tbldados[],MATCH(ANALISE!$I11,tbldados[[ID]:[ID]],0),MATCH(ANALISE!L$10,'BASE DE DADOS'!$A$1:$N$1,0)),"") -> 1490 | M11: =IFERROR(INDEX(tbldados[],MATCH(ANALISE!$I11,tbldados[[ID]:[ID]],0),MATCH(ANALISE!M$10,'BASE DE DADOS'!$A$1:$N$1,0)),"") -> 01 DE 01
A12: =IFERROR(INDEX(tbldados[ID],SMALL(IF(FREQUENCY(IF((tbldados[REFERENTE]=$E$2)*(tbldados[DESCRIÇÃO]=$C$4)*(tbldados[TIPO]=$E$4),MATCH(tbldados[ID],tbldados[ID],0)),ROW(tbldados[ID])-ROW('BASE DE DADOS'!$J$2)+1),ROW(tbldados[])-ROW('BASE DE DADOS'!$J$2)+1),ROWS($1:2))),"") ->  | B12: =IFERROR(INDEX(tbldados[],MATCH(ANALISE!$A12,tbldados[[ID]:[ID]],0),MATCH(ANALISE!B$10,'BASE DE DADOS'!$A$1:$N$1,0)),"") ->  | C12: =IFERROR(INDEX(tbldados[],MATCH(ANALISE!$A12,tbldados[[ID]:[ID]],0),MATCH(ANALISE!C$10,'BASE DE DADOS'!$A$1:$N$1,0)),"") ->  | D12: =IFERROR(INDEX(tbldados[],MATCH(ANALISE!$A12,tbldados[[ID]:[ID]],0),MATCH(ANALISE!D$10,'BASE DE DADOS'!$A$1:$N$1,0)),"") ->  | E12: =IFERROR(INDEX(tbldados[],MATCH(ANALISE!$A12,tbldados[[ID]:[ID]],0),MATCH(ANALISE!E$10,'BASE DE DADOS'!$A$1:$N$1,0)),"") ->  | F12: =IFERROR(INDEX(tbldados[],MATCH(ANALISE!$A12,tbldados[[ID]:[ID]],0),MATCH(ANALISE!F$10,'BASE DE DADOS'!$A$1:$N$1,0)),"") ->  | G12: =IFERROR(INDEX(tbldados[],MATCH(ANALISE!$A12,tbldados[[ID]:[ID]],0),MATCH(ANALISE!G$10,'BASE DE DADOS'!$A$1:$N$1,0)),"") ->  | I12: =IFERROR(INDEX(tbldados[ID],SMALL(IF(FREQUENCY(IF((tbldados[REFERENTE]=$L$8)*(tbldados[DATA]=$C$5)*(tbldados[TIPO]=$K$8)*(tbldados[CARTÃO]=$M$8),MATCH(tbldados[ID],tbldados[ID],0)),ROW(tbldados[ID])-ROW('BASE DE DADOS'!$J$2)+1),ROW(tbldados[])-ROW('BASE DE DADOS'!$J$2)+1),ROWS($1:2))),"") ->  | J12: =IFERROR(INDEX(tbldados[],MATCH(ANALISE!$I12,tbldados[[ID]:[ID]],0),MATCH(ANALISE!J$10,'BASE DE DADOS'!$A$1:$N$1,0)),"") ->  | K12: =IFERROR(INDEX(tbldados[],MATCH(ANALISE!$I12,tbldados[[ID]:[ID]],0),MATCH(ANALISE!K$10,'BASE DE DADOS'!$A$1:$N$1,0)),"") ->  | L12: =IFERROR(INDEX(tbldados[],MATCH(ANALISE!$I12,tbldados[[ID]:[ID]],0),MATCH(ANALISE!L$10,'BASE DE DADOS'!$A$1:$N$1,0)),"") ->  | M12: =IFERROR(INDEX(tbldados[],MATCH(ANALISE!$I12,tbldados[[ID]:[ID]],0),MATCH(ANALISE!M$10,'BASE DE DADOS'!$A$1:$N$1,0)),"") -> 
A13: =IFERROR(INDEX(tbldados[ID],SMALL(IF(FREQUENCY(IF((tbldados[REFERENTE]=$E$2)*(tbldados[DESCRIÇÃO]=$C$4)*(tbldados[TIPO]=$E$4),MATCH(tbldados[ID],tbldados[ID],0)),ROW(tbldados[ID])-ROW('BASE DE DADOS'!$J$2)+1),ROW(tbldados[])-ROW('BASE DE DADOS'!$J$2)+1),ROWS($1:3))),"") ->  | B13: =IFERROR(INDEX(tbldados[],MATCH(ANALISE!$A13,tbldados[[ID]:[ID]],0),MATCH(ANALISE!B$10,'BASE DE DADOS'!$A$1:$N$1,0)),"") ->  | C13: =IFERROR(INDEX(tbldados[],MATCH(ANALISE!$A13,tbldados[[ID]:[ID]],0),MATCH(ANALISE!C$10,'BASE DE DADOS'!$A$1:$N$1,0)),"") ->  | D13: =IFERROR(INDEX(tbldados[],MATCH(ANALISE!$A13,tbldados[[ID]:[ID]],0),MATCH(ANALISE!D$10,'BASE DE DADOS'!$A$1:$N$1,0)),"") ->  | E13: =IFERROR(INDEX(tbldados[],MATCH(ANALISE!$A13,tbldados[[ID]:[ID]],0),MATCH(ANALISE!E$10,'BASE DE DADOS'!$A$1:$N$1,0)),"") ->  | F13: =IFERROR(INDEX(tbldados[],MATCH(ANALISE!$A13,tbldados[[ID]:[ID]],0),MATCH(ANALISE!F$10,'BASE DE DADOS'!$A$1:$N$1,0)),"") ->  | G13: =IFERROR(INDEX(tbldados[],MATCH(ANALISE!$A13,tbldados[[ID]:[ID]],0),MATCH(ANALISE!G$10,'BASE DE DADOS'!$A$1:$N$1,0)),"") ->  | H13: =IFERROR(INDEX(tbldados[TIPO],SMALL(IF(FREQUENCY(IF((tbldados[CARTÃO]=$C$4)*(tbldados[DATA]=$C$5),MATCH(tbldados[TIPO],tbldados[TIPO],0)),ROW(tbldados[TIPO])-ROW('BASE DE DADOS'!#REF!)+1),ROW(tbldados[])-ROW('BASE DE DADOS'!#REF!)+1),ROWS($1:2))),"") ->  | I13: =IFERROR(INDEX(tbldados[ID],SMALL(IF(FREQUENCY(IF((tbldados[REFERENTE]=$L$8)*(tbldados[DATA]=$C$5)*(tbldados[TIPO]=$K$8)*(tbldados[CARTÃO]=$M$8),MATCH(tbldados[ID],tbldados[ID],0)),ROW(tbldados[ID])-ROW('BASE DE DADOS'!$J$2)+1),ROW(tbldados[])-ROW('BASE DE DADOS'!$J$2)+1),ROWS($1:3))),"") ->  | J13: =IFERROR(INDEX(tbldados[],MATCH(ANALISE!$I13,tbldados[[ID]:[ID]],0),MATCH(ANALISE!J$10,'BASE DE DADOS'!$A$1:$N$1,0)),"") ->  | K13: =IFERROR(INDEX(tbldados[],MATCH(ANALISE!$I13,tbldados[[ID]:[ID]],0),MATCH(ANALISE!K$10,'BASE DE DADOS'!$A$1:$N$1,0)),"") ->  | L13: =IFERROR(INDEX(tbldados[],MATCH(ANALISE!$I13,tbldados[[ID]:[ID]],0),MATCH(ANALISE!L$10,'BASE DE DADOS'!$A$1:$N$1,0)),"") ->  | M13: =IFERROR(INDEX(tbldados[],MATCH(ANALISE!$I13,tbldados[[ID]:[ID]],0),MATCH(ANALISE!M$10,'BASE DE DADOS'!$A$1:$N$1,0)),"") -> 
A14: =IFERROR(INDEX(tbldados[ID],SMALL(IF(FREQUENCY(IF((tbldados[REFERENTE]=$E$2)*(tbldados[DESCRIÇÃO]=$C$4)*(tbldados[TIPO]=$E$4),MATCH(tbldados[ID],tbldados[ID],0)),ROW(tbldados[ID])-ROW('BASE DE DADOS'!$J$2)+1),ROW(tbldados[])-ROW('BASE DE DADOS'!$J$2)+1),ROWS($1:4))),"") ->  | B14: =IFERROR(INDEX(tbldados[],MATCH(ANALISE!$A14,tbldados[[ID]:[ID]],0),MATCH(ANALISE!B$10,'BASE DE DADOS'!$A$1:$N$1,0)),"") ->  | C14: =IFERROR(INDEX(tbldados[],MATCH(ANALISE!$A14,tbldados[[ID]:[ID]],0),MATCH(ANALISE!C$10,'BASE DE DADOS'!$A$1:$N$1,0)),"") ->  | D14: =IFERROR(INDEX(tbldados[],MATCH(ANALISE!$A14,tbldados[[ID]:[ID]],0),MATCH(ANALISE!D$10,'BASE DE DADOS'!$A$1:$N$1,0)),"") ->  | E14: =IFERROR(INDEX(tbldados[],MATCH(ANALISE!$A14,tbldados[[ID]:[ID]],0),MATCH(ANALISE!E$10,'BASE DE DADOS'!$A$1:$N$1,0)),"") ->  | F14: =IFERROR(INDEX(tbldados[],MATCH(ANALISE!$A14,tbldados[[ID]:[ID]],0),MATCH(ANALISE!F$10,'BASE DE DADOS'!$A$1:$N$1,0)),"") ->  | G14: =IFERROR(INDEX(tbldados[],MATCH(ANALISE!$A14,tbldados[[ID]:[ID]],0),MATCH(ANALISE!G$10,'BASE DE DADOS'!$A$1:$N$1,0)),"") ->  | H14: =IFERROR(INDEX(tbldados[TIPO],SMALL(IF(FREQUENCY(IF((tbldados[CARTÃO]=$C$4)*(tbldados[DATA]=$C$5),MATCH(tbldados[TIPO],tbldados[TIPO],0)),ROW(tbldados[TIPO])-ROW('BASE DE DADOS'!#REF!)+1),ROW(tbldados[])-ROW('BASE DE DADOS'!#REF!)+1),ROWS($1:3))),"") ->  | I14: =IFERROR(INDEX(tbldados[ID],SMALL(IF(FREQUENCY(IF((tbldados[REFERENTE]=$L$8)*(tbldados[DATA]=$C$5)*(tbldados[TIPO]=$K$8)*(tbldados[CARTÃO]=$M$8),MATCH(tbldados[ID],tbldados[ID],0)),ROW(tbldados[ID])-ROW('BASE DE DADOS'!$J$2)+1),ROW(tbldados[])-ROW('BASE DE DADOS'!$J$2)+1),ROWS($1:4))),"") ->  | J14: =IFERROR(INDEX(tbldados[],MATCH(ANALISE!$I14,tbldados[[ID]:[ID]],0),MATCH(ANALISE!J$10,'BASE DE DADOS'!$A$1:$N$1,0)),"") ->  | K14: =IFERROR(INDEX(tbldados[],MATCH(ANALISE!$I14,tbldados[[ID]:[ID]],0),MATCH(ANALISE!K$10,'BASE DE DADOS'!$A$1:$N$1,0)),"") ->  | L14: =IFERROR(INDEX(tbldados[],MATCH(ANALISE!$I14,tbldados[[ID]:[ID]],0),MATCH(ANALISE!L$10,'BASE DE DADOS'!$A$1:$N$1,0)),"") ->  | M14: =IFERROR(INDEX(tbldados[],MATCH(ANALISE!$I14,tbldados[[ID]:[ID]],0),MATCH(ANALISE!M$10,'BASE DE DADOS'!$A$1:$N$1,0)),"") -> 
A15: =IFERROR(INDEX(tbldados[ID],SMALL(IF(FREQUENCY(IF((tbldados[REFERENTE]=$E$2)*(tbldados[DESCRIÇÃO]=$C$4)*(tbldados[TIPO]=$E$4),MATCH(tbldados[ID],tbldados[ID],0)),ROW(tbldados[ID])-ROW('BASE DE DADOS'!$J$2)+1),ROW(tbldados[])-ROW('BASE DE DADOS'!$J$2)+1),ROWS($1:5))),"") ->  | B15: =IFERROR(INDEX(tbldados[],MATCH(ANALISE!$A15,tbldados[[ID]:[ID]],0),MATCH(ANALISE!B$10,'BASE DE DADOS'!$A$1:$N$1,0)),"") ->  | C15: =IFERROR(INDEX(tbldados[],MATCH(ANALISE!$A15,tbldados[[ID]:[ID]],0),MATCH(ANALISE!C$10,'BASE DE DADOS'!$A$1:$N$1,0)),"") ->  | D15: =IFERROR(INDEX(tbldados[],MATCH(ANALISE!$A15,tbldados[[ID]:[ID]],0),MATCH(ANALISE!D$10,'BASE DE DADOS'!$A$1:$N$1,0)),"") ->  | E15: =IFERROR(INDEX(tbldados[],MATCH(ANALISE!$A15,tbldados[[ID]:[ID]],0),MATCH(ANALISE!E$10,'BASE DE DADOS'!$A$1:$N$1,0)),"") ->  | F15: =IFERROR(INDEX(tbldados[],MATCH(ANALISE!$A15,tbldados[[ID]:[ID]],0),MATCH(ANALISE!F$10,'BASE DE DADOS'!$A$1:$N$1,0)),"") ->  | G15: =IFERROR(INDEX(tbldados[],MATCH(ANALISE!$A15,tbldados[[ID]:[ID]],0),MATCH(ANALISE!G$10,'BASE DE DADOS'!$A$1:$N$1,0)),"") ->  | I15: =IFERROR(INDEX(tbldados[ID],SMALL(IF(FREQUENCY(IF((tbldados[REFERENTE]=$L$8)*(tbldados[DATA]=$C$5)*(tbldados[TIPO]=$K$8)*(tbldados[CARTÃO]=$M$8),MATCH(tbldados[ID],tbldados[ID],0)),ROW(tbldados[ID])-ROW('BASE DE DADOS'!$J$2)+1),ROW(tbldados[])-ROW('BASE DE DADOS'!$J$2)+1),ROWS($1:5))),"") ->  | J15: =IFERROR(INDEX(tbldados[],MATCH(ANALISE!$I15,tbldados[[ID]:[ID]],0),MATCH(ANALISE!J$10,'BASE DE DADOS'!$A$1:$N$1,0)),"") ->  | K15: =IFERROR(INDEX(tbldados[],MATCH(ANALISE!$I15,tbldados[[ID]:[ID]],0),MATCH(ANALISE!K$10,'BASE DE DADOS'!$A$1:$N$1,0)),"") ->  | L15: =IFERROR(INDEX(tbldados[],MATCH(ANALISE!$I15,tbldados[[ID]:[ID]],0),MATCH(ANALISE!L$10,'BASE DE DADOS'!$A$1:$N$1,0)),"") ->  | M15: =IFERROR(INDEX(tbldados[],MATCH(ANALISE!$I15,tbldados[[ID]:[ID]],0),MATCH(ANALISE!M$10,'BASE DE DADOS'!$A$1:$N$1,0)),"") -> 
A16: =IFERROR(INDEX(tbldados[ID],SMALL(IF(FREQUENCY(IF((tbldados[REFERENTE]=$E$2)*(tbldados[DESCRIÇÃO]=$C$4)*(tbldados[TIPO]=$E$4),MATCH(tbldados[ID],tbldados[ID],0)),ROW(tbldados[ID])-ROW('BASE DE DADOS'!$J$2)+1),ROW(tbldados[])-ROW('BASE DE DADOS'!$J$2)+1),ROWS($1:6))),"") ->  | B16: =IFERROR(INDEX(tbldados[],MATCH(ANALISE!$A16,tbldados[[ID]:[ID]],0),MATCH(ANALISE!B$10,'BASE DE DADOS'!$A$1:$N$1,0)),"") ->  | C16: =IFERROR(INDEX(tbldados[],MATCH(ANALISE!$A16,tbldados[[ID]:[ID]],0),MATCH(ANALISE!C$10,'BASE DE DADOS'!$A$1:$N$1,0)),"") ->  | D16: =IFERROR(INDEX(tbldados[],MATCH(ANALISE!$A16,tbldados[[ID]:[ID]],0),MATCH(ANALISE!D$10,'BASE DE DADOS'!$A$1:$N$1,0)),"") ->  | E16: =IFERROR(INDEX(tbldados[],MATCH(ANALISE!$A16,tbldados[[ID]:[ID]],0),MATCH(ANALISE!E$10,'BASE DE DADOS'!$A$1:$N$1,0)),"") ->  | F16: =IFERROR(INDEX(tbldados[],MATCH(ANALISE!$A16,tbldados[[ID]:[ID]],0),MATCH(ANALISE!F$10,'BASE DE DADOS'!$A$1:$N$1,0)),"") ->  | G16: =IFERROR(INDEX(tbldados[],MATCH(ANALISE!$A16,tbldados[[ID]:[ID]],0),MATCH(ANALISE!G$10,'BASE DE DADOS'!$A$1:$N$1,0)),"") ->  | I16: =IFERROR(INDEX(tbldados[ID],SMALL(IF(FREQUENCY(IF((tbldados[REFERENTE]=$L$8)*(tbldados[DATA]=$C$5)*(tbldados[TIPO]=$K$8)*(tbldados[CARTÃO]=$M$8),MATCH(tbldados[ID],tbldados[ID],0)),ROW(tbldados[ID])-ROW('BASE DE DADOS'!$J$2)+1),ROW(tbldados[])-ROW('BASE DE DADOS'!$J$2)+1),ROWS($1:6))),"") ->  | J16: =IFERROR(INDEX(tbldados[],MATCH(ANALISE!$I16,tbldados[[ID]:[ID]],0),MATCH(ANALISE!J$10,'BASE DE DADOS'!$A$1:$N$1,0)),"") ->  | K16: =IFERROR(INDEX(tbldados[],MATCH(ANALISE!$I16,tbldados[[ID]:[ID]],0),MATCH(ANALISE!K$10,'BASE DE DADOS'!$A$1:$N$1,0)),"") ->  | L16: =IFERROR(INDEX(tbldados[],MATCH(ANALISE!$I16,tbldados[[ID]:[ID]],0),MATCH(ANALISE!L$10,'BASE DE DADOS'!$A$1:$N$1,0)),"") ->  | M16: =IFERROR(INDEX(tbldados[],MATCH(ANALISE!$I16,tbldados[[ID]:[ID]],0),MATCH(ANALISE!M$10,'BASE DE DADOS'!$A$1:$N$1,0)),"") ->  | P16: 380
A17: =IFERROR(INDEX(tbldados[ID],SMALL(IF(FREQUENCY(IF((tbldados[REFERENTE]=$E$2)*(tbldados[DESCRIÇÃO]=$C$4)*(tbldados[TIPO]=$E$4),MATCH(tbldados[ID],tbldados[ID],0)),ROW(tbldados[ID])-ROW('BASE DE DADOS'!$J$2)+1),ROW(tbldados[])-ROW('BASE DE DADOS'!$J$2)+1),ROWS($1:7))),"") ->  | B17: =IFERROR(INDEX(tbldados[],MATCH(ANALISE!$A17,tbldados[[ID]:[ID]],0),MATCH(ANALISE!B$10,'BASE DE DADOS'!$A$1:$N$1,0)),"") ->  | C17: =IFERROR(INDEX(tbldados[],MATCH(ANALISE!$A17,tbldados[[ID]:[ID]],0),MATCH(ANALISE!C$10,'BASE DE DADOS'!$A$1:$N$1,0)),"") ->  | D17: =IFERROR(INDEX(tbldados[],MATCH(ANALISE!$A17,tbldados[[ID]:[ID]],0),MATCH(ANALISE!D$10,'BASE DE DADOS'!$A$1:$N$1,0)),"") ->  | E17: =IFERROR(INDEX(tbldados[],MATCH(ANALISE!$A17,tbldados[[ID]:[ID]],0),MATCH(ANALISE!E$10,'BASE DE DADOS'!$A$1:$N$1,0)),"") ->  | F17: =IFERROR(INDEX(tbldados[],MATCH(ANALISE!$A17,tbldados[[ID]:[ID]],0),MATCH(ANALISE!F$10,'BASE DE DADOS'!$A$1:$N$1,0)),"") ->  | G17: =IFERROR(INDEX(tbldados[],MATCH(ANALISE!$A17,tbldados[[ID]:[ID]],0),MATCH(ANALISE!G$10,'BASE DE DADOS'!$A$1:$N$1,0)),"") ->  | I17: =IFERROR(INDEX(tbldados[ID],SMALL(IF(FREQUENCY(IF((tbldados[REFERENTE]=$L$8)*(tbldados[DATA]=$C$5)*(tbldados[TIPO]=$K$8)*(tbldados[CARTÃO]=$M$8),MATCH(tbldados[ID],tbldados[ID],0)),ROW(tbldados[ID])-ROW('BASE DE DADOS'!$J$2)+1),ROW(tbldados[])-ROW('BASE DE DADOS'!$J$2)+1),ROWS($1:7))),"") ->  | J17: =IFERROR(INDEX(tbldados[],MATCH(ANALISE!$I17,tbldados[[ID]:[ID]],0),MATCH(ANALISE!J$10,'BASE DE DADOS'!$A$1:$N$1,0)),"") ->  | K17: =IFERROR(INDEX(tbldados[],MATCH(ANALISE!$I17,tbldados[[ID]:[ID]],0),MATCH(ANALISE!K$10,'BASE DE DADOS'!$A$1:$N$1,0)),"") ->  | L17: =IFERROR(INDEX(tbldados[],MATCH(ANALISE!$I17,tbldados[[ID]:[ID]],0),MATCH(ANALISE!L$10,'BASE DE DADOS'!$A$1:$N$1,0)),"") ->  | M17: =IFERROR(INDEX(tbldados[],MATCH(ANALISE!$I17,tbldados[[ID]:[ID]],0),MATCH(ANALISE!M$10,'BASE DE DADOS'!$A$1:$N$1,0)),"") ->  | P17: 80
A18: =IFERROR(INDEX(tbldados[ID],SMALL(IF(FREQUENCY(IF((tbldados[REFERENTE]=$E$2)*(tbldados[DESCRIÇÃO]=$C$4)*(tbldados[TIPO]=$E$4),MATCH(tbldados[ID],tbldados[ID],0)),ROW(tbldados[ID])-ROW('BASE DE DADOS'!$J$2)+1),ROW(tbldados[])-ROW('BASE DE DADOS'!$J$2)+1),ROWS($1:8))),"") ->  | B18: =IFERROR(INDEX(tbldados[],MATCH(ANALISE!$A18,tbldados[[ID]:[ID]],0),MATCH(ANALISE!B$10,'BASE DE DADOS'!$A$1:$N$1,0)),"") ->  | C18: =IFERROR(INDEX(tbldados[],MATCH(ANALISE!$A18,tbldados[[ID]:[ID]],0),MATCH(ANALISE!C$10,'BASE DE DADOS'!$A$1:$N$1,0)),"") ->  | D18: =IFERROR(INDEX(tbldados[],MATCH(ANALISE!$A18,tbldados[[ID]:[ID]],0),MATCH(ANALISE!D$10,'BASE DE DADOS'!$A$1:$N$1,0)),"") ->  | E18: =IFERROR(INDEX(tbldados[],MATCH(ANALISE!$A18,tbldados[[ID]:[ID]],0),MATCH(ANALISE!E$10,'BASE DE DADOS'!$A$1:$N$1,0)),"") ->  | F18: =IFERROR(INDEX(tbldados[],MATCH(ANALISE!$A18,tbldados[[ID]:[ID]],0),MATCH(ANALISE!F$10,'BASE DE DADOS'!$A$1:$N$1,0)),"") ->  | G18: =IFERROR(INDEX(tbldados[],MATCH(ANALISE!$A18,tbldados[[ID]:[ID]],0),MATCH(ANALISE!G$10,'BASE DE DADOS'!$A$1:$N$1,0)),"") ->  | I18: =IFERROR(INDEX(tbldados[ID],SMALL(IF(FREQUENCY(IF((tbldados[REFERENTE]=$L$8)*(tbldados[DATA]=$C$5)*(tbldados[TIPO]=$K$8)*(tbldados[CARTÃO]=$M$8),MATCH(tbldados[ID],tbldados[ID],0)),ROW(tbldados[ID])-ROW('BASE DE DADOS'!$J$2)+1),ROW(tbldados[])-ROW('BASE DE DADOS'!$J$2)+1),ROWS($1:8))),"") ->  | J18: =IFERROR(INDEX(tbldados[],MATCH(ANALISE!$I18,tbldados[[ID]:[ID]],0),MATCH(ANALISE!J$10,'BASE DE DADOS'!$A$1:$N$1,0)),"") ->  | K18: =IFERROR(INDEX(tbldados[],MATCH(ANALISE!$I18,tbldados[[ID]:[ID]],0),MATCH(ANALISE!K$10,'BASE DE DADOS'!$A$1:$N$1,0)),"") ->  | L18: =IFERROR(INDEX(tbldados[],MATCH(ANALISE!$I18,tbldados[[ID]:[ID]],0),MATCH(ANALISE!L$10,'BASE DE DADOS'!$A$1:$N$1,0)),"") ->  | M18: =IFERROR(INDEX(tbldados[],MATCH(ANALISE!$I18,tbldados[[ID]:[ID]],0),MATCH(ANALISE!M$10,'BASE DE DADOS'!$A$1:$N$1,0)),"") ->  | P18: 120
A19: =IFERROR(INDEX(tbldados[ID],SMALL(IF(FREQUENCY(IF((tbldados[REFERENTE]=$E$2)*(tbldados[DESCRIÇÃO]=$C$4)*(tbldados[TIPO]=$E$4),MATCH(tbldados[ID],tbldados[ID],0)),ROW(tbldados[ID])-ROW('BASE DE DADOS'!$J$2)+1),ROW(tbldados[])-ROW('BASE DE DADOS'!$J$2)+1),ROWS($1:9))),"") ->  | B19: =IFERROR(INDEX(tbldados[],MATCH(ANALISE!$A19,tbldados[[ID]:[ID]],0),MATCH(ANALISE!B$10,'BASE DE DADOS'!$A$1:$N$1,0)),"") ->  | C19: =IFERROR(INDEX(tbldados[],MATCH(ANALISE!$A19,tbldados[[ID]:[ID]],0),MATCH(ANALISE!C$10,'BASE DE DADOS'!$A$1:$N$1,0)),"") ->  | D19: =IFERROR(INDEX(tbldados[],MATCH(ANALISE!$A19,tbldados[[ID]:[ID]],0),MATCH(ANALISE!D$10,'BASE DE DADOS'!$A$1:$N$1,0)),"") ->  | E19: =IFERROR(INDEX(tbldados[],MATCH(ANALISE!$A19,tbldados[[ID]:[ID]],0),MATCH(ANALISE!E$10,'BASE DE DADOS'!$A$1:$N$1,0)),"") ->  | F19: =IFERROR(INDEX(tbldados[],MATCH(ANALISE!$A19,tbldados[[ID]:[ID]],0),MATCH(ANALISE!F$10,'BASE DE DADOS'!$A$1:$N$1,0)),"") ->  | G19: =IFERROR(INDEX(tbldados[],MATCH(ANALISE!$A19,tbldados[[ID]:[ID]],0),MATCH(ANALISE!G$10,'BASE DE DADOS'!$A$1:$N$1,0)),"") ->  | I19: =IFERROR(INDEX(tbldados[ID],SMALL(IF(FREQUENCY(IF((tbldados[REFERENTE]=$L$8)*(tbldados[DATA]=$C$5)*(tbldados[TIPO]=$K$8)*(tbldados[CARTÃO]=$M$8),MATCH(tbldados[ID],tbldados[ID],0)),ROW(tbldados[ID])-ROW('BASE DE DADOS'!$J$2)+1),ROW(tbldados[])-ROW('BASE DE DADOS'!$J$2)+1),ROWS($1:9))),"") ->  | J19: =IFERROR(INDEX(tbldados[],MATCH(ANALISE!$I19,tbldados[[ID]:[ID]],0),MATCH(ANALISE!J$10,'BASE DE DADOS'!$A$1:$N$1,0)),"") ->  | K19: =IFERROR(INDEX(tbldados[],MATCH(ANALISE!$I19,tbldados[[ID]:[ID]],0),MATCH(ANALISE!K$10,'BASE DE DADOS'!$A$1:$N$1,0)),"") ->  | L19: =IFERROR(INDEX(tbldados[],MATCH(ANALISE!$I19,tbldados[[ID]:[ID]],0),MATCH(ANALISE!L$10,'BASE DE DADOS'!$A$1:$N$1,0)),"") ->  | M19: =IFERROR(INDEX(tbldados[],MATCH(ANALISE!$I19,tbldados[[ID]:[ID]],0),MATCH(ANALISE!M$10,'BASE DE DADOS'!$A$1:$N$1,0)),"") -> 
A20: =IFERROR(INDEX(tbldados[ID],SMALL(IF(FREQUENCY(IF((tbldados[REFERENTE]=$E$2)*(tbldados[DESCRIÇÃO]=$C$4)*(tbldados[TIPO]=$E$4),MATCH(tbldados[ID],tbldados[ID],0)),ROW(tbldados[ID])-ROW('BASE DE DADOS'!$J$2)+1),ROW(tbldados[])-ROW('BASE DE DADOS'!$J$2)+1),ROWS($1:10))),"") ->  | B20: =IFERROR(INDEX(tbldados[],MATCH(ANALISE!$A20,tbldados[[ID]:[ID]],0),MATCH(ANALISE!B$10,'BASE DE DADOS'!$A$1:$N$1,0)),"") ->  | C20: =IFERROR(INDEX(tbldados[],MATCH(ANALISE!$A20,tbldados[[ID]:[ID]],0),MATCH(ANALISE!C$10,'BASE DE DADOS'!$A$1:$N$1,0)),"") ->  | D20: =IFERROR(INDEX(tbldados[],MATCH(ANALISE!$A20,tbldados[[ID]:[ID]],0),MATCH(ANALISE!D$10,'BASE DE DADOS'!$A$1:$N$1,0)),"") ->  | E20: =IFERROR(INDEX(tbldados[],MATCH(ANALISE!$A20,tbldados[[ID]:[ID]],0),MATCH(ANALISE!E$10,'BASE DE DADOS'!$A$1:$N$1,0)),"") ->  | F20: =IFERROR(INDEX(tbldados[],MATCH(ANALISE!$A20,tbldados[[ID]:[ID]],0),MATCH(ANALISE!F$10,'BASE DE DADOS'!$A$1:$N$1,0)),"") ->  | G20: =IFERROR(INDEX(tbldados[],MATCH(ANALISE!$A20,tbldados[[ID]:[ID]],0),MATCH(ANALISE!G$10,'BASE DE DADOS'!$A$1:$N$1,0)),"") ->  | I20: =IFERROR(INDEX(tbldados[ID],SMALL(IF(FREQUENCY(IF((tbldados[REFERENTE]=$L$8)*(tbldados[DATA]=$C$5)*(tbldados[TIPO]=$K$8)*(tbldados[CARTÃO]=$M$8),MATCH(tbldados[ID],tbldados[ID],0)),ROW(tbldados[ID])-ROW('BASE DE DADOS'!$J$2)+1),ROW(tbldados[])-ROW('BASE DE DADOS'!$J$2)+1),ROWS($1:10))),"") ->  | J20: =IFERROR(INDEX(tbldados[],MATCH(ANALISE!$I20,tbldados[[ID]:[ID]],0),MATCH(ANALISE!J$10,'BASE DE DADOS'!$A$1:$N$1,0)),"") ->  | K20: =IFERROR(INDEX(tbldados[],MATCH(ANALISE!$I20,tbldados[[ID]:[ID]],0),MATCH(ANALISE!K$10,'BASE DE DADOS'!$A$1:$N$1,0)),"") ->  | L20: =IFERROR(INDEX(tbldados[],MATCH(ANALISE!$I20,tbldados[[ID]:[ID]],0),MATCH(ANALISE!L$10,'BASE DE DADOS'!$A$1:$N$1,0)),"") ->  | M20: =IFERROR(INDEX(tbldados[],MATCH(ANALISE!$I20,tbldados[[ID]:[ID]],0),MATCH(ANALISE!M$10,'BASE DE DADOS'!$A$1:$N$1,0)),"") -> 
B21: =IFERROR(INDEX(tbldados[],MATCH(ANALISE!$A21,tbldados[[ID]:[ID]],0),MATCH(ANALISE!B$10,'BASE DE DADOS'!$A$1:$N$1,0)),"") ->  | D21: =IF(ROWS($1:11)>COUNTIF(tbldados[DATA],$C$5),"",INDEX(tbldados[TOTAL BRUTO],SMALL(IF(tbldados[DATA]=$C$5,ROW(tbldados[DATA])-ROW('BASE DE DADOS'!K25)+1,FALSE),ROWS($1:11)))) ->  | E21: =IF(ROWS($1:11)>COUNTIF(tbldados[DATA],$C$5),"",INDEX(tbldados[VALOR PAGO],SMALL(IF(tbldados[DATA]=$C$5,ROW(tbldados[DATA])-ROW('BASE DE DADOS'!K25)+1,FALSE),ROWS($1:11)))) ->  | F21: =IFERROR(INDEX(tbldados[APP],SMALL(IF(FREQUENCY(IF((tbldados[CARTÃO]=$C$4)*(tbldados[DATA]=$C$5),MATCH(tbldados[APP],tbldados[APP],0)),ROW(tbldados[APP])-ROW('BASE DE DADOS'!#REF!)+1),ROW(tbldados[])-ROW('BASE DE DADOS'!#REF!)+1),ROWS($1:4))),"") ->  | L21: =IF(ROWS($1:11)>COUNTIF(TBDADOS[VENCIMENTO],$C$5),"",INDEX(TBDADOS[VALOR],SMALL(IF(TBDADOS[VENCIMENTO]=$C$5,ROW(TBDADOS[VENCIMENTO])-ROW(DADOS!$K$2)+1,FALSE),ROWS($1:11)))) ->  | M21: =IF(ROWS($1:11)>COUNTIF(TBDADOS[VENCIMENTO],$C$5),"",INDEX(TBDADOS[Nº DE PARCELAS],SMALL(IF(TBDADOS[VENCIMENTO]=$C$5,ROW(TBDADOS[VENCIMENTO])-ROW(DADOS!$K$2)+1,FALSE),ROWS($1:11)))) -> 

Sheet CALENDARIO
M1: ANO | O1: 2021 | U1: CARD - | W1: MELIUZ | AD1: MÊS - | AF1: =INDEX({"JANEIRO";"FEVEREIRO";"MARCO";"ABRIL";"MAIO";"JUNHO";"JULHO";"AGOSTO";"SETEMBRO";"OUTUBRO";"NOVEMBRO";"DEZEMBRO"},AG2) -> AGOSTO
AG2: 8
D3: 1 | L3: =D3+1 -> 2 | T3: =L3+1 -> 3 | AB3: =T3+1 -> 4 | AJ3: =AB3+1 -> 5 | AR3: =AJ3+1 -> 6
D4: =DATE(O1,D3,1) -> 2021-01-01 | L4: =DATE(ANNO,L3,1) -> 2021-02-01 | T4: =DATE(ANNO,T3,1) -> 2021-03-01 | AB4: =DATE(ANNO,AB3,1) -> 2021-04-01 | AJ4: =DATE(ANNO,AJ3,1) -> 2021-05-01 | AR4: =DATE(ANNO,AR3,1) -> 2021-06-01
D5: 1 | E5: 2 | F5: 3 | G5: 4 | H5: 5 | I5: 6 | J5: 7 | L5: 1 | M5: 2 | N5: 3 | O5: 4 | P5: 5 | Q5: 6 | R5: 7 | T5: 1 | U5: 2 | V5: 3 | W5: 4 | X5: 5 | Y5: 6 | Z5: 7 | AB5: 1 | AC5: 2 | AD5: 3 | AE5: 4 | AF5: 5 | AG5: 6 | AH5: 7 | AJ5: 1 | AK5: 2 | AL5: 3 | AM5: 4 | AN5: 5 | AO5: 6 | AP5: 7 | AR5: 1 | AS5: 2 | AT5: 3 | AU5: 4 | AV5: 5 | AW5: 6 | AX5: 7
D6: D | E6: S | F6: T | G6: Q | H6: Q | I6: S | J6: S | L6: D | M6: S | N6: T | O6: Q | P6: Q | Q6: S | R6: S | T6: D | U6: S | V6: T | W6: Q | X6: Q | Y6: S | Z6: S | AB6: D | AC6: S | AD6: T | AE6: Q | AF6: Q | AG6: S | AH6: S | AJ6: D | AK6: S | AL6: T | AM6: Q | AN6: Q | AO6: S | AP6: S | AR6: D | AS6: S | AT6: T | AU6: Q | AV6: Q | AW6: S | AX6: S
D7: =IF(WEEKDAY(D4)=D5,D4,IF(WEEKDAY(D4)>D5,"",C7+1)) ->  | E7: =IF(WEEKDAY(D4)=E5,D4,IF(WEEKDAY(D4)>E5,"",D7+1)) ->  | F7: =IF(WEEKDAY(D4)=F5,D4,IF(WEEKDAY(D4)>F5,"",E7+1)) ->  | G7: =IF(WEEKDAY(D4)=G5,D4,IF(WEEKDAY(D4)>G5,"",F7+1)) ->  | H7: =IF(WEEKDAY(D4)=H5,D4,IF(WEEKDAY(D4)>H5,"",G7+1)) ->  | I7: =IF(WEEKDAY(D4)=I5,D4,IF(WEEKDAY(D4)>I5,"",H7+1)) -> 2021-01-01 | J7: =IF(WEEKDAY(D4)=J5,D4,IF(WEEKDAY(D4)>J5,"",I7+1)) -> 2021-01-02 | L7: =IF(WEEKDAY(L4)=L5,L4,IF(WEEKDAY(L4)>L5,"",K7+1)) ->  | M7: =IF(WEEKDAY(L4)=M5,L4,IF(WEEKDAY(L4)>M5,"",L7+1)) -> 2021-02-01 | N7: =IF(WEEKDAY(L4)=N5,L4,IF(WEEKDAY(L4)>N5,"",M7+1)) -> 2021-02-02 | O7: =IF(WEEKDAY(L4)=O5,L4,IF(WEEKDAY(L4)>O5,"",N7+1)) -> 2021-02-03 | P7: =IF(WEEKDAY(L4)=P5,L4,IF(WEEKDAY(L4)>P5,"",O7+1)) -> 2021-02-04 | Q7: =IF(WEEKDAY(L4)=Q5,L4,IF(WEEKDAY(L4)>Q5,"",P7+1)) -> 2021-02-05 | R7: =IF(WEEKDAY(L4)=R5,L4,IF(WEEKDAY(L4)>R5,"",Q7+1)) -> 2021-02-06 | T7: =IF(WEEKDAY(T4)=T5,T4,IF(WEEKDAY(T4)>T5,"",S7+1)) ->  | U7: =IF(WEEKDAY(T4)=U5,T4,IF(WEEKDAY(T4)>U5,"",T7+1)) -> 2021-03-01 | V7: =IF(WEEKDAY(T4)=V5,T4,IF(WEEKDAY(T4)>V5,"",U7+1)) -> 2021-03-02 | W7: =IF(WEEKDAY(T4)=W5,T4,IF(WEEKDAY(T4)>W5,"",V7+1)) -> 2021-03-03 | X7: =IF(WEEKDAY(T4)=X5,T4,IF(WEEKDAY(T4)>X5,"",W7+1)) -> 2021-03-04 | Y7: =IF(WEEKDAY(T4)=Y5,T4,IF(WEEKDAY(T4)>Y5,"",X7+1)) -> 2021-03-05 | Z7: =IF(WEEKDAY(T4)=Z5,T4,IF(WEEKDAY(T4)>Z5,"",Y7+1)) -> 2021-03-06 | AB7: =IF(WEEKDAY(AB4)=AB5,AB4,IF(WEEKDAY(AB4)>AB5,"",AA7+1)) ->  | AC7: =IF(WEEKDAY(AB4)=AC5,AB4,IF(WEEKDAY(AB4)>AC5,"",AB7+1)) ->  | AD7: =IF(WEEKDAY(AB4)=AD5,AB4,IF(WEEKDAY(AB4)>AD5,"",AC7+1)) ->  | AE7: =IF(WEEKDAY(AB4)=AE5,AB4,IF(WEEKDAY(AB4)>AE5,"",AD7+1)) ->  | AF7: =IF(WEEKDAY(AB4)=AF5,AB4,IF(WEEKDAY(AB4)>AF5,"",AE7+1)) -> 2021-04-01 | AG7: =IF(WEEKDAY(AB4)=AG5,AB4,IF(WEEKDAY(AB4)>AG5,"",AF7+1)) -> 2021-04-02 | AH7: =IF(WEEKDAY(AB4)=AH5,AB4,IF(WEEKDAY(AB4)>AH5,"",AG7+1)) -> 2021-04-03 | AJ7: =IF(WEEKDAY(AJ4)=AJ5,AJ4,IF(WEEKDAY(AJ4)>AJ5,"",AI7+1)) ->  | AK7: =IF(WEEKDAY(AJ4)=AK5,AJ4,IF(WEEKDAY(AJ4)>AK5,"",AJ7+1)) ->  | AL7: =IF(WEEKDAY(AJ4)=AL5,AJ4,IF(WEEKDAY(AJ4)>AL5,"",AK7+1)) ->  | AM7: =IF(WEEKDAY(AJ4)=AM5,AJ4,IF(WEEKDAY(AJ4)>AM5,"",AL7+1)) ->  | AN7: =IF(WEEKDAY(AJ4)=AN5,AJ4,IF(WEEKDAY(AJ4)>AN5,"",AM7+1)) ->  | AO7: =IF(WEEKDAY(AJ4)=AO5,AJ4,IF(WEEKDAY(AJ4)>AO5,"",AN7+1)) ->  | AP7: =IF(WEEKDAY(AJ4)=AP5,AJ4,IF(WEEKDAY(AJ4)>AP5,"",AO7+1)) -> 2021-05-01 | AR7: =IF(WEEKDAY(AR4)=AR5,AR4,IF(WEEKDAY(AR4)>AR5,"",AQ7+1)) ->  | AS7: =IF(WEEKDAY(AR4)=AS5,AR4,IF(WEEKDAY(AR4)>AS5,"",AR7+1)) ->  | AT7: =IF(WEEKDAY(AR4)=AT5,AR4,IF(WEEKDAY(AR4)>AT5,"",AS7+1)) -> 2021-06-01 | AU7: =IF(WEEKDAY(AR4)=AU5,AR4,IF(WEEKDAY(AR4)>AU5,"",AT7+1)) -> 2021-06-02 | AV7: =IF(WEEKDAY(AR4)=AV5,AR4,IF(WEEKDAY(AR4)>AV5,"",AU7+1)) -> 2021-06-03 | AW7: =IF(WEEKDAY(AR4)=AW5,AR4,IF(WEEKDAY(AR4)>AW5,"",AV7+1)) -> 2021-06-04 | AX7: =IF(WEEKDAY(AR4)=AX5,AR4,IF(WEEKDAY(AR4)>AX5,"",AW7+1)) -> 2021-06-05
D8: =J7+1 -> 2021-01-03 | E8: =D8+1 -> 2021-01-04 | F8: =E8+1 -> 2021-01-05 | G8: 2021-01-06 | H8: 2021-01-07 | I8: 2021-01-08 | J8: 2021-01-09 | L8: =R7+1 -> 2021-02-07 | M8: =L8+1 -> 2021-02-08 | N8: =M8+1 -> 2021-02-09 | O8: 2021-02-10 | P8: 2021-02-11 | Q8: 2021-02-12 | R8: 2021-02-13 | T8: =Z7+1 -> 2021-03-07 | U8: =T8+1 -> 2021-03-08 | V8: =U8+1 -> 2021-03-09 | W8: 2021-03-10 | X8: 2021-03-11 | Y8: 2021-03-12 | Z8: 2021-03-13 | AB8: =AH7+1 -> 2021-04-04 | AC8: =AB8+1 -> 2021-04-05 | AD8: =AC8+1 -> 2021-04-06 | AE8: 2021-04-07 | AF8: 2021-04-08 | AG8: 2021-04-09 | AH8: 2021-04-10 | AJ8: =AP7+1 -> 2021-05-02 | AK8: =AJ8+1 -> 2021-05-03 | AL8: =AK8+1 -> 2021-05-04 | AM8: 2021-05-05 | AN8: 2021-05-06 | AO8: 2021-05-07 | AP8: 2021-05-08 | AR8: =AX7+1 -> 2021-06-06 | AS8: =AR8+1 -> 2021-06-07 | AT8: =AS8+1 -> 2021-06-08 | AU8: 2021-06-09 | AV8: 2021-06-10 | AW8: 2021-06-11 | AX8: 2021-06-12
D9: =J8+1 -> 2021-01-10 | E9: =D9+1 -> 2021-01-11 | F9: 2021-01-12 | G9: 2021-01-13 | H9: 2021-01-14 | I9: 2021-01-15 | J9: 2021-01-16 | L9: =R8+1 -> 2021-02-14 | M9: =L9+1 -> 2021-02-15 | N9: 2021-02-16 | O9: 2021-02-17 | P9: 2021-02-18 | Q9: 2021-02-19 | R9: 2021-02-20 | T9: =Z8+1 -> 2021-03-14 | U9: =T9+1 -> 2021-03-15 | V9: 2021-03-16 | W9: 2021-03-17 | X9: 2021-03-18 | Y9: 2021-03-19 | Z9: 2021-03-20 | AB9: =AH8+1 -> 2021-04-11 | AC9: =AB9+1 -> 2021-04-12 | AD9: 2021-04-13 | AE9: 2021-04-14 | AF9: 2021-04-15 | AG9: 2021-04-16 | AH9: 2021-04-17 | AJ9: =AP8+1 -> 2021-05-09 | AK9: =AJ9+1 -> 2021-05-10 | AL9: 2021-05-11 | AM9: 2021-05-12 | AN9: 2021-05-13 | AO9: 2021-05-14 | AP9: 2021-05-15 | AR9: =AX8+1 -> 2021-06-13 | AS9: =AR9+1 -> 2021-06-14 | AT9: 2021-06-15 | AU9: 2021-06-16 | AV9: 2021-06-17 | AW9: 2021-06-18 | AX9: 2021-06-19
D10: =J9+1 -> 2021-01-17 | E10: =D10+1 -> 2021-01-18 | F10: 2021-01-19 | G10: 2021-01-20 | H10: 2021-01-21 | I10: 2021-01-22 | J10: 2021-01-23 | L10: =R9+1 -> 2021-02-21 | M10: =L10+1 -> 2021-02-22 | N10: 2021-02-23 | O10: 2021-02-24 | P10: 2021-02-25 | Q10: 2021-02-26 | R10: 2021-02-27 | T10: =Z9+1 -> 2021-03-21 | U10: =T10+1 -> 2021-03-22 | V10: 2021-03-23 | W10: 2021-03-24 | X10: 2021-03-25 | Y10: 2021-03-26 | Z10: 2021-03-27 | AB10: =AH9+1 -> 2021-04-18 | AC10: =AB10+1 -> 2021-04-19 | AD10: 2021-04-20 | AE10: 2021-04-21 | AF10: 2021-04-22 | AG10: 2021-04-23 | AH10: 2021-04-24 | AJ10: =AP9+1 -> 2021-05-16 | AK10: =AJ10+1 -> 2021-05-17 | AL10: 2021-05-18 | AM10: 2021-05-19 | AN10: 2021-05-20 | AO10: 2021-05-21 | AP10: 2021-05-22 | AR10: =AX9+1 -> 2021-06-20 | AS10: =AR10+1 -> 2021-06-21 | AT10: 2021-06-22 | AU10: 2021-06-23 | AV10: 2021-06-24 | AW10: 2021-06-25 | AX10: 2021-06-26
D11: =IFERROR(IF(MONTH(J10+1)<>MONTH(J10),"",J10+1),"") -> 2021-01-24 | E11: =IFERROR(IF(MONTH(D11+1)<>MONTH(D11),"",D11+1),"") -> 2021-01-25 | F11: =IFERROR(IF(MONTH(E11+1)<>MONTH(E11),"",E11+1),"") -> 2021-01-26 | G11: 2021-01-27 | H11: 2021-01-28 | I11: 2021-01-29 | J11: 2021-01-30 | L11: =IFERROR(IF(MONTH(R10+1)<>MONTH(R10),"",R10+1),"") -> 2021-02-28 | M11: =IFERROR(IF(MONTH(L11+1)<>MONTH(L11),"",L11+1),"") ->  | N11: =IFERROR(IF(MONTH(M11+1)<>MONTH(M11),"",M11+1),"") ->  | T11: =IFERROR(IF(MONTH(Z10+1)<>MONTH(Z10),"",Z10+1),"") -> 2021-03-28 | U11: =IFERROR(IF(MONTH(T11+1)<>MONTH(T11),"",T11+1),"") -> 2021-03-29 | V11: =IFERROR(IF(MONTH(U11+1)<>MONTH(U11),"",U11+1),"") -> 2021-03-30 | W11: 2021-03-31 | AB11: =IFERROR(IF(MONTH(AH10+1)<>MONTH(AH10),"",AH10+1),"") -> 2021-04-25 | AC11: =IFERROR(IF(MONTH(AB11+1)<>MONTH(AB11),"",AB11+1),"") -> 2021-04-26 | AD11: =IFERROR(IF(MONTH(AC11+1)<>MONTH(AC11),"",AC11+1),"") -> 2021-04-27 | AE11: 2021-04-28 | AF11: 2021-04-29 | AG11: 2021-04-30 | AJ11: =IFERROR(IF(MONTH(AP10+1)<>MONTH(AP10),"",AP10+1),"") -> 2021-05-23 | AK11: =IFERROR(IF(MONTH(AJ11+1)<>MONTH(AJ11),"",AJ11+1),"") -> 2021-05-24 | AL11: =IFERROR(IF(MONTH(AK11+1)<>MONTH(AK11),"",AK11+1),"") -> 2021-05-25 | AM11: 2021-05-26 | AN11: 2021-05-27 | AO11: 2021-05-28 | AP11: 2021-05-29 | AR11: =IFERROR(IF(MONTH(AX10+1)<>MONTH(AX10),"",AX10+1),"") -> 2021-06-27 | AS11: =IFERROR(IF(MONTH(AR11+1)<>MONTH(AR11),"",AR11+1),"") -> 2021-06-28 | AT11: =IFERROR(IF(MONTH(AS11+1)<>MONTH(AS11),"",AS11+1),"") -> 2021-06-29 | AU11: 2021-06-30
D12: =IFERROR(IF(MONTH(J11+1)<>MONTH(J11),"",J11+1),"") -> 2021-01-31 | E12: =IFERROR(IF(MONTH(D12+1)<>MONTH(D12),"",D12+1),"") ->  | L12: =IFERROR(IF(MONTH(R11+1)<>MONTH(R11),"",R11+1),"") ->  | M12: =IFERROR(IF(MONTH(L12+1)<>MONTH(L12),"",L12+1),"") ->  | T12: =IFERROR(IF(MONTH(Z11+1)<>MONTH(Z11),"",Z11+1),"") ->  | U12: =IFERROR(IF(MONTH(T12+1)<>MONTH(T12),"",T12+1),"") ->  | AB12: =IFERROR(IF(MONTH(AH11+1)<>MONTH(AH11),"",AH11+1),"") ->  | AC12: =IFERROR(IF(MONTH(AB12+1)<>MONTH(AB12),"",AB12+1),"") ->  | AJ12: =IFERROR(IF(MONTH(AP11+1)<>MONTH(AP11),"",AP11+1),"") -> 2021-05-30 | AK12: =IFERROR(IF(MONTH(AJ12+1)<>MONTH(AJ12),"",AJ12+1),"") -> 2021-05-31 | AR12: =IFERROR(IF(MONTH(AX11+1)<>MONTH(AX11),"",AX11+1),"") ->  | AS12: =IFERROR(IF(MONTH(AR12+1)<>MONTH(AR12),"",AR12+1),"") -> 
D14: =AR3+1 -> 7 | L14: =D14+1 -> 8 | T14: =L14+1 -> 9 | AB14: =T14+1 -> 10 | AJ14: =AB14+1 -> 11 | AR14: =AJ14+1 -> 12
D15: =DATE(ANNO,D14,1) -> 2021-07-01 | L15: =DATE(ANNO,L14,1) -> 2021-08-01 | T15: =DATE(ANNO,T14,1) -> 2021-09-01 | AB15: =DATE(ANNO,AB14,1) -> 2021-10-01 | AJ15: =DATE(ANNO,AJ14,1) -> 2021-11-01 | AR15: =DATE(ANNO,AR14,1) -> 2021-12-01
D16: 1 | E16: 2 | F16: 3 | G16: 4 | H16: 5 | I16: 6 | J16: 7 | L16: 1 | M16: 2 | N16: 3 | O16: 4 | P16: 5 | Q16: 6 | R16: 7 | T16: 1 | U16: 2 | V16: 3 | W16: 4 | X16: 5 | Y16: 6 | Z16: 7 | AB16: 1 | AC16: 2 | AD16: 3 | AE16: 4 | AF16: 5 | AG16: 6 | AH16: 7 | AJ16: 1 | AK16: 2 | AL16: 3 | AM16: 4 | AN16: 5 | AO16: 6 | AP16: 7 | AR16: 1 | AS16: 2 | AT16: 3 | AU16: 4 | AV16: 5 | AW16: 6 | AX16: 7
D17: D | E17: S | F17: T | G17: Q | H17: Q | I17: S | J17: S | L17: D | M17: S | N17: T | O17: Q | P17: Q | Q17: S | R17: S | T17: D | U17: S | V17: T | W17: Q | X17: Q | Y17: S | Z17: S | AB17: D | AC17: S | AD17: T | AE17: Q | AF17: Q | AG17: S | AH17: S | AJ17: D | AK17: S | AL17: T | AM17: Q | AN17: Q | AO17: S | AP17: S | AR17: D | AS17: S | AT17: T | AU17: Q | AV17: Q | AW17: S | AX17: S
D18: =IF(WEEKDAY(D15)=D16,D15,IF(WEEKDAY(D15)>D16,"",C18+1)) ->  | E18: =IF(WEEKDAY(D15)=E16,D15,IF(WEEKDAY(D15)>E16,"",D18+1)) ->  | F18: =IF(WEEKDAY(D15)=F16,D15,IF(WEEKDAY(D15)>F16,"",E18+1)) ->  | G18: =IF(WEEKDAY(D15)=G16,D15,IF(WEEKDAY(D15)>G16,"",F18+1)) ->  | H18: =IF(WEEKDAY(D15)=H16,D15,IF(WEEKDAY(D15)>H16,"",G18+1)) -> 2021-07-01 | I18: =IF(WEEKDAY(D15)=I16,D15,IF(WEEKDAY(D15)>I16,"",H18+1)) -> 2021-07-02 | J18: =IF(WEEKDAY(D15)=J16,D15,IF(WEEKDAY(D15)>J16,"",I18+1)) -> 2021-07-03 | L18: =IF(WEEKDAY(L15)=L16,L15,IF(WEEKDAY(L15)>L16,"",K18+1)) -> 2021-08-01 | M18: =IF(WEEKDAY(L15)=M16,L15,IF(WEEKDAY(L15)>M16,"",L18+1)) -> 2021-08-02 | N18: =IF(WEEKDAY(L15)=N16,L15,IF(WEEKDAY(L15)>N16,"",M18+1)) -> 2021-08-03 | O18: =IF(WEEKDAY(L15)=O16,L15,IF(WEEKDAY(L15)>O16,"",N18+1)) -> 2021-08-04 | P18: =IF(WEEKDAY(L15)=P16,L15,IF(WEEKDAY(L15)>P16,"",O18+1)) -> 2021-08-05 | Q18: =IF(WEEKDAY(L15)=Q16,L15,IF(WEEKDAY(L15)>Q16,"",P18+1)) -> 2021-08-06 | R18: =IF(WEEKDAY(L15)=R16,L15,IF(WEEKDAY(L15)>R16,"",Q18+1)) -> 2021-08-07 | T18: =IF(WEEKDAY(T15)=T16,T15,IF(WEEKDAY(T15)>T16,"",S18+1)) ->  | U18: =IF(WEEKDAY(T15)=U16,T15,IF(WEEKDAY(T15)>U16,"",T18+1)) ->  | V18: =IF(WEEKDAY(T15)=V16,T15,IF(WEEKDAY(T15)>V16,"",U18+1)) ->  | W18: =IF(WEEKDAY(T15)=W16,T15,IF(WEEKDAY(T15)>W16,"",V18+1)) -> 2021-09-01 | X18: =IF(WEEKDAY(T15)=X16,T15,IF(WEEKDAY(T15)>X16,"",W18+1)) -> 2021-09-02 | Y18: =IF(WEEKDAY(T15)=Y16,T15,IF(WEEKDAY(T15)>Y16,"",X18+1)) -> 2021-09-03 | Z18: =IF(WEEKDAY(T15)=Z16,T15,IF(WEEKDAY(T15)>Z16,"",Y18+1)) -> 2021-09-04 | AB18: =IF(WEEKDAY(AB15)=AB16,AB15,IF(WEEKDAY(AB15)>AB16,"",AA18+1)) ->  | AC18: =IF(WEEKDAY(AB15)=AC16,AB15,IF(WEEKDAY(AB15)>AC16,"",AB18+1)) ->  | AD18: =IF(WEEKDAY(AB15)=AD16,AB15,IF(WEEKDAY(AB15)>AD16,"",AC18+1)) ->  | AE18: =IF(WEEKDAY(AB15)=AE16,AB15,IF(WEEKDAY(AB15)>AE16,"",AD18+1)) ->  | AF18: =IF(WEEKDAY(AB15)=AF16,AB15,IF(WEEKDAY(AB15)>AF16,"",AE18+1)) ->  | AG18: =IF(WEEKDAY(AB15)=AG16,AB15,IF(WEEKDAY(AB15)>AG16,"",AF18+1)) -> 2021-10-01 | AH18: =IF(WEEKDAY(AB15)=AH16,AB15,IF(WEEKDAY(AB15)>AH16,"",AG18+1)) -> 2021-10-02 | AJ18: =IF(WEEKDAY(AJ15)=AJ16,AJ15,IF(WEEKDAY(AJ15)>AJ16,"",AI18+1)) ->  | AK18: =IF(WEEKDAY(AJ15)=AK16,AJ15,IF(WEEKDAY(AJ15)>AK16,"",AJ18+1)) -> 2021-11-01 | AL18: =IF(WEEKDAY(AJ15)=AL16,AJ15,IF(WEEKDAY(AJ15)>AL16,"",AK18+1)) -> 2021-11-02 | AM18: =IF(WEEKDAY(AJ15)=AM16,AJ15,IF(WEEKDAY(AJ15)>AM16,"",AL18+1)) -> 2021-11-03 | AN18: =IF(WEEKDAY(AJ15)=AN16,AJ15,IF(WEEKDAY(AJ15)>AN16,"",AM18+1)) -> 2021-11-04 | AO18: =IF(WEEKDAY(AJ15)=AO16,AJ15,IF(WEEKDAY(AJ15)>AO16,"",AN18+1)) -> 2021-11-05 | AP18: =IF(WEEKDAY(AJ15)=AP16,AJ15,IF(WEEKDAY(AJ15)>AP16,"",AO18+1)) -> 2021-11-06 | AR18: =IF(WEEKDAY(AR15)=AR16,AR15,IF(WEEKDAY(AR15)>AR16,"",AQ18+1)) ->  | AS18: =IF(WEEKDAY(AR15)=AS16,AR15,IF(WEEKDAY(AR15)>AS16,"",AR18+1)) ->  | AT18: =IF(WEEKDAY(AR15)=AT16,AR15,IF(WEEKDAY(AR15)>AT16,"",AS18+1)) ->  | AU18: =IF(WEEKDAY(AR15)=AU16,AR15,IF(WEEKDAY(AR15)>AU16,"",AT18+1)) -> 2021-12-01 | AV18: =IF(WEEKDAY(AR15)=AV16,AR15,IF(WEEKDAY(AR15)>AV16,"",AU18+1)) -> 2021-12-02 | AW18: =IF(WEEKDAY(AR15)=AW16,AR15,IF(WEEKDAY(AR15)>AW16,"",AV18+1)) -> 2021-12-03 | AX18: =IF(WEEKDAY(AR15)=AX16,AR15,IF(WEEKDAY(AR15)>AX16,"",AW18+1)) -> 2021-12-04
D19: =J18+1 -> 2021-07-04 | E19: =D19+1 -> 2021-07-05 | F19: =E19+1 -> 2021-07-06 | G19: 2021-07-07 | H19: 2021-07-08 | I19: 2021-07-09 | J19: 2021-07-10 | L19: =R18+1 -> 2021-08-08 | M19: =L19+1 -> 2021-08-09 | N19: =M19+1 -> 2021-08-10 | O19: 2021-08-11 | P19: 2021-08-12 | Q19: 2021-08-13 | R19: 2021-08-14 | T19: =Z18+1 -> 2021-09-05 | U19: =T19+1 -> 2021-09-06 | V19: =U19+1 -> 2021-09-07 | W19: 2021-09-08 | X19: 2021-09-09 | Y19: 2021-09-10 | Z19: 2021-09-11 | AB19: =AH18+1 -> 2021-10-03 | AC19: =AB19+1 -> 2021-10-04 | AD19: =AC19+1 -> 2021-10-05 | AE19: 2021-10-06 | AF19: 2021-10-07 | AG19: 2021-10-08 | AH19: 2021-10-09 | AJ19: =AP18+1 -> 2021-11-07 | AK19: =AJ19+1 -> 2021-11-08 | AL19: =AK19+1 -> 2021-11-09 | AM19: 2021-11-10 | AN19: 2021-11-11 | AO19: 2021-11-12 | AP19: 2021-11-13 | AR19: =AX18+1 -> 2021-12-05 | AS19: =AR19+1 -> 2021-12-06 | AT19: =AS19+1 -> 2021-12-07 | AU19: 2021-12-08 | AV19: 2021-12-09 | AW19: 2021-12-10 | AX19: 2021-12-11
D20: =J19+1 -> 2021-07-11 | E20: =D20+1 -> 2021-07-12 | F20: 2021-07-13 | G20: 2021-07-14 | H20: 2021-07-15 | I20: 2021-07-16 | J20: 2021-07-17 | L20: =R19+1 -> 2021-08-15 | M20: =L20+1 -> 2021-08-16 | N20: 2021-08-17 | O20: 2021-08-18 | P20: 2021-08-19 | Q20: 2021-08-20 | R20: 2021-08-21 | T20: =Z19+1 -> 2021-09-12 | U20: =T20+1 -> 2021-09-13 | V20: 2021-09-14 | W20: 2021-09-15 | X20: 2021-09-16 | Y20: 2021-09-17 | Z20: 2021-09-18 | AB20: =AH19+1 -> 2021-10-10 | AC20: =AB20+1 -> 2021-10-11 | AD20: 2021-10-12 | AE20: 2021-10-13 | AF20: 2021-10-14 | AG20: 2021-10-15 | AH20: 2021-10-16 | AJ20: =AP19+1 -> 2021-11-14 | AK20: =AJ20+1 -> 2021-11-15 | AL20: 2021-11-16 | AM20: 2021-11-17 | AN20: 2021-11-18 | AO20: 2021-11-19 | AP20: 2021-11-20 | AR20: =AX19+1 -> 2021-12-12 | AS20: =AR20+1 -> 2021-12-13 | AT20: 2021-12-14 | AU20: 2021-12-15 | AV20: 2021-12-16 | AW20: 2021-12-17 | AX20: 2021-12-18
D21: =J20+1 -> 2021-07-18 | E21: =D21+1 -> 2021-07-19 | F21: 2021-07-20 | G21: 2021-07-21 | H21: 2021-07-22 | I21: 2021-07-23 | J21: 2021-07-24 | L21: =R20+1 -> 2021-08-22 | M21: =L21+1 -> 2021-08-23 | N21: 2021-08-24 | O21: 2021-08-25 | P21: 2021-08-26 | Q21: 2021-08-27 | R21: 2021-08-28 | T21: =Z20+1 -> 2021-09-19 | U21: =T21+1 -> 2021-09-20 | V21: 2021-09-21 | W21: 2021-09-22 | X21: 2021-09-23 | Y21: 2021-09-24 | Z21: 2021-09-25 | AB21: =AH20+1 -> 2021-10-17 | AC21: =AB21+1 -> 2021-10-18 | AD21: 2021-10-19 | AE21: 2021-10-20 | AF21: 2021-10-21 | AG21: 2021-10-22 | AH21: 2021-10-23 | AJ21: =AP20+1 -> 2021-11-21 | AK21: =AJ21+1 -> 2021-11-22 | AL21: 2021-11-23 | AM21: 2021-11-24 | AN21: 2021-11-25 | AO21: 2021-11-26 | AP21: 2021-11-27 | AR21: =AX20+1 -> 2021-12-19 | AS21: =AR21+1 -> 2021-12-20 | AT21: 2021-12-21 | AU21: 2021-12-22 | AV21: 2021-12-23 | AW21: 2021-12-24 | AX21: 2021-12-25
D22: =IFERROR(IF(MONTH(J21+1)<>MONTH(J21),"",J21+1),"") -> 2021-07-25 | E22: =IFERROR(IF(MONTH(D22+1)<>MONTH(D22),"",D22+1),"") -> 2021-07-26 | F22: =IFERROR(IF(MONTH(E22+1)<>MONTH(E22),"",E22+1),"") -> 2021-07-27 | G22: 2021-07-28 | H22: 2021-07-29 | I22: 2021-07-30 | J22: 2021-07-31 | L22: =IFERROR(IF(MONTH(R21+1)<>MONTH(R21),"",R21+1),"") -> 2021-08-29 | M22: =IFERROR(IF(MONTH(L22+1)<>MONTH(L22),"",L22+1),"") -> 2021-08-30 | N22: =IFERROR(IF(MONTH(M22+1)<>MONTH(M22),"",M22+1),"") -> 2021-08-31 | T22: =IFERROR(IF(MONTH(Z21+1)<>MONTH(Z21),"",Z21+1),"") -> 2021-09-26 | U22: =IFERROR(IF(MONTH(T22+1)<>MONTH(T22),"",T22+1),"") -> 2021-09-27 | V22: =IFERROR(IF(MONTH(U22+1)<>MONTH(U22),"",U22+1),"") -> 2021-09-28 | W22: 2021-09-29 | X22: 2021-09-30 | AB22: =IFERROR(IF(MONTH(AH21+1)<>MONTH(AH21),"",AH21+1),"") -> 2021-10-24 | AC22: =IFERROR(IF(MONTH(AB22+1)<>MONTH(AB22),"",AB22+1),"") -> 2021-10-25 | AD22: =IFERROR(IF(MONTH(AC22+1)<>MONTH(AC22),"",AC22+1),"") -> 2021-10-26 | AE22: 2021-10-27 | AF22: 2021-10-28 | AG22: 2021-10-29 | AH22: 2021-10-30 | AJ22: =IFERROR(IF(MONTH(AP21+1)<>MONTH(AP21),"",AP21+1),"") -> 2021-11-28 | AK22: =IFERROR(IF(MONTH(AJ22+1)<>MONTH(AJ22),"",AJ22+1),"") -> 2021-11-29 | AL22: =IFERROR(IF(MONTH(AK22+1)<>MONTH(AK22),"",AK22+1),"") -> 2021-11-30 | AR22: =IFERROR(IF(MONTH(AX21+1)<>MONTH(AX21),"",AX21+1),"") -> 2021-12-26 | AS22: =IFERROR(IF(MONTH(AR22+1)<>MONTH(AR22),"",AR22+1),"") -> 2021-12-27 | AT22: =IFERROR(IF(MONTH(AS22+1)<>MONTH(AS22),"",AS22+1),"") -> 2021-12-28 | AU22: 2021-12-29 | AV22: 2021-12-30 | AW22: 2021-12-31
D23: =IFERROR(IF(MONTH(J22+1)<>MONTH(J22),"",J22+1),"") ->  | E23: =IFERROR(IF(MONTH(D23+1)<>MONTH(D23),"",D23+1),"") ->  | L23: =IFERROR(IF(MONTH(R22+1)<>MONTH(R22),"",R22+1),"") ->  | M23: =IFERROR(IF(MONTH(L23+1)<>MONTH(L23),"",L23+1),"") ->  | T23: =IFERROR(IF(MONTH(Z22+1)<>MONTH(Z22),"",Z22+1),"") ->  | U23: =IFERROR(IF(MONTH(T23+1)<>MONTH(T23),"",T23+1),"") ->  | AB23: =IFERROR(IF(MONTH(AH22+1)<>MONTH(AH22),"",AH22+1),"") -> 2021-10-31 | AC23: =IFERROR(IF(MONTH(AB23+1)<>MONTH(AB23),"",AB23+1),"") ->  | AJ23: =IFERROR(IF(MONTH(AP22+1)<>MONTH(AP22),"",AP22+1),"") ->  | AK23: =IFERROR(IF(MONTH(AJ23+1)<>MONTH(AJ23),"",AJ23+1),"") ->  | AR23: =IFERROR(IF(MONTH(AX22+1)<>MONTH(AX22),"",AX22+1),"") ->  | AS23: =IFERROR(IF(MONTH(AR23+1)<>MONTH(AR23),"",AR23+1),"") -> 

Sheet FERIADOS
A1: DATA DO FERIADO | B1: DESCRIÇÃO DO FERIADO | C1: ANO | D1: MÊS | E1: DIA | H1: =ANNO -> 2021 | I1: TITULAR | J1: DIA | K1: FECHAMENTO | L1: VENCIMENTO | Q1: CARTÕES | R1: FECHAMENTO | S1: VENCIMENTO
A2: =DATE(C2,D2,E2) -> 44197 | B2: INICIO DO ANO | C2: =$H$1 -> 2021 | D2: 1 | E2: 1 | J2: =DAY(L2) -> 1 | K2: =VLOOKUP(CALENDARIO!W1,CONFIG!$D$2:$G$15,4,0) -> 44397 | L2: =VLOOKUP(CALENDARIO!W1,CONFIG!$D$2:$G$15,3,0) -> 44409
A3: =A4-1 -> 44242 | B3: CARNAVAL | C3: =$H$1 -> 2021 | D3: X | E3: X
A4: =A6-47 -> 44243 | B4: CARNAVAL | C4: 2021 | D4: X | E4: X
A5: =A6-2 -> 44288 | B5: SEXTA SANTA | C5: 2021 | D5: X | E5: X
A6: =FLOOR(DAY(MINUTE(H1/38)/2+56)&"/5"&"/"&H1,7)-34 -> 44290 | B6: PASCOA | C6: 2021 | D6: X | E6: X
A7: =DATE(C7,D7,E7) -> 44307 | B7: TIRADENTES | C7: 2021 | D7: 4 | E7: 21
A8: =DATE(C8,D8,E8) -> 44317 | B8: DIA DO TRABALHADOR | C8: 2021 | D8: 5 | E8: 1
A9: =A6+60 -> 44350 | B9: CORPUS CRISTHI | C9: 2021 | D9: X | E9: X
A10: =DATE(C10,D10,E10) -> 44446 | B10: INDEPENDÊNCIA | C10: 2021 | D10: 9 | E10: 7
A11: =DATE(C11,D11,E11) -> 44481 | B11: NOSSA SENHORA APARECIDA | C11: 2021 | D11: 10 | E11: 12
A12: =DATE(C12,D12,E12) -> 44502 | B12: FINADOS | C12: 2021 | D12: 11 | E12: 2
A13: 44515 | B13: PROCLAMAÇÃO DA REPÚBLICA | C13: 2021 | D13: 11 | E13: 15
A14: 44555 | B14: NATAL | C14: 2021 | D14: 12 | E14: 25
C15: 2021
C16: 2021
C17: 2021 | L17: SE(CALENDÁRIO!AD1<>"";DATA(ANO(HOJE());SE(MÊS(L2)=MÊS(DATA(ANO(HOJE());CALENDÁRIO!AG2;PROCV(CALENDÁRIO!AD1;AUXILIAR!D2:G15;4;0)));MÊS(L2)-1;CALENDÁRIO!AG2);PROCV(CALENDÁRIO!AD1;AUXILIAR!D2:G15;4;0)))
C18: 2021
C19: 2021 | L19: 77175
C20: 2021
C21: 2021
C22: 2021
C23: 2021
C24: 2021
C25: 2021
C26: 2021
C27: 2021
C28: 2021

Sheet GASTOS_MENSAIS
A5: CARTÃO | B5: JANEIRO | C5: FEVEREIRO | D5: MARÇO | E5: ABRIL | F5: MAIO | G5: JUNHO | H5: JULHO | I5: AGOSTO | J5: SETEMBRO | K5: OUTUBRO | L5: NOVEMBRO | M5: DEZEMBRO | N5: TOTAL | Q5: CARTÃO | R5: LIMITE DISPONIVEL | S5: GASTOS | T5: DISPONIVEL
A6: CARTÃO | B6: 2021-01-01 | C6: 2021-02-01 | D6: 2021-03-01 | E6: 2021-04-01 | F6: 2021-05-01 | G6: 2021-06-01 | H6: 2021-07-01 | I6: 2021-08-01 | J6: 2021-09-01 | K6: 2021-10-01 | L6: 2021-11-01 | M6: 2021-12-01
A7: =CONFIG!A2 -> CLICK_JUNIOR | B7: =SUMIFS(DADOS!$O:$O,DADOS!$E:$E,$A7,DADOS!$M:$M,DATE(YEAR(TODAY()),MONTH(B$6),DAY(VLOOKUP($A7,CONFIG!$E$2:$F$15,2,0)))) -> 0 | C7: =SUMIFS(DADOS!$O:$O,DADOS!$E:$E,$A7,DADOS!$M:$M,DATE(YEAR(TODAY()),MONTH(C$6),DAY(VLOOKUP($A7,CONFIG!$E$2:$F$15,2,0)))) -> 0 | D7: =SUMIFS(DADOS!$O:$O,DADOS!$E:$E,$A7,DADOS!$M:$M,DATE(YEAR(TODAY()),MONTH(D$6),DAY(VLOOKUP($A7,CONFIG!$E$2:$F$15,2,0)))) -> 0 | E7: =SUMIFS(DADOS!$O:$O,DADOS!$E:$E,$A7,DADOS!$M:$M,DATE(YEAR(TODAY()),MONTH(E$6),DAY(VLOOKUP($A7,CONFIG!$E$2:$F$15,2,0)))) -> 0 | F7: =SUMIFS(DADOS!$O:$O,DADOS!$E:$E,$A7,DADOS!$M:$M,DATE(YEAR(TODAY()),MONTH(F$6),DAY(VLOOKUP($A7,CONFIG!$E$2:$F$15,2,0)))) -> 0 | G7: =SUMIFS(DADOS!$O:$O,DADOS!$E:$E,$A7,DADOS!$M:$M,DATE(YEAR(TODAY()),MONTH(G$6),DAY(VLOOKUP($A7,CONFIG!$E$2:$F$15,2,0)))) -> 0 | H7: =SUMIFS(DADOS!$O:$O,DADOS!$E:$E,$A7,DADOS!$M:$M,DATE(YEAR(TODAY()),MONTH(H$6),DAY(VLOOKUP($A7,CONFIG!$E$2:$F$15,2,0)))) -> 0 | I7: =SUMIFS(DADOS!$O:$O,DADOS!$E:$E,$A7,DADOS!$M:$M,DATE(YEAR(TODAY()),MONTH(I$6),DAY(VLOOKUP($A7,CONFIG!$E$2:$F$15,2,0)))) -> 0 | J7: =SUMIFS(DADOS!$O:$O,DADOS!$E:$E,$A7,DADOS!$M:$M,DATE(YEAR(TODAY()),MONTH(J$6),DAY(VLOOKUP($A7,CONFIG!$E$2:$F$15,2,0)))) -> 0 | K7: =SUMIFS(DADOS!$O:$O,DADOS!$E:$E,$A7,DADOS!$M:$M,DATE(YEAR(TODAY()),MONTH(K$6),DAY(VLOOKUP($A7,CONFIG!$E$2:$F$15,2,0)))) -> 0 | L7: =SUMIFS(DADOS!$O:$O,DADOS!$E:$E,$A7,DADOS!$M:$M,DATE(YEAR(TODAY()),MONTH(L$6),DAY(VLOOKUP($A7,CONFIG!$E$2:$F$15,2,0)))) -> 0 | M7: =SUMIFS(DADOS!$O:$O,DADOS!$E:$E,$A7,DADOS!$M:$M,DATE(YEAR(TODAY()),MONTH(M$6),DAY(VLOOKUP($A7,CONFIG!$E$2:$F$15,2,0)))) -> 0 | N7: =SUM(B7:M7) -> 0 | Q7: =A7 -> CLICK_JUNIOR | R7: 2300 | T7: =R7-S7 -> 
A8: =CONFIG!A3 -> MELIUZ_JUNIOR | B8: =SUMIFS(DADOS!$O:$O,DADOS!$E:$E,$A8,DADOS!$M:$M,DATE(YEAR(TODAY()),MONTH(B$6),DAY(VLOOKUP($A8,CONFIG!$E$2:$F$15,2,0)))) -> 0 | C8: =SUMIFS(DADOS!$O:$O,DADOS!$E:$E,$A8,DADOS!$M:$M,DATE(YEAR(TODAY()),MONTH(C$6),DAY(VLOOKUP($A8,CONFIG!$E$2:$F$15,2,0)))) -> 0 | D8: =SUMIFS(DADOS!$O:$O,DADOS!$E:$E,$A8,DADOS!$M:$M,DATE(YEAR(TODAY()),MONTH(D$6),DAY(VLOOKUP($A8,CONFIG!$E$2:$F$15,2,0)))) -> 0 | E8: =SUMIFS(DADOS!$O:$O,DADOS!$E:$E,$A8,DADOS!$M:$M,DATE(YEAR(TODAY()),MONTH(E$6),DAY(VLOOKUP($A8,CONFIG!$E$2:$F$15,2,0)))) -> 0 | F8: =SUMIFS(DADOS!$O:$O,DADOS!$E:$E,$A8,DADOS!$M:$M,DATE(YEAR(TODAY()),MONTH(F$6),DAY(VLOOKUP($A8,CONFIG!$E$2:$F$15,2,0)))) -> 0 | G8: =SUMIFS(DADOS!$O:$O,DADOS!$E:$E,$A8,DADOS!$M:$M,DATE(YEAR(TODAY()),MONTH(G$6),DAY(VLOOKUP($A8,CONFIG!$E$2:$F$15,2,0)))) -> 0 | H8: =SUMIFS(DADOS!$O:$O,DADOS!$E:$E,$A8,DADOS!$M:$M,DATE(YEAR(TODAY()),MONTH(H$6),DAY(VLOOKUP($A8,CONFIG!$E$2:$F$15,2,0)))) -> 0 | I8: =SUMIFS(DADOS!$O:$O,DADOS!$E:$E,$A8,DADOS!$M:$M,DATE(YEAR(TODAY()),MONTH(I$6),DAY(VLOOKUP($A8,CONFIG!$E$2:$F$15,2,0)))) -> 0 | J8: =SUMIFS(DADOS!$O:$O,DADOS!$E:$E,$A8,DADOS!$M:$M,DATE(YEAR(TODAY()),MONTH(J$6),DAY(VLOOKUP($A8,CONFIG!$E$2:$F$15,2,0)))) -> 0 | K8: =SUMIFS(DADOS!$O:$O,DADOS!$E:$E,$A8,DADOS!$M:$M,DATE(YEAR(TODAY()),MONTH(K$6),DAY(VLOOKUP($A8,CONFIG!$E$2:$F$15,2,0)))) -> 0 | L8: =SUMIFS(DADOS!$O:$O,DADOS!$E:$E,$A8,DADOS!$M:$M,DATE(YEAR(TODAY()),MONTH(L$6),DAY(VLOOKUP($A8,CONFIG!$E$2:$F$15,2,0)))) -> 0 | M8: =SUMIFS(DADOS!$O:$O,DADOS!$E:$E,$A8,DADOS!$M:$M,DATE(YEAR(TODAY()),MONTH(M$6),DAY(VLOOKUP($A8,CONFIG!$E$2:$F$15,2,0)))) -> 0 | N8: =SUM(B8:M8) -> 0 | Q8: =A8 -> MELIUZ_JUNIOR | R8: 950 | T8: =R8-S8 -> 
A9: =CONFIG!A4 -> ZERO_JUNIOR | B9: =SUMIFS(DADOS!$O:$O,DADOS!$E:$E,$A9,DADOS!$M:$M,DATE(YEAR(TODAY()),MONTH(B$6),DAY(VLOOKUP($A9,CONFIG!$E$2:$F$15,2,0)))) -> 0 | C9: =SUMIFS(DADOS!$O:$O,DADOS!$E:$E,$A9,DADOS!$M:$M,DATE(YEAR(TODAY()),MONTH(C$6),DAY(VLOOKUP($A9,CONFIG!$E$2:$F$15,2,0)))) -> 0 | D9: =SUMIFS(DADOS!$O:$O,DADOS!$E:$E,$A9,DADOS!$M:$M,DATE(YEAR(TODAY()),MONTH(D$6),DAY(VLOOKUP($A9,CONFIG!$E$2:$F$15,2,0)))) -> 0 | E9: =SUMIFS(DADOS!$O:$O,DADOS!$E:$E,$A9,DADOS!$M:$M,DATE(YEAR(TODAY()),MONTH(E$6),DAY(VLOOKUP($A9,CONFIG!$E$2:$F$15,2,0)))) -> 0 | F9: =SUMIFS(DADOS!$O:$O,DADOS!$E:$E,$A9,DADOS!$M:$M,DATE(YEAR(TODAY()),MONTH(F$6),DAY(VLOOKUP($A9,CONFIG!$E$2:$F$15,2,0)))) -> 0 | G9: =SUMIFS(DADOS!$O:$O,DADOS!$E:$E,$A9,DADOS!$M:$M,DATE(YEAR(TODAY()),MONTH(G$6),DAY(VLOOKUP($A9,CONFIG!$E$2:$F$15,2,0)))) -> 0 | H9: =SUMIFS(DADOS!$O:$O,DADOS!$E:$E,$A9,DADOS!$M:$M,DATE(YEAR(TODAY()),MONTH(H$6),DAY(VLOOKUP($A9,CONFIG!$E$2:$F$15,2,0)))) -> 0 | I9: =SUMIFS(DADOS!$O:$O,DADOS!$E:$E,$A9,DADOS!$M:$M,DATE(YEAR(TODAY()),MONTH(I$6),DAY(VLOOKUP($A9,CONFIG!$E$2:$F$15,2,0)))) -> 0 | J9: =SUMIFS(DADOS!$O:$O,DADOS!$E:$E,$A9,DADOS!$M:$M,DATE(YEAR(TODAY()),MONTH(J$6),DAY(VLOOKUP($A9,CONFIG!$E$2:$F$15,2,0)))) -> 0 | K9: =SUMIFS(DADOS!$O:$O,DADOS!$E:$E,$A9,DADOS!$M:$M,DATE(YEAR(TODAY()),MONTH(K$6),DAY(VLOOKUP($A9,CONFIG!$E$2:$F$15,2,0)))) -> 0 | L9: =SUMIFS(DADOS!$O:$O,DADOS!$E:$E,$A9,DADOS!$M:$M,DATE(YEAR(TODAY()),MONTH(L$6),DAY(VLOOKUP($A9,CONFIG!$E$2:$F$15,2,0)))) -> 0 | M9: =SUMIFS(DADOS!$O:$O,DADOS!$E:$E,$A9,DADOS!$M:$M,DATE(YEAR(TODAY()),MONTH(M$6),DAY(VLOOKUP($A9,CONFIG!$E$2:$F$15,2,0)))) -> 0 | N9: 0 | Q9: ZERO_JUNIOR | R9: 1600
A10: =CONFIG!A5 -> NUBANK_JUNIOR | B10: =SUMIFS(DADOS!$O:$O,DADOS!$E:$E,$A10,DADOS!$M:$M,DATE(YEAR(TODAY()),MONTH(B$6),DAY(VLOOKUP($A10,CONFIG!$E$2:$F$15,2,0)))) -> 0 | C10: =SUMIFS(DADOS!$O:$O,DADOS!$E:$E,$A10,DADOS!$M:$M,DATE(YEAR(TODAY()),MONTH(C$6),DAY(VLOOKUP($A10,CONFIG!$E$2:$F$15,2,0)))) -> 0 | D10: =SUMIFS(DADOS!$O:$O,DADOS!$E:$E,$A10,DADOS!$M:$M,DATE(YEAR(TODAY()),MONTH(D$6),DAY(VLOOKUP($A10,CONFIG!$E$2:$F$15,2,0)))) -> 0 | E10: =SUMIFS(DADOS!$O:$O,DADOS!$E:$E,$A10,DADOS!$M:$M,DATE(YEAR(TODAY()),MONTH(E$6),DAY(VLOOKUP($A10,CONFIG!$E$2:$F$15,2,0)))) -> 0 | F10: =SUMIFS(DADOS!$O:$O,DADOS!$E:$E,$A10,DADOS!$M:$M,DATE(YEAR(TODAY()),MONTH(F$6),DAY(VLOOKUP($A10,CONFIG!$E$2:$F$15,2,0)))) -> 0 | G10: =SUMIFS(DADOS!$O:$O,DADOS!$E:$E,$A10,DADOS!$M:$M,DATE(YEAR(TODAY()),MONTH(G$6),DAY(VLOOKUP($A10,CONFIG!$E$2:$F$15,2,0)))) -> 0 | H10: =SUMIFS(DADOS!$O:$O,DADOS!$E:$E,$A10,DADOS!$M:$M,DATE(YEAR(TODAY()),MONTH(H$6),DAY(VLOOKUP($A10,CONFIG!$E$2:$F$15,2,0)))) -> 0 | I10: =SUMIFS(DADOS!$O:$O,DADOS!$E:$E,$A10,DADOS!$M:$M,DATE(YEAR(TODAY()),MONTH(I$6),DAY(VLOOKUP($A10,CONFIG!$E$2:$F$15,2,0)))) -> 0 | J10: =SUMIFS(DADOS!$O:$O,DADOS!$E:$E,$A10,DADOS!$M:$M,DATE(YEAR(TODAY()),MONTH(J$6),DAY(VLOOKUP($A10,CONFIG!$E$2:$F$15,2,0)))) -> 0 | K10: =SUMIFS(DADOS!$O:$O,DADOS!$E:$E,$A10,DADOS!$M:$M,DATE(YEAR(TODAY()),MONTH(K$6),DAY(VLOOKUP($A10,CONFIG!$E$2:$F$15,2,0)))) -> 0 | L10: =SUMIFS(DADOS!$O:$O,DADOS!$E:$E,$A10,DADOS!$M:$M,DATE(YEAR(TODAY()),MONTH(L$6),DAY(VLOOKUP($A10,CONFIG!$E$2:$F$15,2,0)))) -> 0 | M10: =SUMIFS(DADOS!$O:$O,DADOS!$E:$E,$A10,DADOS!$M:$M,DATE(YEAR(TODAY()),MONTH(M$6),DAY(VLOOKUP($A10,CONFIG!$E$2:$F$15,2,0)))) -> 0 | N10: 0 | Q10: NUBANK_JUNIOR | R10: 4350
A11: =CONFIG!A6 -> AZUL_JUNIOR | B11: =SUMIFS(DADOS!$O:$O,DADOS!$E:$E,$A11,DADOS!$M:$M,DATE(YEAR(TODAY()),MONTH(B$6),DAY(VLOOKUP($A11,CONFIG!$E$2:$F$15,2,0)))) -> 0 | C11: =SUMIFS(DADOS!$O:$O,DADOS!$E:$E,$A11,DADOS!$M:$M,DATE(YEAR(TODAY()),MONTH(C$6),DAY(VLOOKUP($A11,CONFIG!$E$2:$F$15,2,0)))) -> 0 | D11: =SUMIFS(DADOS!$O:$O,DADOS!$E:$E,$A11,DADOS!$M:$M,DATE(YEAR(TODAY()),MONTH(D$6),DAY(VLOOKUP($A11,CONFIG!$E$2:$F$15,2,0)))) -> 0 | E11: =SUMIFS(DADOS!$O:$O,DADOS!$E:$E,$A11,DADOS!$M:$M,DATE(YEAR(TODAY()),MONTH(E$6),DAY(VLOOKUP($A11,CONFIG!$E$2:$F$15,2,0)))) -> 0 | F11: =SUMIFS(DADOS!$O:$O,DADOS!$E:$E,$A11,DADOS!$M:$M,DATE(YEAR(TODAY()),MONTH(F$6),DAY(VLOOKUP($A11,CONFIG!$E$2:$F$15,2,0)))) -> 0 | G11: =SUMIFS(DADOS!$O:$O,DADOS!$E:$E,$A11,DADOS!$M:$M,DATE(YEAR(TODAY()),MONTH(G$6),DAY(VLOOKUP($A11,CONFIG!$E$2:$F$15,2,0)))) -> 0 | H11: =SUMIFS(DADOS!$O:$O,DADOS!$E:$E,$A11,DADOS!$M:$M,DATE(YEAR(TODAY()),MONTH(H$6),DAY(VLOOKUP($A11,CONFIG!$E$2:$F$15,2,0)))) -> 0 | I11: =SUMIFS(DADOS!$O:$O,DADOS!$E:$E,$A11,DADOS!$M:$M,DATE(YEAR(TODAY()),MONTH(I$6),DAY(VLOOKUP($A11,CONFIG!$E$2:$F$15,2,0)))) -> 0 | J11: =SUMIFS(DADOS!$O:$O,DADOS!$E:$E,$A11,DADOS!$M:$M,DATE(YEAR(TODAY()),MONTH(J$6),DAY(VLOOKUP($A11,CONFIG!$E$2:$F$15,2,0)))) -> 0 | K11: =SUMIFS(DADOS!$O:$O,DADOS!$E:$E,$A11,DADOS!$M:$M,DATE(YEAR(TODAY()),MONTH(K$6),DAY(VLOOKUP($A11,CONFIG!$E$2:$F$15,2,0)))) -> 0 | L11: =SUMIFS(DADOS!$O:$O,DADOS!$E:$E,$A11,DADOS!$M:$M,DATE(YEAR(TODAY()),MONTH(L$6),DAY(VLOOKUP($A11,CONFIG!$E$2:$F$15,2,0)))) -> 0 | M11: =SUMIFS(DADOS!$O:$O,DADOS!$E:$E,$A11,DADOS!$M:$M,DATE(YEAR(TODAY()),MONTH(M$6),DAY(VLOOKUP($A11,CONFIG!$E$2:$F$15,2,0)))) -> 0 | N11: 0 | Q11: AZUL_JUNIOR | R11: 2150
A12: =CONFIG!A7 -> GOLD_JUNIOR | B12: =SUMIFS(DADOS!$O:$O,DADOS!$E:$E,$A12,DADOS!$M:$M,DATE(YEAR(TODAY()),MONTH(B$6),DAY(VLOOKUP($A12,CONFIG!$E$2:$F$15,2,0)))) -> 0 | C12: =SUMIFS(DADOS!$O:$O,DADOS!$E:$E,$A12,DADOS!$M:$M,DATE(YEAR(TODAY()),MONTH(C$6),DAY(VLOOKUP($A12,CONFIG!$E$2:$F$15,2,0)))) -> 0 | D12: =SUMIFS(DADOS!$O:$O,DADOS!$E:$E,$A12,DADOS!$M:$M,DATE(YEAR(TODAY()),MONTH(D$6),DAY(VLOOKUP($A12,CONFIG!$E$2:$F$15,2,0)))) -> 0 | E12: =SUMIFS(DADOS!$O:$O,DADOS!$E:$E,$A12,DADOS!$M:$M,DATE(YEAR(TODAY()),MONTH(E$6),DAY(VLOOKUP($A12,CONFIG!$E$2:$F$15,2,0)))) -> 0 | F12: =SUMIFS(DADOS!$O:$O,DADOS!$E:$E,$A12,DADOS!$M:$M,DATE(YEAR(TODAY()),MONTH(F$6),DAY(VLOOKUP($A12,CONFIG!$E$2:$F$15,2,0)))) -> 0 | G12: =SUMIFS(DADOS!$O:$O,DADOS!$E:$E,$A12,DADOS!$M:$M,DATE(YEAR(TODAY()),MONTH(G$6),DAY(VLOOKUP($A12,CONFIG!$E$2:$F$15,2,0)))) -> 0 | H12: =SUMIFS(DADOS!$O:$O,DADOS!$E:$E,$A12,DADOS!$M:$M,DATE(YEAR(TODAY()),MONTH(H$6),DAY(VLOOKUP($A12,CONFIG!$E$2:$F$15,2,0)))) -> 0 | I12: =SUMIFS(DADOS!$O:$O,DADOS!$E:$E,$A12,DADOS!$M:$M,DATE(YEAR(TODAY()),MONTH(I$6),DAY(VLOOKUP($A12,CONFIG!$E$2:$F$15,2,0)))) -> 0 | J12: =SUMIFS(DADOS!$O:$O,DADOS!$E:$E,$A12,DADOS!$M:$M,DATE(YEAR(TODAY()),MONTH(J$6),DAY(VLOOKUP($A12,CONFIG!$E$2:$F$15,2,0)))) -> 0 | K12: =SUMIFS(DADOS!$O:$O,DADOS!$E:$E,$A12,DADOS!$M:$M,DATE(YEAR(TODAY()),MONTH(K$6),DAY(VLOOKUP($A12,CONFIG!$E$2:$F$15,2,0)))) -> 0 | L12: =SUMIFS(DADOS!$O:$O,DADOS!$E:$E,$A12,DADOS!$M:$M,DATE(YEAR(TODAY()),MONTH(L$6),DAY(VLOOKUP($A12,CONFIG!$E$2:$F$15,2,0)))) -> 0 | M12: =SUMIFS(DADOS!$O:$O,DADOS!$E:$E,$A12,DADOS!$M:$M,DATE(YEAR(TODAY()),MONTH(M$6),DAY(VLOOKUP($A12,CONFIG!$E$2:$F$15,2,0)))) -> 0 | N12: 0 | Q12: GOLD_JUNIOR | R12: 2500
A13: =CONFIG!A8 -> LATAM_JUNIOR | B13: =SUMIFS(DADOS!$O:$O,DADOS!$E:$E,$A13,DADOS!$M:$M,DATE(YEAR(TODAY()),MONTH(B$6),DAY(VLOOKUP($A13,CONFIG!$E$2:$F$15,2,0)))) -> 0 | C13: =SUMIFS(DADOS!$O:$O,DADOS!$E:$E,$A13,DADOS!$M:$M,DATE(YEAR(TODAY()),MONTH(C$6),DAY(VLOOKUP($A13,CONFIG!$E$2:$F$15,2,0)))) -> 0 | D13: =SUMIFS(DADOS!$O:$O,DADOS!$E:$E,$A13,DADOS!$M:$M,DATE(YEAR(TODAY()),MONTH(D$6),DAY(VLOOKUP($A13,CONFIG!$E$2:$F$15,2,0)))) -> 0 | E13: =SUMIFS(DADOS!$O:$O,DADOS!$E:$E,$A13,DADOS!$M:$M,DATE(YEAR(TODAY()),MONTH(E$6),DAY(VLOOKUP($A13,CONFIG!$E$2:$F$15,2,0)))) -> 0 | F13: =SUMIFS(DADOS!$O:$O,DADOS!$E:$E,$A13,DADOS!$M:$M,DATE(YEAR(TODAY()),MONTH(F$6),DAY(VLOOKUP($A13,CONFIG!$E$2:$F$15,2,0)))) -> 0 | G13: =SUMIFS(DADOS!$O:$O,DADOS!$E:$E,$A13,DADOS!$M:$M,DATE(YEAR(TODAY()),MONTH(G$6),DAY(VLOOKUP($A13,CONFIG!$E$2:$F$15,2,0)))) -> 0 | H13: =SUMIFS(DADOS!$O:$O,DADOS!$E:$E,$A13,DADOS!$M:$M,DATE(YEAR(TODAY()),MONTH(H$6),DAY(VLOOKUP($A13,CONFIG!$E$2:$F$15,2,0)))) -> 0 | I13: =SUMIFS(DADOS!$O:$O,DADOS!$E:$E,$A13,DADOS!$M:$M,DATE(YEAR(TODAY()),MONTH(I$6),DAY(VLOOKUP($A13,CONFIG!$E$2:$F$15,2,0)))) -> 0 | J13: =SUMIFS(DADOS!$O:$O,DADOS!$E:$E,$A13,DADOS!$M:$M,DATE(YEAR(TODAY()),MONTH(J$6),DAY(VLOOKUP($A13,CONFIG!$E$2:$F$15,2,0)))) -> 0 | K13: =SUMIFS(DADOS!$O:$O,DADOS!$E:$E,$A13,DADOS!$M:$M,DATE(YEAR(TODAY()),MONTH(K$6),DAY(VLOOKUP($A13,CONFIG!$E$2:$F$15,2,0)))) -> 0 | L13: =SUMIFS(DADOS!$O:$O,DADOS!$E:$E,$A13,DADOS!$M:$M,DATE(YEAR(TODAY()),MONTH(L$6),DAY(VLOOKUP($A13,CONFIG!$E$2:$F$15,2,0)))) -> 0 | M13: =SUMIFS(DADOS!$O:$O,DADOS!$E:$E,$A13,DADOS!$M:$M,DATE(YEAR(TODAY()),MONTH(M$6),DAY(VLOOKUP($A13,CONFIG!$E$2:$F$15,2,0)))) -> 0 | N13: 0 | Q13: LATAM_JUNIOR | R13: 3800
A14: =CONFIG!A9 -> FREE_JUNIOR | B14: =SUMIFS(DADOS!$O:$O,DADOS!$E:$E,$A14,DADOS!$M:$M,DATE(YEAR(TODAY()),MONTH(B$6),DAY(VLOOKUP($A14,CONFIG!$E$2:$F$15,2,0)))) -> 0 | C14: =SUMIFS(DADOS!$O:$O,DADOS!$E:$E,$A14,DADOS!$M:$M,DATE(YEAR(TODAY()),MONTH(C$6),DAY(VLOOKUP($A14,CONFIG!$E$2:$F$15,2,0)))) -> 0 | D14: =SUMIFS(DADOS!$O:$O,DADOS!$E:$E,$A14,DADOS!$M:$M,DATE(YEAR(TODAY()),MONTH(D$6),DAY(VLOOKUP($A14,CONFIG!$E$2:$F$15,2,0)))) -> 0 | E14: =SUMIFS(DADOS!$O:$O,DADOS!$E:$E,$A14,DADOS!$M:$M,DATE(YEAR(TODAY()),MONTH(E$6),DAY(VLOOKUP($A14,CONFIG!$E$2:$F$15,2,0)))) -> 0 | F14: =SUMIFS(DADOS!$O:$O,DADOS!$E:$E,$A14,DADOS!$M:$M,DATE(YEAR(TODAY()),MONTH(F$6),DAY(VLOOKUP($A14,CONFIG!$E$2:$F$15,2,0)))) -> 0 | G14: =SUMIFS(DADOS!$O:$O,DADOS!$E:$E,$A14,DADOS!$M:$M,DATE(YEAR(TODAY()),MONTH(G$6),DAY(VLOOKUP($A14,CONFIG!$E$2:$F$15,2,0)))) -> 0 | H14: =SUMIFS(DADOS!$O:$O,DADOS!$E:$E,$A14,DADOS!$M:$M,DATE(YEAR(TODAY()),MONTH(H$6),DAY(VLOOKUP($A14,CONFIG!$E$2:$F$15,2,0)))) -> 0 | I14: =SUMIFS(DADOS!$O:$O,DADOS!$E:$E,$A14,DADOS!$M:$M,DATE(YEAR(TODAY()),MONTH(I$6),DAY(VLOOKUP($A14,CONFIG!$E$2:$F$15,2,0)))) -> 0 | J14: =SUMIFS(DADOS!$O:$O,DADOS!$E:$E,$A14,DADOS!$M:$M,DATE(YEAR(TODAY()),MONTH(J$6),DAY(VLOOKUP($A14,CONFIG!$E$2:$F$15,2,0)))) -> 0 | K14: =SUMIFS(DADOS!$O:$O,DADOS!$E:$E,$A14,DADOS!$M:$M,DATE(YEAR(TODAY()),MONTH(K$6),DAY(VLOOKUP($A14,CONFIG!$E$2:$F$15,2,0)))) -> 0 | L14: =SUMIFS(DADOS!$O:$O,DADOS!$E:$E,$A14,DADOS!$M:$M,DATE(YEAR(TODAY()),MONTH(L$6),DAY(VLOOKUP($A14,CONFIG!$E$2:$F$15,2,0)))) -> 0 | M14: =SUMIFS(DADOS!$O:$O,DADOS!$E:$E,$A14,DADOS!$M:$M,DATE(YEAR(TODAY()),MONTH(M$6),DAY(VLOOKUP($A14,CONFIG!$E$2:$F$15,2,0)))) -> 0 | N14: 0 | Q14: FREE_JUNIOR | R14: 1490
A15: =CONFIG!A10 -> PAG_JUNIOR | B15: =SUMIFS(DADOS!$O:$O,DADOS!$E:$E,$A15,DADOS!$M:$M,DATE(YEAR(TODAY()),MONTH(B$6),DAY(VLOOKUP($A15,CONFIG!$E$2:$F$15,2,0)))) -> 0 | C15: =SUMIFS(DADOS!$O:$O,DADOS!$E:$E,$A15,DADOS!$M:$M,DATE(YEAR(TODAY()),MONTH(C$6),DAY(VLOOKUP($A15,CONFIG!$E$2:$F$15,2,0)))) -> 0 | D15: =SUMIFS(DADOS!$O:$O,DADOS!$E:$E,$A15,DADOS!$M:$M,DATE(YEAR(TODAY()),MONTH(D$6),DAY(VLOOKUP($A15,CONFIG!$E$2:$F$15,2,0)))) -> 0 | E15: =SUMIFS(DADOS!$O:$O,DADOS!$E:$E,$A15,DADOS!$M:$M,DATE(YEAR(TODAY()),MONTH(E$6),DAY(VLOOKUP($A15,CONFIG!$E$2:$F$15,2,0)))) -> 0 | F15: =SUMIFS(DADOS!$O:$O,DADOS!$E:$E,$A15,DADOS!$M:$M,DATE(YEAR(TODAY()),MONTH(F$6),DAY(VLOOKUP($A15,CONFIG!$E$2:$F$15,2,0)))) -> 0 | G15: =SUMIFS(DADOS!$O:$O,DADOS!$E:$E,$A15,DADOS!$M:$M,DATE(YEAR(TODAY()),MONTH(G$6),DAY(VLOOKUP($A15,CONFIG!$E$2:$F$15,2,0)))) -> 0 | H15: =SUMIFS(DADOS!$O:$O,DADOS!$E:$E,$A15,DADOS!$M:$M,DATE(YEAR(TODAY()),MONTH(H$6),DAY(VLOOKUP($A15,CONFIG!$E$2:$F$15,2,0)))) -> 0 | I15: =SUMIFS(DADOS!$O:$O,DADOS!$E:$E,$A15,DADOS!$M:$M,DATE(YEAR(TODAY()),MONTH(I$6),DAY(VLOOKUP($A15,CONFIG!$E$2:$F$15,2,0)))) -> 0 | J15: =SUMIFS(DADOS!$O:$O,DADOS!$E:$E,$A15,DADOS!$M:$M,DATE(YEAR(TODAY()),MONTH(J$6),DAY(VLOOKUP($A15,CONFIG!$E$2:$F$15,2,0)))) -> 0 | K15: =SUMIFS(DADOS!$O:$O,DADOS!$E:$E,$A15,DADOS!$M:$M,DATE(YEAR(TODAY()),MONTH(K$6),DAY(VLOOKUP($A15,CONFIG!$E$2:$F$15,2,0)))) -> 0 | L15: =SUMIFS(DADOS!$O:$O,DADOS!$E:$E,$A15,DADOS!$M:$M,DATE(YEAR(TODAY()),MONTH(L$6),DAY(VLOOKUP($A15,CONFIG!$E$2:$F$15,2,0)))) -> 0 | M15: =SUMIFS(DADOS!$O:$O,DADOS!$E:$E,$A15,DADOS!$M:$M,DATE(YEAR(TODAY()),MONTH(M$6),DAY(VLOOKUP($A15,CONFIG!$E$2:$F$15,2,0)))) -> 0 | N15: 0 | Q15: PAG_JUNIOR | R15: 2000
A16: =CONFIG!A11 -> NCARD_JUNIOR | B16: =SUMIFS(DADOS!$O:$O,DADOS!$E:$E,$A16,DADOS!$M:$M,DATE(YEAR(TODAY()),MONTH(B$6),DAY(VLOOKUP($A16,CONFIG!$E$2:$F$15,2,0)))) -> 0 | C16: =SUMIFS(DADOS!$O:$O,DADOS!$E:$E,$A16,DADOS!$M:$M,DATE(YEAR(TODAY()),MONTH(C$6),DAY(VLOOKUP($A16,CONFIG!$E$2:$F$15,2,0)))) -> 0 | D16: =SUMIFS(DADOS!$O:$O,DADOS!$E:$E,$A16,DADOS!$M:$M,DATE(YEAR(TODAY()),MONTH(D$6),DAY(VLOOKUP($A16,CONFIG!$E$2:$F$15,2,0)))) -> 0 | E16: =SUMIFS(DADOS!$O:$O,DADOS!$E:$E,$A16,DADOS!$M:$M,DATE(YEAR(TODAY()),MONTH(E$6),DAY(VLOOKUP($A16,CONFIG!$E$2:$F$15,2,0)))) -> 0 | F16: =SUMIFS(DADOS!$O:$O,DADOS!$E:$E,$A16,DADOS!$M:$M,DATE(YEAR(TODAY()),MONTH(F$6),DAY(VLOOKUP($A16,CONFIG!$E$2:$F$15,2,0)))) -> 0 | G16: =SUMIFS(DADOS!$O:$O,DADOS!$E:$E,$A16,DADOS!$M:$M,DATE(YEAR(TODAY()),MONTH(G$6),DAY(VLOOKUP($A16,CONFIG!$E$2:$F$15,2,0)))) -> 0 | H16: =SUMIFS(DADOS!$O:$O,DADOS!$E:$E,$A16,DADOS!$M:$M,DATE(YEAR(TODAY()),MONTH(H$6),DAY(VLOOKUP($A16,CONFIG!$E$2:$F$15,2,0)))) -> 0 | I16: =SUMIFS(DADOS!$O:$O,DADOS!$E:$E,$A16,DADOS!$M:$M,DATE(YEAR(TODAY()),MONTH(I$6),DAY(VLOOKUP($A16,CONFIG!$E$2:$F$15,2,0)))) -> 0 | J16: =SUMIFS(DADOS!$O:$O,DADOS!$E:$E,$A16,DADOS!$M:$M,DATE(YEAR(TODAY()),MONTH(J$6),DAY(VLOOKUP($A16,CONFIG!$E$2:$F$15,2,0)))) -> 0 | K16: =SUMIFS(DADOS!$O:$O,DADOS!$E:$E,$A16,DADOS!$M:$M,DATE(YEAR(TODAY()),MONTH(K$6),DAY(VLOOKUP($A16,CONFIG!$E$2:$F$15,2,0)))) -> 0 | L16: =SUMIFS(DADOS!$O:$O,DADOS!$E:$E,$A16,DADOS!$M:$M,DATE(YEAR(TODAY()),MONTH(L$6),DAY(VLOOKUP($A16,CONFIG!$E$2:$F$15,2,0)))) -> 0 | M16: =SUMIFS(DADOS!$O:$O,DADOS!$E:$E,$A16,DADOS!$M:$M,DATE(YEAR(TODAY()),MONTH(M$6),DAY(VLOOKUP($A16,CONFIG!$E$2:$F$15,2,0)))) -> 0 | N16: 0 | Q16: NCARD_JUNIOR | R16: 1600
A17: =CONFIG!A12 -> INTER_JUNIOR | B17: =SUMIFS(DADOS!$O:$O,DADOS!$E:$E,$A17,DADOS!$M:$M,DATE(YEAR(TODAY()),MONTH(B$6),DAY(VLOOKUP($A17,CONFIG!$E$2:$F$15,2,0)))) -> 0 | C17: =SUMIFS(DADOS!$O:$O,DADOS!$E:$E,$A17,DADOS!$M:$M,DATE(YEAR(TODAY()),MONTH(C$6),DAY(VLOOKUP($A17,CONFIG!$E$2:$F$15,2,0)))) -> 0 | D17: =SUMIFS(DADOS!$O:$O,DADOS!$E:$E,$A17,DADOS!$M:$M,DATE(YEAR(TODAY()),MONTH(D$6),DAY(VLOOKUP($A17,CONFIG!$E$2:$F$15,2,0)))) -> 0 | E17: =SUMIFS(DADOS!$O:$O,DADOS!$E:$E,$A17,DADOS!$M:$M,DATE(YEAR(TODAY()),MONTH(E$6),DAY(VLOOKUP($A17,CONFIG!$E$2:$F$15,2,0)))) -> 0 | F17: =SUMIFS(DADOS!$O:$O,DADOS!$E:$E,$A17,DADOS!$M:$M,DATE(YEAR(TODAY()),MONTH(F$6),DAY(VLOOKUP($A17,CONFIG!$E$2:$F$15,2,0)))) -> 0 | G17: =SUMIFS(DADOS!$O:$O,DADOS!$E:$E,$A17,DADOS!$M:$M,DATE(YEAR(TODAY()),MONTH(G$6),DAY(VLOOKUP($A17,CONFIG!$E$2:$F$15,2,0)))) -> 0 | H17: =SUMIFS(DADOS!$O:$O,DADOS!$E:$E,$A17,DADOS!$M:$M,DATE(YEAR(TODAY()),MONTH(H$6),DAY(VLOOKUP($A17,CONFIG!$E$2:$F$15,2,0)))) -> 0 | I17: =SUMIFS(DADOS!$O:$O,DADOS!$E:$E,$A17,DADOS!$M:$M,DATE(YEAR(TODAY()),MONTH(I$6),DAY(VLOOKUP($A17,CONFIG!$E$2:$F$15,2,0)))) -> 0 | J17: =SUMIFS(DADOS!$O:$O,DADOS!$E:$E,$A17,DADOS!$M:$M,DATE(YEAR(TODAY()),MONTH(J$6),DAY(VLOOKUP($A17,CONFIG!$E$2:$F$15,2,0)))) -> 0 | K17: =SUMIFS(DADOS!$O:$O,DADOS!$E:$E,$A17,DADOS!$M:$M,DATE(YEAR(TODAY()),MONTH(K$6),DAY(VLOOKUP($A17,CONFIG!$E$2:$F$15,2,0)))) -> 0 | L17: =SUMIFS(DADOS!$O:$O,DADOS!$E:$E,$A17,DADOS!$M:$M,DATE(YEAR(TODAY()),MONTH(L$6),DAY(VLOOKUP($A17,CONFIG!$E$2:$F$15,2,0)))) -> 0 | M17: =SUMIFS(DADOS!$O:$O,DADOS!$E:$E,$A17,DADOS!$M:$M,DATE(YEAR(TODAY()),MONTH(M$6),DAY(VLOOKUP($A17,CONFIG!$E$2:$F$15,2,0)))) -> 0 | N17: 0 | Q17: INTER_JUNIOR | R17: 6500
A18: =CONFIG!A13 -> C6_JUNIOR | B18: =SUMIFS(DADOS!$O:$O,DADOS!$E:$E,$A18,DADOS!$M:$M,DATE(YEAR(TODAY()),MONTH(B$6),DAY(VLOOKUP($A18,CONFIG!$E$2:$F$15,2,0)))) -> 0 | C18: =SUMIFS(DADOS!$O:$O,DADOS!$E:$E,$A18,DADOS!$M:$M,DATE(YEAR(TODAY()),MONTH(C$6),DAY(VLOOKUP($A18,CONFIG!$E$2:$F$15,2,0)))) -> 0 | D18: =SUMIFS(DADOS!$O:$O,DADOS!$E:$E,$A18,DADOS!$M:$M,DATE(YEAR(TODAY()),MONTH(D$6),DAY(VLOOKUP($A18,CONFIG!$E$2:$F$15,2,0)))) -> 0 | E18: =SUMIFS(DADOS!$O:$O,DADOS!$E:$E,$A18,DADOS!$M:$M,DATE(YEAR(TODAY()),MONTH(E$6),DAY(VLOOKUP($A18,CONFIG!$E$2:$F$15,2,0)))) -> 0 | F18: =SUMIFS(DADOS!$O:$O,DADOS!$E:$E,$A18,DADOS!$M:$M,DATE(YEAR(TODAY()),MONTH(F$6),DAY(VLOOKUP($A18,CONFIG!$E$2:$F$15,2,0)))) -> 0 | G18: =SUMIFS(DADOS!$O:$O,DADOS!$E:$E,$A18,DADOS!$M:$M,DATE(YEAR(TODAY()),MONTH(G$6),DAY(VLOOKUP($A18,CONFIG!$E$2:$F$15,2,0)))) -> 0 | H18: =SUMIFS(DADOS!$O:$O,DADOS!$E:$E,$A18,DADOS!$M:$M,DATE(YEAR(TODAY()),MONTH(H$6),DAY(VLOOKUP($A18,CONFIG!$E$2:$F$15,2,0)))) -> 0 | I18: =SUMIFS(DADOS!$O:$O,DADOS!$E:$E,$A18,DADOS!$M:$M,DATE(YEAR(TODAY()),MONTH(I$6),DAY(VLOOKUP($A18,CONFIG!$E$2:$F$15,2,0)))) -> 0 | J18: =SUMIFS(DADOS!$O:$O,DADOS!$E:$E,$A18,DADOS!$M:$M,DATE(YEAR(TODAY()),MONTH(J$6),DAY(VLOOKUP($A18,CONFIG!$E$2:$F$15,2,0)))) -> 0 | K18: =SUMIFS(DADOS!$O:$O,DADOS!$E:$E,$A18,DADOS!$M:$M,DATE(YEAR(TODAY()),MONTH(K$6),DAY(VLOOKUP($A18,CONFIG!$E$2:$F$15,2,0)))) -> 0 | L18: =SUMIFS(DADOS!$O:$O,DADOS!$E:$E,$A18,DADOS!$M:$M,DATE(YEAR(TODAY()),MONTH(L$6),DAY(VLOOKUP($A18,CONFIG!$E$2:$F$15,2,0)))) -> 0 | M18: =SUMIFS(DADOS!$O:$O,DADOS!$E:$E,$A18,DADOS!$M:$M,DATE(YEAR(TODAY()),MONTH(M$6),DAY(VLOOKUP($A18,CONFIG!$E$2:$F$15,2,0)))) -> 0 | N18: 0 | Q18: C6_JUNIOR | R18: 130
A19: =CONFIG!A14 -> BMG_JUNIOR | B19: =SUMIFS(DADOS!$O:$O,DADOS!$E:$E,$A19,DADOS!$M:$M,DATE(YEAR(TODAY()),MONTH(B$6),DAY(VLOOKUP($A19,CONFIG!$E$2:$F$15,2,0)))) -> 0 | C19: =SUMIFS(DADOS!$O:$O,DADOS!$E:$E,$A19,DADOS!$M:$M,DATE(YEAR(TODAY()),MONTH(C$6),DAY(VLOOKUP($A19,CONFIG!$E$2:$F$15,2,0)))) -> 0 | D19: =SUMIFS(DADOS!$O:$O,DADOS!$E:$E,$A19,DADOS!$M:$M,DATE(YEAR(TODAY()),MONTH(D$6),DAY(VLOOKUP($A19,CONFIG!$E$2:$F$15,2,0)))) -> 0 | E19: =SUMIFS(DADOS!$O:$O,DADOS!$E:$E,$A19,DADOS!$M:$M,DATE(YEAR(TODAY()),MONTH(E$6),DAY(VLOOKUP($A19,CONFIG!$E$2:$F$15,2,0)))) -> 0 | F19: =SUMIFS(DADOS!$O:$O,DADOS!$E:$E,$A19,DADOS!$M:$M,DATE(YEAR(TODAY()),MONTH(F$6),DAY(VLOOKUP($A19,CONFIG!$E$2:$F$15,2,0)))) -> 0 | G19: =SUMIFS(DADOS!$O:$O,DADOS!$E:$E,$A19,DADOS!$M:$M,DATE(YEAR(TODAY()),MONTH(G$6),DAY(VLOOKUP($A19,CONFIG!$E$2:$F$15,2,0)))) -> 0 | H19: =SUMIFS(DADOS!$O:$O,DADOS!$E:$E,$A19,DADOS!$M:$M,DATE(YEAR(TODAY()),MONTH(H$6),DAY(VLOOKUP($A19,CONFIG!$E$2:$F$15,2,0)))) -> 0 | I19: =SUMIFS(DADOS!$O:$O,DADOS!$E:$E,$A19,DADOS!$M:$M,DATE(YEAR(TODAY()),MONTH(I$6),DAY(VLOOKUP($A19,CONFIG!$E$2:$F$15,2,0)))) -> 0 | J19: =SUMIFS(DADOS!$O:$O,DADOS!$E:$E,$A19,DADOS!$M:$M,DATE(YEAR(TODAY()),MONTH(J$6),DAY(VLOOKUP($A19,CONFIG!$E$2:$F$15,2,0)))) -> 0 | K19: =SUMIFS(DADOS!$O:$O,DADOS!$E:$E,$A19,DADOS!$M:$M,DATE(YEAR(TODAY()),MONTH(K$6),DAY(VLOOKUP($A19,CONFIG!$E$2:$F$15,2,0)))) -> 0 | L19: =SUMIFS(DADOS!$O:$O,DADOS!$E:$E,$A19,DADOS!$M:$M,DATE(YEAR(TODAY()),MONTH(L$6),DAY(VLOOKUP($A19,CONFIG!$E$2:$F$15,2,0)))) -> 0 | M19: =SUMIFS(DADOS!$O:$O,DADOS!$E:$E,$A19,DADOS!$M:$M,DATE(YEAR(TODAY()),MONTH(M$6),DAY(VLOOKUP($A19,CONFIG!$E$2:$F$15,2,0)))) -> 0 | N19: 0 | Q19: BMG_JUNIOR | R19: 280
A20: =CONFIG!A15 -> PAN_JUNIOR | B20: =SUMIFS(DADOS!$O:$O,DADOS!$E:$E,$A20,DADOS!$M:$M,DATE(YEAR(TODAY()),MONTH(B$6),DAY(VLOOKUP($A20,CONFIG!$E$2:$F$15,2,0)))) -> 0 | C20: =SUMIFS(DADOS!$O:$O,DADOS!$E:$E,$A20,DADOS!$M:$M,DATE(YEAR(TODAY()),MONTH(C$6),DAY(VLOOKUP($A20,CONFIG!$E$2:$F$15,2,0)))) -> 0 | D20: =SUMIFS(DADOS!$O:$O,DADOS!$E:$E,$A20,DADOS!$M:$M,DATE(YEAR(TODAY()),MONTH(D$6),DAY(VLOOKUP($A20,CONFIG!$E$2:$F$15,2,0)))) -> 0 | E20: =SUMIFS(DADOS!$O:$O,DADOS!$E:$E,$A20,DADOS!$M:$M,DATE(YEAR(TODAY()),MONTH(E$6),DAY(VLOOKUP($A20,CONFIG!$E$2:$F$15,2,0)))) -> 0 | F20: =SUMIFS(DADOS!$O:$O,DADOS!$E:$E,$A20,DADOS!$M:$M,DATE(YEAR(TODAY()),MONTH(F$6),DAY(VLOOKUP($A20,CONFIG!$E$2:$F$15,2,0)))) -> 0 | G20: =SUMIFS(DADOS!$O:$O,DADOS!$E:$E,$A20,DADOS!$M:$M,DATE(YEAR(TODAY()),MONTH(G$6),DAY(VLOOKUP($A20,CONFIG!$E$2:$F$15,2,0)))) -> 0 | H20: =SUMIFS(DADOS!$O:$O,DADOS!$E:$E,$A20,DADOS!$M:$M,DATE(YEAR(TODAY()),MONTH(H$6),DAY(VLOOKUP($A20,CONFIG!$E$2:$F$15,2,0)))) -> 0 | I20: =SUMIFS(DADOS!$O:$O,DADOS!$E:$E,$A20,DADOS!$M:$M,DATE(YEAR(TODAY()),MONTH(I$6),DAY(VLOOKUP($A20,CONFIG!$E$2:$F$15,2,0)))) -> 0 | J20: =SUMIFS(DADOS!$O:$O,DADOS!$E:$E,$A20,DADOS!$M:$M,DATE(YEAR(TODAY()),MONTH(J$6),DAY(VLOOKUP($A20,CONFIG!$E$2:$F$15,2,0)))) -> 0 | K20: =SUMIFS(DADOS!$O:$O,DADOS!$E:$E,$A20,DADOS!$M:$M,DATE(YEAR(TODAY()),MONTH(K$6),DAY(VLOOKUP($A20,CONFIG!$E$2:$F$15,2,0)))) -> 0 | L20: =SUMIFS(DADOS!$O:$O,DADOS!$E:$E,$A20,DADOS!$M:$M,DATE(YEAR(TODAY()),MONTH(L$6),DAY(VLOOKUP($A20,CONFIG!$E$2:$F$15,2,0)))) -> 0 | M20: =SUMIFS(DADOS!$O:$O,DADOS!$E:$E,$A20,DADOS!$M:$M,DATE(YEAR(TODAY()),MONTH(M$6),DAY(VLOOKUP($A20,CONFIG!$E$2:$F$15,2,0)))) -> 0 | N20: 0 | Q20: PAN_JUNIOR | R20: 260
A22: TOTAIS | B22: =SUM(B7:B20) -> 0 | C22: =SUM(C7:C20) -> 0 | D22: 0 | E22: 0 | F22: 0 | G22: 0 | H22: 0 | I22: 0 | J22: 0 | K22: 0 | L22: 0 | M22: 0 | N22: =SUM(N7:N20) -> 0

Sheet CONFIG
A1: CARTÕES | C1: TÍTULAR | D1: CARTÃO | E1: MATRIZ | F1: DATA DO VENCIMENTO | G1: DATA DO FECHAMENTO | N1: JUNIOR | O1: MÊS | S1: TÍTULAR
A2: =D2&"_"&C2 -> CLICK_JUNIOR | C2: JUNIOR | D2: CLICK | E2: =TBLCARTAO[[#This Row],[CARTÕES]] -> CLICK_JUNIOR | F2: =DATE(YEAR(TODAY()),CALENDARIO!$AG$2,L2) -> 44425 | G2: =DATE(YEAR(TODAY()),CALENDARIO!AG$2,M2) -> 44417 | L2: 17 | M2: 9 | S2: JUNIOR
A3: =D3&"_"&C3 -> MELIUZ_JUNIOR | C3: JUNIOR | D3: MELIUZ | E3: =TBLCARTAO[[#This Row],[CARTÕES]] -> MELIUZ_JUNIOR | F3: =DATE(YEAR(TODAY()),CALENDARIO!$AG$2,L3) -> 44409 | G3: =IF(MONTH(DATE(YEAR(TODAY()),CALENDARIO!$AG$2,M3))=MONTH(F3),DATE(YEAR(TODAY()),CALENDARIO!$AG$2-1,M3),DATE(YEAR(TODAY()),CALENDARIO!$AG$2,M3)) -> 44397 | L3: 1 | M3: 20 | N3: LIMITE | O3: FATURA | P3: DISPONIVEL | S3: MOCINHA
A4: ZERO_JUNIOR | C4: JUNIOR | D4: ZERO | E4: =TBLCARTAO[[#This Row],[CARTÕES]] -> ZERO_JUNIOR | F4: =DATE(YEAR(TODAY()),CALENDARIO!$AG$2,L4) -> 44434 | G4: =DATE(YEAR(TODAY()),CALENDARIO!AG$2,M4) -> 44428 | L4: 26 | M4: 20 | N4: 1800 | S4: MÃE
A5: NUBANK_JUNIOR | C5: JUNIOR | D5: NUBANK | E5: =TBLCARTAO[[#This Row],[CARTÕES]] -> NUBANK_JUNIOR | F5: =DATE(YEAR(TODAY()),CALENDARIO!$AG$2,L5) -> 44421 | G5: =DATE(YEAR(TODAY()),CALENDARIO!AG$2,M5) -> 44414 | L5: 13 | M5: 6 | N5: 680
A6: AZUL_JUNIOR | C6: JUNIOR | D6: AZUL | E6: =TBLCARTAO[[#This Row],[CARTÕES]] -> AZUL_JUNIOR | F6: =DATE(YEAR(TODAY()),CALENDARIO!$AG$2,L6) -> 44414 | G6: =IF(MONTH(DATE(YEAR(TODAY()),CALENDARIO!$AG$2,M6))=MONTH(F6),DATE(YEAR(TODAY()),CALENDARIO!$AG$2-1,M6),DATE(YEAR(TODAY()),CALENDARIO!$AG$2,M6)) -> 44405 | L6: 6 | M6: 28 | N6: 1100
A7: GOLD_JUNIOR | C7: JUNIOR | D7: GOLD | E7: =TBLCARTAO[[#This Row],[CARTÕES]] -> GOLD_JUNIOR | F7: =DATE(YEAR(TODAY()),CALENDARIO!$AG$2,L7) -> 44431 | G7: =DATE(YEAR(TODAY()),CALENDARIO!AG$2,M7) -> 44422 | L7: 23 | M7: 14
A8: LATAM_JUNIOR | C8: JUNIOR | D8: LATAM | E8: =TBLCARTAO[[#This Row],[CARTÕES]] -> LATAM_JUNIOR | F8: =DATE(YEAR(TODAY()),CALENDARIO!$AG$2,L8) -> 44433 | G8: =DATE(YEAR(TODAY()),CALENDARIO!AG$2,M8) -> 44424 | L8: 25 | M8: 16
A9: FREE_JUNIOR | C9: JUNIOR | D9: FREE | E9: =TBLCARTAO[[#This Row],[CARTÕES]] -> FREE_JUNIOR | F9: =DATE(YEAR(TODAY()),CALENDARIO!$AG$2,L9) -> 44438 | G9: =DATE(YEAR(TODAY()),CALENDARIO!AG$2,M9) -> 44432 | L9: 30 | M9: 24
A10: PAG_JUNIOR | C10: JUNIOR | D10: PAG | E10: =TBLCARTAO[[#This Row],[CARTÕES]] -> PAG_JUNIOR | F10: =DATE(YEAR(TODAY()),CALENDARIO!$AG$2,L10) -> 44428 | G10: =DATE(YEAR(TODAY()),CALENDARIO!AG$2,M10) -> 44422 | L10: 20 | M10: 14
A11: NCARD_JUNIOR | C11: JUNIOR | D11: NCARD | E11: =TBLCARTAO[[#This Row],[CARTÕES]] -> NCARD_JUNIOR | F11: =DATE(YEAR(TODAY()),CALENDARIO!$AG$2,L11) -> 44417 | G11: =DATE(YEAR(TODAY()),CALENDARIO!AG$2,M11) -> 44409 | L11: 9 | M11: 1
A12: =D12&"_"&C12 -> INTER_JUNIOR | C12: JUNIOR | D12: INTER | E12: =TBLCARTAO[[#This Row],[CARTÕES]] -> INTER_JUNIOR | F12: =DATE(YEAR(TODAY()),CALENDARIO!$AG$2,L12) -> 44423 | G12: =DATE(YEAR(TODAY()),CALENDARIO!AG$2,M12) -> 44414 | L12: 15 | M12: 6 | O12: 1 | P12: =SMALL($F$2:$F$15,O12) -> 44409 | Q12: C6
A13: =D13&"_"&C13 -> C6_JUNIOR | C13: JUNIOR | D13: C6 | E13: =TBLCARTAO[[#This Row],[CARTÕES]] -> C6_JUNIOR | F13: =DATE(YEAR(TODAY()),CALENDARIO!$AG$2,L13) -> 44409 | G13: =IF(MONTH(DATE(YEAR(TODAY()),CALENDARIO!$AG$2,M13))=MONTH(F13),DATE(YEAR(TODAY()),CALENDARIO!$AG$2-1,M13),DATE(YEAR(TODAY()),CALENDARIO!$AG$2,M13)) -> 44398 | L13: 1 | M13: 21 | O13: 2 | P13: =SMALL($F$2:$F$15,O13) -> 44409 | Q13: MELIUZ
A14: =D14&"_"&C14 -> BMG_JUNIOR | C14: JUNIOR | D14: BMG | E14: =TBLCARTAO[[#This Row],[CARTÕES]] -> BMG_JUNIOR | F14: =DATE(YEAR(TODAY()),CALENDARIO!$AG$2,L14) -> 44433 | G14: =DATE(YEAR(TODAY()),CALENDARIO!AG$2,M14) -> 44423 | L14: 25 | M14: 15 | O14: 3 | P14: 44414 | Q14: AZUL
A15: =D15&"_"&C15 -> PAN_JUNIOR | C15: JUNIOR | D15: PAN | E15: =TBLCARTAO[[#This Row],[CARTÕES]] -> PAN_JUNIOR | F15: =DATE(YEAR(TODAY()),CALENDARIO!$AG$2,L15) -> 44421 | G15: =DATE(YEAR(TODAY()),CALENDARIO!AG$2,M15) -> 44438 | L15: 13 | M15: 30 | O15: 4 | P15: 44417 | Q15: NCARD
O16: 5 | P16: 44421 | Q16: PAN
G17: =DATE(YEAR(TODAY()),E18-1,M15) -> 44407 | O17: 6 | P17: 44421 | Q17: NUBANK
A18: MESES | E18: 8 | G18: 44438 | O18: 7 | P18: 44423 | Q18: INTER
O19: 8 | P19: 44425 | Q19: CLICK
O20: 9 | P20: 44428 | Q20: PAG
O21: 10 | P21: 44431 | Q21: GOLD
F22: JANEIRO | M22: =DATE(TODAY(),MONTH(F22),13) ->  | O22: 11 | P22: 44433 | Q22: LATAM
O23: 12 | P23: 44433 | Q23: BMG
O24: 13 | P24: 44434 | Q24: ZERO
O25: 14 | P25: 44438 | Q25: FREE
... 1 more rows
